Workbook

Sheet dea.res_fld_subset_annotated
A1: Additional file 3. Differentially expressed genes identified by DESeq2 for berry skins at 22°Brix. Columns B-I are derived from the Annotation file (Additional file 2). DESeq2 statistics columns are in J - O and TPM values are added from Additional file 1.
A2: V3GeneID | B2: V1_loci | C2: Ara11.sseqid | D2: Ara11.symbol | E2: GRCmanual_annot | F2: Consensus_annot | G2: Ara11.symbol | H2: Ara11.Note | I2: Annotation.by.Grimplet.et.al...2012. | J2: baseMean | K2: log2FoldChange | L2: lfcSE | M2: stat | N2: pvalue | O2: padj | P2: BOD19_5R1 | Q2: BOD19_5R2 | R2: BOD19_5R3 | S2: BOD20_5R1 | T2: BOD20_5R2 | U2: BOD20_5R3 | V2: BOD21_5R1 | W2: BOD21_5R2 | X2: BOD21_5R3 | Y2: BOD22_5R1 | Z2: BOD22_5R2 | AA2: BOD22_5R3 | AB2: RNO20R1 | AC2: RNO20R2 | AD2: RNO20R3 | AE2: RNO22R1 | AF2: RNO22R2 | AG2: RNO22R3 | AH2: RNO24R1 | AI2: RNO24R2 | AJ2: RNO24R3 | AK2: RNO26R1 | AL2: RNO26R2 | AM2: RNO26R3 | AN2: BOD.difference | AO2: RNO.difference
A3: Vitvi05g01946 | B3: NA | C3: NA | D3: NA | E3: NA | F3: NA | G3: NA | H3: NA | I3: NA | J3: 233558.7034 | K3: -2.167339009 | L3: 0.1380355162 | M3: -15.70131418 | N3: 1.48E-55 | O3: 8.15E-52 | P3: 14.03636058 | Q3: 14.02294595 | R3: 14.00215562 | S3: 13.66754005 | T3: 13.77393943 | U3: 13.54791495 | V3: 13.40621161 | W3: 13.17194498 | X3: 12.97103662 | Y3: 12.79901015 | Z3: 12.8838986 | AA3: 12.57486662 | AB3: 14.37184427 | AC3: 14.71466443 | AD3: 14.6914662 | AE3: 14.9313301 | AF3: 14.77077279 | AG3: 14.77585215 | AH3: 14.65414774 | AI3: 14.59456975 | AJ3: 14.79382741 | AK3: 14.18595966 | AL3: 14.26610011 | AM3: 14.49840964 | AN3: =AVERAGE(Y3:AA3)-AVERAGE(P3:R3) -> -1.267895597 | AO3: =AVERAGE(AK3:AM3)-AVERAGE(AB3:AD3) -> -0.275835159
A4: Vitvi03g01899 | B4: NA | C4: NA | D4: NA | E4: NA | F4: NA | G4: NA | H4: NA | I4: NA | J4: 15051.71108 | K4: -1.528943638 | L4: 0.1631471244 | M4: -9.371563509 | N4: 7.15E-21 | O4: 9.95E-19 | P4: 13.55684315 | Q4: 13.72176998 | R4: 14.09956268 | S4: 13.98184731 | T4: 14.07566288 | U4: 14.60301858 | V4: 14.43008848 | W4: 14.26518404 | X4: 13.9573405 | Y4: 14.3289508 | Z4: 14.12948262 | AA4: 13.50341322 | AB4: 17.18244767 | AC4: 15.59920671 | AD4: 15.73636885 | AE4: 15.09920693 | AF4: 15.45252589 | AG4: 15.80335843 | AH4: 15.42848514 | AI4: 15.48476044 | AJ4: 15.80396527 | AK4: 15.26694058 | AL4: 14.99365767 | AM4: 15.13680023 | AN4: =AVERAGE(Y4:AA4)-AVERAGE(P4:R4) -> 0.1945569423 | AO4: =AVERAGE(AK4:AM4)-AVERAGE(AB4:AD4) -> -1.040208252
A5: Vitvi00g00824 | B5: NA | C5: NA | D5: NA | E5: NA | F5: NA | G5: NA | H5: NA | I5: NA | J5: 464.1099374 | K5: 1.394676352 | L5: 0.1698459583 | M5: 8.211419134 | N5: 2.19E-16 | O5: 1.80E-14 | P5: 7.513882447 | Q5: 8.093606687 | R5: 8.643021723 | S5: 8.188266274 | T5: 8.343181227 | U5: 9.373175698 | V5: 8.509580718 | W5: 8.615794638 | X5: 8.488173437 | Y5: 8.36413909 | Z5: 8.024275517 | AA5: 6.822282954 | AB5: 10.59409281 | AC5: 7.307335445 | AD5: 6.727237667 | AE5: 6.756997652 | AF5: 6.348724651 | AG5: 6.983816544 | AH5: 6.555760409 | AI5: 7.352148633 | AJ5: 6.739893409 | AK5: 6.463894182 | AL5: 5.506340319 | AM5: 6.330701 | AN5: =AVERAGE(Y5:AA5)-AVERAGE(P5:R5) -> -0.3466044321 | AO5: =AVERAGE(AK5:AM5)-AVERAGE(AB5:AD5) -> -2.109243474
A6: Vitvi01g01337 | B6: NA | C6: NA | D6: NA | E6: NA | F6: NA | G6: NA | H6: NA | I6: NA | J6: 49.44788147 | K6: 3.971765397 | L6: 0.4948965576 | M6: 8.025445594 | N6: 1.01E-15 | O6: 7.44E-14 | P6: 6.361157411 | Q6: 6.090318421 | R6: 6.292982457 | S6: 6.694879508 | T6: 6.237833164 | U6: 6.163753564 | V6: 5.843660368 | W6: 6.522278742 | X6: 6.207424805 | Y6: 6.748398238 | Z6: 6.706786173 | AA6: 6.393303351 | AB6: 1.81626341 | AC6: 2.721181477 | AD6: 2.027011864 | AE6: 2.448961214 | AF6: 2.098803755 | AG6: 2.369548647 | AH6: 2.169799514 | AI6: 2.212044328 | AJ6: 1.870045894 | AK6: 2.1641148 | AL6: 2.003304276 | AM6: 3.038956228 | AN6: =AVERAGE(Y6:AA6)-AVERAGE(P6:R6) -> 0.3680098244 | AO6: =AVERAGE(AK6:AM6)-AVERAGE(AB6:AD6) -> 0.2139728511
A7: Vitvi07g00246 | B7: NA | C7: NA | D7: NA | E7: NA | F7: NA | G7: NA | H7: NA | I7: NA | J7: 188.7902918 | K7: 1.44803528 | L7: 0.2110898705 | M7: 6.859804672 | N7: 6.90E-12 | O7: 3.11E-10 | P7: 6.756707301 | Q7: 7.758734815 | R7: 8.060328801 | S7: 8.267297666 | T7: 8.215388043 | U7: 8.777614567 | V7: 8.148378994 | W7: 8.222540429 | X7: 8.033515395 | Y7: 7.919384479 | Z7: 7.689099661 | AA7: 6.573432208 | AB7: 10.1446969 | AC7: 6.856217615 | AD7: 6.249737188 | AE7: 6.0537445 | AF7: 5.980624844 | AG7: 6.706639952 | AH7: 5.936877251 | AI7: 6.908029602 | AJ7: 6.241756139 | AK7: 5.716279899 | AL7: 4.879788443 | AM7: 5.245422762 | AN7: =AVERAGE(Y7:AA7)-AVERAGE(P7:R7) -> -0.1312848562 | AO7: =AVERAGE(AK7:AM7)-AVERAGE(AB7:AD7) -> -2.469720199
A8: Vitvi12g01585 | B8: NA | C8: NA | D8: NA | E8: NA | F8: NA | G8: NA | H8: NA | I8: NA | J8: 249.1344736 | K8: 1.192411841 | L8: 0.1812024257 | M8: 6.580551207 | N8: 4.69E-11 | O8: 1.85E-09 | P8: 3.845977476 | Q8: 4.453750406 | R8: 4.636488622 | S8: 5.211335453 | T8: 4.894001926 | U8: 5.38696199 | V8: 4.690398055 | W8: 4.944576307 | X8: 4.687634412 | Y8: 4.523116481 | Z8: 4.281308273 | AA8: 3.990895537 | AB8: 7.082322138 | AC8: 4.138509233 | AD8: 3.880937541 | AE8: 3.685972118 | AF8: 3.574413192 | AG8: 4.076316073 | AH8: 3.770147953 | AI8: 4.129994534 | AJ8: 3.732392723 | AK8: 3.446618464 | AL8: 3.346256058 | AM8: 3.100405284 | AN8: =AVERAGE(Y8:AA8)-AVERAGE(P8:R8) -> -0.04696540448 | AO8: =AVERAGE(AK8:AM8)-AVERAGE(AB8:AD8) -> -1.736163036
A9: Vitvi14g01236 | B9: NA | C9: NA | D9: NA | E9: NA | F9: NA | G9: NA | H9: NA | I9: NA | J9: 328.6216899 | K9: -1.13119734 | L9: 0.1765480472 | M9: -6.407305875 | N9: 1.48E-10 | O9: 5.39E-09 | P9: 7.996258965 | Q9: 8.169767429 | R9: 7.67435174 | S9: 7.100953135 | T9: 7.596656019 | U9: 7.573421976 | V9: 7.536908768 | W9: 7.516360005 | X9: 7.552564974 | Y9: 7.454151678 | Z9: 7.41943885 | AA9: 6.926964057 | AB9: 8.459853332 | AC9: 8.929743034 | AD9: 8.867974732 | AE9: 8.96374991 | AF9: 9.008657162 | AG9: 8.592305555 | AH9: 8.911755723 | AI9: 8.408695065 | AJ9: 8.742546485 | AK9: 8.092503481 | AL9: 8.576201386 | AM9: 8.172900711 | AN9: =AVERAGE(Y9:AA9)-AVERAGE(P9:R9) -> -0.6799411829 | AO9: =AVERAGE(AK9:AM9)-AVERAGE(AB9:AD9) -> -0.471988507
A10: Vitvi08g00505 | B10: NA | C10: NA | D10: NA | E10: NA | F10: NA | G10: NA | H10: NA | I10: NA | J10: 86.38901559 | K10: -1.759187911 | L10: 0.279008654 | M10: -6.305137442 | N10: 2.88E-10 | O10: 1.01E-08 | P10: 1.959163095 | Q10: 1.601022465 | R10: 2.250896443 | S10: 4.188656918 | T10: 2.530908382 | U10: 3.014663662 | V10: 2.789617751 | W10: 0 | X10: 2.065221788 | Y10: 1.419499743 | Z10: 2.036349559 | AA10: 2.470285339 | AB10: 3.91075762 | AC10: 4.022727783 | AD10: 3.498304936 | AE10: 4.334016162 | AF10: 4.229224026 | AG10: 4.423696729 | AH10: 4.554971548 | AI10: 4.65956258 | AJ10: 3.770452435 | AK10: 3.551389333 | AL10: 4.496953563 | AM10: 4.359307747 | AN10: =AVERAGE(Y10:AA10)-AVERAGE(P10:R10) -> 0.03835087973 | AO10: =AVERAGE(AK10:AM10)-AVERAGE(AB10:AD10) -> 0.3252867682
A11: Vitvi04g00621 | B11: NA | C11: NA | D11: NA | E11: NA | F11: NA | G11: NA | H11: NA | I11: NA | J11: 336.6815026 | K11: -1.296522865 | L11: 0.2099539334 | M11: -6.175273041 | N11: 6.60E-10 | O11: 2.18E-08 | P11: 6.537247333 | Q11: 6.176318957 | R11: 6.673825564 | S11: 8.377302412 | T11: 7.130491855 | U11: 7.115126384 | V11: 6.743779493 | W11: 6.533804584 | X11: 6.956148361 | Y11: 6.874814242 | Z11: 6.57759045 | AA11: 7.915831782 | AB11: 7.959471765 | AC11: 8.00623934 | AD11: 7.800795168 | AE11: 8.439672172 | AF11: 7.708186324 | AG11: 8.539045944 | AH11: 8.443229399 | AI11: 8.248772815 | AJ11: 8.053487478 | AK11: 8.183823531 | AL11: 8.322189209 | AM11: 8.251398422 | AN11: =AVERAGE(Y11:AA11)-AVERAGE(P11:R11) -> 0.6602815401 | AO11: =AVERAGE(AK11:AM11)-AVERAGE(AB11:AD11) -> 0.3303016294
A12: Vitvi04g01887 | B12: NA | C12: AT2G25625.1 | D12: NA | E12: NA | F12: NA | G12: NA | H12: histone deacetylase-like protein | I12: NA | J12: 81.44677293 | K12: 1.713150982 | L12: 0.2963139746 | M12: 5.781539614 | N12: 7.40E-09 | O12: 2.00E-07 | P12: 4.024229108 | Q12: 3.839395604 | R12: 3.835544052 | S12: 4.760582859 | T12: 3.742331648 | U12: 4.348111508 | V12: 4.559227495 | W12: 5.273481786 | X12: 4.993252706 | Y12: 5.998519582 | Z12: 5.095787842 | AA12: 5.790380399 | AB12: 2.945791265 | AC12: 3.440152625 | AD12: 3.154921786 | AE12: 3.161981972 | AF12: 3.292172147 | AG12: 2.816914654 | AH12: 3.893656034 | AI12: 4.025004978 | AJ12: 3.571452971 | AK12: 4.217728747 | AL12: 4.221741495 | AM12: 4.335502082 | AN12: =AVERAGE(Y12:AA12)-AVERAGE(P12:R12) -> 1.728506353 | AO12: =AVERAGE(AK12:AM12)-AVERAGE(AB12:AD12) -> 1.078035549
A13: Vitvi14g02920 | B13: NA | C13: AT3G29780.1 | D13: "RALFL27" | E13: NA | F13: "RALFL27" | G13: "RALFL27" | H13: ralf-like 27 | I13: NA | J13: 210.103014 | K13: -1.237572289 | L13: 0.2166027869 | M13: -5.713556631 | N13: 1.11E-08 | O13: 2.89E-07 | P13: 6.112471714 | Q13: 6.225409592 | R13: 5.679821594 | S13: 5.861240498 | T13: 5.730808587 | U13: 5.368393632 | V13: 5.220504556 | W13: 5.673563927 | X13: 4.902467147 | Y13: 4.3633705 | Z13: 4.926152414 | AA13: 5.505384386 | AB13: 5.722122656 | AC13: 5.686652502 | AD13: 6.192208988 | AE13: 6.499222722 | AF13: 6.041252238 | AG13: 6.101078827 | AH13: 6.441252668 | AI13: 6.454432411 | AJ13: 6.195943658 | AK13: 5.753614369 | AL13: 6.057866231 | AM13: 5.508477572 | AN13: =AVERAGE(Y13:AA13)-AVERAGE(P13:R13) -> -1.0742652 | AO13: =AVERAGE(AK13:AM13)-AVERAGE(AB13:AD13) -> -0.09367532455
A14: Vitvi08g00927 | B14: NA | C14: NA | D14: NA | E14: NA | F14: NA | G14: NA | H14: NA | I14: NA | J14: 324.0620601 | K14: 1.108147559 | L14: 0.1981628696 | M14: 5.592104926 | N14: 2.24E-08 | O14: 5.52E-07 | P14: 8.238265443 | Q14: 8.444898551 | R14: 8.612249857 | S14: 9.081888145 | T14: 8.465430502 | U14: 9.217111973 | V14: 8.55435909 | W14: 9.031683829 | X14: 8.398039828 | Y14: 8.59232913 | Z14: 8.97327255 | AA14: 7.438867936 | AB14: 10.94953734 | AC14: 7.472360153 | AD14: 7.071443168 | AE14: 7.391917135 | AF14: 6.943847371 | AG14: 7.777419141 | AH14: 7.074809535 | AI14: 7.574159637 | AJ14: 7.531839048 | AK14: 6.721407925 | AL14: 6.220864701 | AM14: 6.564918975 | AN14: =AVERAGE(Y14:AA14)-AVERAGE(P14:R14) -> -0.09698141174 | AO14: =AVERAGE(AK14:AM14)-AVERAGE(AB14:AD14) -> -1.995383021
A15: Vitvi17g00058 | B15: NA | C15: NA | D15: NA | E15: NA | F15: NA | G15: NA | H15: NA | I15: NA | J15: 52.43393722 | K15: -2.038796363 | L15: 0.3720103193 | M15: -5.480483356 | N15: 4.24E-08 | O15: 9.85E-07 | P15: 3.694293531 | Q15: 3.43678122 | R15: 3.294918294 | S15: 2.001792525 | T15: 2.900904119 | U15: 3.26492256 | V15: 2.095376319 | W15: 3.391369033 | X15: 3.126993033 | Y15: 3.432219626 | Z15: 3.350472927 | AA15: 3.569659559 | AB15: 3.070535323 | AC15: 3.864575014 | AD15: 3.829471875 | AE15: 4.393661048 | AF15: 4.563262596 | AG15: 4.23593941 | AH15: 4.322757481 | AI15: 4.231784036 | AJ15: 3.956664954 | AK15: 3.001491539 | AL15: 3.287105521 | AM15: 3.300534244 | AN15: =AVERAGE(Y15:AA15)-AVERAGE(P15:R15) -> -0.02454697749 | AO15: =AVERAGE(AK15:AM15)-AVERAGE(AB15:AD15) -> -0.3918169698
A16: Vitvi08g00138 | B16: NA | C16: NA | D16: NA | E16: NA | F16: NA | G16: NA | H16: NA | I16: NA | J16: 37764.70248 | K16: -0.6195227554 | L16: 0.1143051138 | M16: -5.419904104 | N16: 5.96E-08 | O16: 1.35E-06 | P16: 13.21406759 | Q16: 12.94372247 | R16: 12.82892332 | S16: 12.63303725 | T16: 12.57937916 | U16: 13.1706948 | V16: 13.07719844 | W16: 12.89890692 | X16: 12.78768069 | Y16: 12.90492649 | Z16: 12.74471775 | AA16: 12.65930352 | AB16: 12.61985861 | AC16: 13.01058101 | AD16: 12.94795871 | AE16: 12.88786665 | AF16: 13.02852964 | AG16: 13.19046577 | AH16: 13.18937082 | AI16: 13.18362423 | AJ16: 13.06731186 | AK16: 12.74303049 | AL16: 12.93396602 | AM16: 13.13865199 | AN16: =AVERAGE(Y16:AA16)-AVERAGE(P16:R16) -> -0.2259218755 | AO16: =AVERAGE(AK16:AM16)-AVERAGE(AB16:AD16) -> 0.07908338981
A17: Vitvi09g00541 | B17: NA | C17: NA | D17: NA | E17: NA | F17: NA | G17: NA | H17: NA | I17: NA | J17: 63.6278566 | K17: -1.65112015 | L17: 0.313291236 | M17: -5.270240467 | N17: 1.36E-07 | O17: 2.86E-06 | P17: 5.533857517 | Q17: 5.519131795 | R17: 5.011879291 | S17: 5.104841555 | T17: 5.10898908 | U17: 5.121162842 | V17: 4.829138907 | W17: 5.160991718 | X17: 4.19827667 | Y17: 3.90199864 | Z17: 3.714066518 | AA17: 3.390685543 | AB17: 5.847244735 | AC17: 6.461484631 | AD17: 5.868815845 | AE17: 6.823411537 | AF17: 6.250160411 | AG17: 6.397115699 | AH17: 7.034890185 | AI17: 6.056423363 | AJ17: 6.545000718 | AK17: 5.594977231 | AL17: 5.972857842 | AM17: 5.715496027 | AN17: =AVERAGE(Y17:AA17)-AVERAGE(P17:R17) -> -1.686039301 | AO17: =AVERAGE(AK17:AM17)-AVERAGE(AB17:AD17) -> -0.2980713701
A18: Vitvi08g02187 | B18: NA | C18: NA | D18: NA | E18: NA | F18: NA | G18: NA | H18: NA | I18: NA | J18: 121.443406 | K18: -1.117613335 | L18: 0.2219035872 | M18: -5.036481602 | N18: 4.74E-07 | O18: 8.88E-06 | P18: 6.898533178 | Q18: 7.266548139 | R18: 6.804059115 | S18: 6.844324516 | T18: 6.850555179 | U18: 7.020957698 | V18: 6.995715262 | W18: 7.101187401 | X18: 6.853821116 | Y18: 6.678803134 | Z18: 6.994353073 | AA18: 7.739817648 | AB18: 7.288144336 | AC18: 7.259636232 | AD18: 7.542904556 | AE18: 8.184182864 | AF18: 7.725631678 | AG18: 7.756091169 | AH18: 7.463716189 | AI18: 7.462436457 | AJ18: 7.156412845 | AK18: 6.913176102 | AL18: 7.153596915 | AM18: 7.262617484 | AN18: =AVERAGE(Y18:AA18)-AVERAGE(P18:R18) -> 0.1479444747 | AO18: =AVERAGE(AK18:AM18)-AVERAGE(AB18:AD18) -> -0.2537648744
A19: Vitvi19g00777 | B19: NA | C19: NA | D19: NA | E19: NA | F19: NA | G19: NA | H19: NA | I19: NA | J19: 37.39073083 | K19: -1.908234376 | L19: 0.4043569773 | M19: -4.719182511 | N19: 2.37E-06 | O19: 3.77E-05 | P19: 5.323787339 | Q19: 0 | R19: 3.294004685 | S19: 5.35541983 | T19: 4.414142029 | U19: 4.365950535 | V19: 5.13266818 | W19: 6.07717188 | X19: 5.152060149 | Y19: 5.030325163 | Z19: 4.58876856 | AA19: 5.118635107 | AB19: 6.227621435 | AC19: 5.789811822 | AD19: 7.378351427 | AE19: 7.579181747 | AF19: 7.241286095 | AG19: 6.763407802 | AH19: 8.12491264 | AI19: 8.132422794 | AJ19: 6.978181183 | AK19: 5.841454106 | AL19: 6.849915404 | AM19: 4.551282362 | AN19: =AVERAGE(Y19:AA19)-AVERAGE(P19:R19) -> 2.039978935 | AO19: =AVERAGE(AK19:AM19)-AVERAGE(AB19:AD19) -> -0.7177109372
A20: Vitvi06g00285 | B20: NA | C20: AT3G45230.1 | D20: NA | E20: NA | F20: NA | G20: NA | H20: hydroxyproline-rich glycoprotein family protein | I20: NA | J20: 23.62553595 | K20: -2.612862711 | L20: 0.5889415678 | M20: -4.436539809 | N20: 9.14E-06 | O20: 0.0001268525602 | P20: 3.025640033 | Q20: 3.481898149 | R20: 2.531152985 | S20: 2.373120489 | T20: 3.419466264 | U20: 1.569262967 | V20: 0.8998000093 | W20: 0.8962856499 | X20: 1.795134374 | Y20: 1.224009339 | Z20: 1.633102799 | AA20: 1.249924054 | AB20: 3.405095693 | AC20: 3.569651021 | AD20: 2.248421991 | AE20: 3.15343566 | AF20: 3.219688476 | AG20: 1.94964211 | AH20: 2.600396655 | AI20: 2.08280878 | AJ20: 2.227992184 | AK20: 1.968693456 | AL20: 1.96596031 | AM20: 1.374974152 | AN20: =AVERAGE(Y20:AA20)-AVERAGE(P20:R20) -> -1.643884992 | AO20: =AVERAGE(AK20:AM20)-AVERAGE(AB20:AD20) -> -1.304513596
A21: Vitvi01g01306 | B21: NA | C21: NA | D21: NA | E21: NA | F21: NA | G21: NA | H21: NA | I21: NA | J21: 707.3936711 | K21: 0.7123525619 | L21: 0.1607935143 | M21: 4.430231934 | N21: 9.41E-06 | O21: 0.0001300461467 | P21: 6.56290433 | Q21: 7.246311325 | R21: 7.268487301 | S21: 7.443881555 | T21: 7.523460193 | U21: 8.121319111 | V21: 7.706889738 | W21: 7.784193234 | X21: 7.539639698 | Y21: 7.426022121 | Z21: 7.262280245 | AA21: 6.103205253 | AB21: 9.634594781 | AC21: 7.198561581 | AD21: 6.656074163 | AE21: 6.726244077 | AF21: 6.304119621 | AG21: 6.92043397 | AH21: 6.736206646 | AI21: 6.84146351 | AJ21: 6.834176507 | AK21: 6.291648801 | AL21: 5.657400667 | AM21: 5.961997356 | AN21: =AVERAGE(Y21:AA21)-AVERAGE(P21:R21) -> -0.09539844524 | AO21: =AVERAGE(AK21:AM21)-AVERAGE(AB21:AD21) -> -1.859394567
A22: Vitvi12g00728 | B22: NA | C22: NA | D22: NA | E22: NA | F22: NA | G22: NA | H22: NA | I22: NA | J22: 76.87842834 | K22: -1.258945851 | L22: 0.2925113509 | M22: -4.30392136 | N22: 1.68E-05 | O22: 0.0002187682645 | P22: 6.118755376 | Q22: 6.26864818 | R22: 6.035475567 | S22: 5.690242239 | T22: 5.027629257 | U22: 5.716222513 | V22: 5.780536339 | W22: 6.431564019 | X22: 5.17448775 | Y22: 5.564968166 | Z22: 5.940871424 | AA22: 6.198799111 | AB22: 6.262482765 | AC22: 6.289538553 | AD22: 7.261380634 | AE22: 7.268019984 | AF22: 6.875651725 | AG22: 7.158833641 | AH22: 7.188381558 | AI22: 6.793090931 | AJ22: 6.966885109 | AK22: 6.676495227 | AL22: 6.740809964 | AM22: 6.25519699 | AN22: =AVERAGE(Y22:AA22)-AVERAGE(P22:R22) -> -0.239413474 | AO22: =AVERAGE(AK22:AM22)-AVERAGE(AB22:AD22) -> -0.04696659027
A23: Vitvi09g00970 | B23: NA | C23: NA | D23: NA | E23: NA | F23: NA | G23: NA | H23: NA | I23: NA | J23: 104.1711337 | K23: -0.9930739296 | L23: 0.2326690052 | M23: -4.268183159 | N23: 1.97E-05 | O23: 0.0002526475186 | P23: 6.21293949 | Q23: 6.273966998 | R23: 6.042498949 | S23: 7.233444018 | T23: 6.149873209 | U23: 6.425553003 | V23: 6.428888981 | W23: 6.569623529 | X23: 6.122651 | Y23: 6.735447609 | Z23: 6.86327544 | AA23: 7.167368215 | AB23: 7.538797268 | AC23: 7.538958505 | AD23: 7.108342091 | AE23: 7.971797569 | AF23: 7.54921518 | AG23: 7.523742024 | AH23: 7.671265057 | AI23: 7.767755356 | AJ23: 7.849933805 | AK23: 7.779151689 | AL23: 7.775810195 | AM23: 7.493821657 | AN23: =AVERAGE(Y23:AA23)-AVERAGE(P23:R23) -> 0.7455619424 | AO23: =AVERAGE(AK23:AM23)-AVERAGE(AB23:AD23) -> 0.2875618922
A24: Vitvi07g02701 | B24: NA | C24: NA | D24: NA | E24: NA | F24: NA | G24: NA | H24: NA | I24: NA | J24: 41.66519379 | K24: 1.662996859 | L24: 0.4048058352 | M24: 4.108134603 | N24: 3.99E-05 | O24: 0.0004696303367 | P24: 7.143586285 | Q24: 7.783872983 | R24: 7.419968731 | S24: 7.421293343 | T24: 7.717237128 | U24: 7.144617997 | V24: 6.8549702 | W24: 7.260711493 | X24: 6.170395528 | Y24: 7.388367251 | Z24: 7.210627381 | AA24: 7.762445344 | AB24: 5.077495735 | AC24: 6.595174743 | AD24: 5.335707595 | AE24: 4.386983393 | AF24: 5.317832746 | AG24: 5.335046633 | AH24: 5.523870426 | AI24: 5.015890322 | AJ24: 5.947850422 | AK24: 5.580806386 | AL24: 5.354723512 | AM24: 5.732733478 | AN24: =AVERAGE(Y24:AA24)-AVERAGE(P24:R24) -> 0.004670658795 | AO24: =AVERAGE(AK24:AM24)-AVERAGE(AB24:AD24) -> -0.1133715664
A25: Vitvi08g00395 | B25: NA | C25: NA | D25: NA | E25: NA | F25: NA | G25: NA | H25: NA | I25: NA | J25: 40.8353396 | K25: -1.381687246 | L25: 0.3485196889 | M25: -3.964445309 | N25: 7.36E-05 | O25: 0.0008033904768 | P25: 3.993392732 | Q25: 3.50905448 | R25: 4.86690535 | S25: 3.848632478 | T25: 4.183986401 | U25: 4.039498331 | V25: 4.28423143 | W25: 4.263914371 | X25: 4.119234705 | Y25: 5.141493732 | Z25: 4.6112785 | AA25: 5.308526085 | AB25: 5.127389579 | AC25: 4.967102564 | AD25: 5.628078484 | AE25: 5.455154406 | AF25: 4.951395252 | AG25: 5.511008622 | AH25: 5.16446649 | AI25: 5.26094782 | AJ25: 5.174112978 | AK25: 5.843726144 | AL25: 5.699032668 | AM25: 5.495439044 | AN25: =AVERAGE(Y25:AA25)-AVERAGE(P25:R25) -> 0.8973152517 | AO25: =AVERAGE(AK25:AM25)-AVERAGE(AB25:AD25) -> 0.4385424097
A26: Vitvi03g01547 | B26: NA | C26: AT2G26520.1 | D26: NA | E26: NA | F26: NA | G26: NA | H26: transmembrane protein | I26: NA | J26: 30.57268157 | K26: -1.631873936 | L26: 0.4203762538 | M26: -3.881936531 | N26: 0.0001036279273 | O26: 0.001087401065 | P26: 2.652201315 | Q26: 3.495631639 | R26: 2.404504886 | S26: 2.574155013 | T26: 3.401222751 | U26: 2.493360766 | V26: 2.597070794 | W26: 2.191412592 | X26: 2.485742077 | Y26: 1.505602734 | Z26: 2.471677343 | AA26: 1.252624717 | AB26: 2.68543517 | AC26: 4.02831185 | AD26: 3.737655167 | AE26: 3.11878165 | AF26: 3.870177399 | AG26: 3.307981535 | AH26: 3.717532475 | AI26: 3.806031256 | AJ26: 3.49944782 | AK26: 3.910833085 | AL26: 3.778284442 | AM26: 3.956902258 | AN26: =AVERAGE(Y26:AA26)-AVERAGE(P26:R26) -> -1.107477682 | AO26: =AVERAGE(AK26:AM26)-AVERAGE(AB26:AD26) -> 0.3982058659
A27: Vitvi07g00828 | B27: NA | C27: NA | D27: NA | E27: NA | F27: NA | G27: NA | H27: NA | I27: NA | J27: 185.9898933 | K27: -0.7485389315 | L27: 0.1932809205 | M27: -3.872803015 | N27: 0.0001075907843 | O27: 0.001123090512 | P27: 6.805933675 | Q27: 6.494889635 | R27: 6.788176887 | S27: 6.846851935 | T27: 6.412842019 | U27: 6.551302478 | V27: 6.407429751 | W27: 6.669201012 | X27: 6.16377159 | Y27: 6.598641242 | Z27: 6.755622789 | AA27: 7.18185886 | AB27: 7.121997519 | AC27: 7.368324413 | AD27: 7.518363273 | AE27: 7.839109639 | AF27: 7.271057656 | AG27: 7.419200538 | AH27: 7.668912634 | AI27: 7.260531106 | AJ27: 7.403462829 | AK27: 7.314261461 | AL27: 7.699303439 | AM27: 7.305759095 | AN27: =AVERAGE(Y27:AA27)-AVERAGE(P27:R27) -> 0.1490408982 | AO27: =AVERAGE(AK27:AM27)-AVERAGE(AB27:AD27) -> 0.1035462635
A28: Vitvi01g00804 | B28: NA | C28: AT5G48050.1 | D28: NA | E28: NA | F28: NA | G28: NA | H28: Copia-like polyprotein/retrotransposon | I28: NA | J28: 2338.984973 | K28: -0.6422661417 | L28: 0.1676001434 | M28: -3.832133605 | N28: 0.0001270367134 | O28: 0.001300234123 | P28: 9.960540112 | Q28: 9.968453555 | R28: 9.483753808 | S28: 9.603183279 | T28: 9.442923224 | U28: 9.346942629 | V28: 9.393202655 | W28: 9.662440945 | X28: 8.985489287 | Y28: 9.095472473 | Z28: 9.293607478 | AA28: 9.433289801 | AB28: 9.173404828 | AC28: 9.64680084 | AD28: 9.870069421 | AE28: 10.11711375 | AF28: 9.646112883 | AG28: 9.949655365 | AH28: 9.995859688 | AI28: 9.768527612 | AJ28: 9.899491063 | AK28: 9.933207593 | AL28: 10.05840602 | AM28: 9.736692001 | AN28: =AVERAGE(Y28:AA28)-AVERAGE(P28:R28) -> -0.5301259077 | AO28: =AVERAGE(AK28:AM28)-AVERAGE(AB28:AD28) -> 0.3460101757
A29: Vitvi18g02203 | B29: NA | C29: NA | D29: NA | E29: NA | F29: NA | G29: NA | H29: NA | I29: NA | J29: 280.5252252 | K29: 0.754379499 | L29: 0.1976559593 | M29: 3.816629166 | N29: 0.0001352872667 | O29: 0.001377550066 | P29: 8.673908526 | Q29: 8.952859004 | R29: 8.457234693 | S29: 8.22275771 | T29: 8.351511862 | U29: 8.250847271 | V29: 7.575499754 | W29: 7.841247524 | X29: 7.164253936 | Y29: 6.15592888 | Z29: 6.546945467 | AA29: 6.541134636 | AB29: 6.894538398 | AC29: 7.957151715 | AD29: 6.996024129 | AE29: 6.032881816 | AF29: 6.737334907 | AG29: 6.47233872 | AH29: 5.253180613 | AI29: 5.561978889 | AJ29: 6.782193321 | AK29: 4.065531496 | AL29: 4.514967783 | AM29: 3.826290112 | AN29: =AVERAGE(Y29:AA29)-AVERAGE(P29:R29) -> -2.279997747 | AO29: =AVERAGE(AK29:AM29)-AVERAGE(AB29:AD29) -> -3.14697495
A30: Vitvi01g01694 | B30: NA | C30: NA | D30: NA | E30: NA | F30: NA | G30: NA | H30: NA | I30: NA | J30: 13.78480375 | K30: 2.701182101 | L30: 0.7124949583 | M30: 3.7911596 | N30: 0.0001499455555 | O30: 0.001502461297 | P30: 5.610398879 | Q30: 6.022929464 | R30: 5.656571218 | S30: 5.304701004 | T30: 4.811506482 | U30: 6.221243243 | V30: 5.465331787 | W30: 6.249672689 | X30: 5.711918799 | Y30: 6.46428283 | Z30: 6.388679454 | AA30: 5.687843963 | AB30: 3.170398359 | AC30: 4.101209236 | AD30: 4.379460787 | AE30: 2.911729568 | AF30: 2.492877225 | AG30: 3.120463607 | AH30: 4.416351312 | AI30: 3.427305231 | AJ30: 4.696823676 | AK30: 4.621144546 | AL30: 3.540278297 | AM30: 4.340029775 | AN30: =AVERAGE(Y30:AA30)-AVERAGE(P30:R30) -> 0.4169688953 | AO30: =AVERAGE(AK30:AM30)-AVERAGE(AB30:AD30) -> 0.283461412
A31: Vitvi15g00409 | B31: NA | C31: NA | D31: NA | E31: NA | F31: NA | G31: NA | H31: NA | I31: NA | J31: 227.961418 | K31: -0.6451195278 | L31: 0.1781391267 | M31: -3.621436458 | N31: 0.0002929717684 | O31: 0.002669271364 | P31: 6.752518103 | Q31: 6.492198105 | R31: 6.30402549 | S31: 6.487627909 | T31: 6.715898496 | U31: 6.660031576 | V31: 6.902333167 | W31: 6.788338597 | X31: 7.009720438 | Y31: 6.628247086 | Z31: 6.895015259 | AA31: 6.616405038 | AB31: 6.842741984 | AC31: 6.810119276 | AD31: 7.295661252 | AE31: 7.54497912 | AF31: 7.472044493 | AG31: 7.231669535 | AH31: 7.563231265 | AI31: 7.681671823 | AJ31: 7.696732283 | AK31: 7.807564807 | AL31: 7.911171256 | AM31: 7.650781204 | AN31: =AVERAGE(Y31:AA31)-AVERAGE(P31:R31) -> 0.196975228 | AO31: =AVERAGE(AK31:AM31)-AVERAGE(AB31:AD31) -> 0.8069982514
A32: Vitvi10g01842 | B32: NA | C32: AT1G06475.1 | D32: NA | E32: NA | F32: NA | G32: NA | H32: transmembrane protein | I32: NA | J32: 21.20564427 | K32: -1.696581433 | L32: 0.4730363172 | M32: -3.586577544 | N32: 0.0003350464624 | O32: 0.002993099876 | P32: 3.177919109 | Q32: 3.806338942 | R32: 2.793001537 | S32: 3.693276068 | T32: 3.157970819 | U32: 2.05241348 | V32: 2.638515608 | W32: 2.904683151 | X32: 3.014661649 | Y32: 4.124593191 | Z32: 3.620527993 | AA32: 3.868303984 | AB32: 3.567423301 | AC32: 4.117428823 | AD32: 4.140217181 | AE32: 4.342620758 | AF32: 4.020645878 | AG32: 3.950613309 | AH32: 4.48605222 | AI32: 4.495321933 | AJ32: 4.635726208 | AK32: 4.137780488 | AL32: 3.908644022 | AM32: 3.942023288 | AN32: =AVERAGE(Y32:AA32)-AVERAGE(P32:R32) -> 0.6120551934 | AO32: =AVERAGE(AK32:AM32)-AVERAGE(AB32:AD32) -> 0.05445949771
A33: Vitvi03g00105 | B33: NA | C33: NA | D33: NA | E33: NA | F33: NA | G33: NA | H33: NA | I33: NA | J33: 723.5682192 | K33: -0.7808686842 | L33: 0.2187898254 | M33: -3.569035639 | N33: 0.0003582976878 | O33: 0.003168636649 | P33: 9.882471457 | Q33: 10.10966438 | R33: 10.19724787 | S33: 10.09050294 | T33: 10.1341373 | U33: 9.774424061 | V33: 9.845928825 | W33: 9.378440942 | X33: 9.683498058 | Y33: 9.087375612 | Z33: 9.470773725 | AA33: 9.536371519 | AB33: 10.1721391 | AC33: 10.40331558 | AD33: 10.01399863 | AE33: 10.07021091 | AF33: 10.65859016 | AG33: 9.761414477 | AH33: 10.09342628 | AI33: 10.25123793 | AJ33: 9.720676023 | AK33: 9.777949849 | AL33: 9.83010897 | AM33: 9.57420994 | AN33: =AVERAGE(Y33:AA33)-AVERAGE(P33:R33) -> -0.6982876174 | AO33: =AVERAGE(AK33:AM33)-AVERAGE(AB33:AD33) -> -0.4690615142
A34: Vitvi06g00989 | B34: NA | C34: NA | D34: NA | E34: NA | F34: NA | G34: NA | H34: NA | I34: NA | J34: 47.28181353 | K34: 1.174262726 | L34: 0.3341784198 | M34: 3.513879583 | N34: 0.0004416129567 | O34: 0.003783730179 | P34: 5.824018351 | Q34: 5.666643425 | R34: 5.047549918 | S34: 5.045498971 | T34: 4.617773151 | U34: 5.286055319 | V34: 5.606031016 | W34: 5.418503856 | X34: 5.347100249 | Y34: 5.108936 | Z34: 5.161606684 | AA34: 5.461621812 | AB34: 3.789586118 | AC34: 4.874557949 | AD34: 4.665179551 | AE34: 4.362871811 | AF34: 4.598171911 | AG34: 4.480219527 | AH34: 4.401703681 | AI34: 4.32432479 | AJ34: 4.373958943 | AK34: 4.670479372 | AL34: 4.349044767 | AM34: 4.724564799 | AN34: =AVERAGE(Y34:AA34)-AVERAGE(P34:R34) -> -0.2686823991 | AO34: =AVERAGE(AK34:AM34)-AVERAGE(AB34:AD34) -> 0.1382551068
A35: Vitvi14g00923 | B35: NA | C35: NA | D35: NA | E35: NA | F35: NA | G35: NA | H35: NA | I35: NA | J35: 78.74883257 | K35: 1.149267862 | L35: 0.3312289494 | M35: 3.469708382 | N35: 0.0005210237262 | O35: 0.004362160576 | P35: 5.25465988 | Q35: 5.493150333 | R35: 5.146103607 | S35: 5.452386642 | T35: 5.066378542 | U35: 6.117257049 | V35: 5.945337029 | W35: 6.327480749 | X35: 5.377317979 | Y35: 5.938383312 | Z35: 5.269855267 | AA35: 4.292802338 | AB35: 6.93844922 | AC35: 4.991181397 | AD35: 5.13577955 | AE35: 4.092167315 | AF35: 4.297713263 | AG35: 5.207446309 | AH35: 4.330190765 | AI35: 5.094243281 | AJ35: 4.947777024 | AK35: 4.54901056 | AL35: 3.979526273 | AM35: 4.634979136 | AN35: =AVERAGE(Y35:AA35)-AVERAGE(P35:R35) -> -0.1309576346 | AO35: =AVERAGE(AK35:AM35)-AVERAGE(AB35:AD35) -> -1.300631399
A36: Vitvi05g02121 | B36: NA | C36: AT2G43060.1 | D36: "IBH1" | E36: NA | F36: "IBH1" | G36: "IBH1" | H36: ILI1 binding bHLH 1 | I36: NA | J36: 546.3356313 | K36: -0.6276126701 | L36: 0.1818687071 | M36: -3.450910715 | N36: 0.0005586983655 | O36: 0.004640324397 | P36: 6.762807805 | Q36: 7.134804955 | R36: 6.865896384 | S36: 6.663843525 | T36: 6.745145599 | U36: 6.757423137 | V36: 6.7865521 | W36: 6.574803097 | X36: 6.996084673 | Y36: 6.517750571 | Z36: 6.685014591 | AA36: 6.845435175 | AB36: 6.652907741 | AC36: 6.568768214 | AD36: 7.130686963 | AE36: 7.266097886 | AF36: 6.873144524 | AG36: 7.179363179 | AH36: 7.150380079 | AI36: 7.137139326 | AJ36: 7.098479372 | AK36: 7.153286642 | AL36: 7.351676564 | AM36: 7.246556045 | AN36: =AVERAGE(Y36:AA36)-AVERAGE(P36:R36) -> -0.2384362695 | AO36: =AVERAGE(AK36:AM36)-AVERAGE(AB36:AD36) -> 0.4663854446
A37: Vitvi11g00941 | B37: NA | C37: NA | D37: NA | E37: NA | F37: NA | G37: NA | H37: NA | I37: NA | J37: 65.77168016 | K37: -0.9692445344 | L37: 0.2825664457 | M37: -3.430147313 | N37: 0.0006032536402 | O37: 0.004967413165 | P37: 6.010699314 | Q37: 5.969885545 | R37: 5.742545791 | S37: 4.94574183 | T37: 5.325006956 | U37: 5.66267528 | V37: 4.443645652 | W37: 4.761820995 | X37: 4.936324614 | Y37: 4.954897614 | Z37: 4.541622646 | AA37: 3.809674728 | AB37: 5.932704741 | AC37: 6.154845348 | AD37: 5.965040372 | AE37: 5.949671213 | AF37: 5.836894282 | AG37: 5.691801454 | AH37: 5.791400952 | AI37: 4.911819186 | AJ37: 6.040103174 | AK37: 4.531063421 | AL37: 5.351872097 | AM37: 5.164615741 | AN37: =AVERAGE(Y37:AA37)-AVERAGE(P37:R37) -> -1.472311888 | AO37: =AVERAGE(AK37:AM37)-AVERAGE(AB37:AD37) -> -1.001679734
A38: Vitvi19g01102 | B38: NA | C38: NA | D38: NA | E38: NA | F38: NA | G38: NA | H38: NA | I38: NA | J38: 91.80368743 | K38: -0.9530643312 | L38: 0.2778846653 | M38: -3.429711856 | N38: 0.0006042225311 | O38: 0.004973529322 | P38: 4.530578494 | Q38: 4.179784724 | R38: 4.235626962 | S38: 4.755073678 | T38: 3.836591707 | U38: 4.348415046 | V38: 4.032263126 | W38: 4.64702098 | X38: 4.10307646 | Y38: 4.509412411 | Z38: 4.162993126 | AA38: 5.036938767 | AB38: 4.604594811 | AC38: 4.53800216 | AD38: 4.584373133 | AE38: 5.315737136 | AF38: 4.760046896 | AG38: 4.915597174 | AH38: 4.569819615 | AI38: 4.87820163 | AJ38: 5.151608388 | AK38: 5.041539021 | AL38: 4.962146597 | AM38: 5.299170415 | AN38: =AVERAGE(Y38:AA38)-AVERAGE(P38:R38) -> 0.2544513747 | AO38: =AVERAGE(AK38:AM38)-AVERAGE(AB38:AD38) -> 0.52529531
A39: Vitvi02g01574 | B39: NA | C39: NA | D39: NA | E39: NA | F39: NA | G39: NA | H39: NA | I39: NA | J39: 126.9022462 | K39: -0.7297783839 | L39: 0.2136267507 | M39: -3.41613764 | N39: 0.0006351613401 | O39: 0.005183576443 | P39: 5.551066126 | Q39: 5.555819045 | R39: 5.720150871 | S39: 5.14431445 | T39: 5.319889871 | U39: 5.475825462 | V39: 5.302267634 | W39: 5.13170209 | X39: 5.147114717 | Y39: 5.854367712 | Z39: 5.777581208 | AA39: 5.877091236 | AB39: 5.628443465 | AC39: 5.779557235 | AD39: 5.860741325 | AE39: 6.330488634 | AF39: 5.803787642 | AG39: 6.19671245 | AH39: 6.282508599 | AI39: 5.802554365 | AJ39: 6.345097112 | AK39: 6.661189705 | AL39: 6.363648671 | AM39: 6.36971235 | AN39: =AVERAGE(Y39:AA39)-AVERAGE(P39:R39) -> 0.2273347047 | AO39: =AVERAGE(AK39:AM39)-AVERAGE(AB39:AD39) -> 0.7086029005
A40: Vitvi09g01990 | B40: NA | C40: AT5G41685.1 | D40: NA | E40: NA | F40: NA | G40: NA | H40: Mitochondrial outer membrane translocase complex%2C subunit Tom7 | I40: NA | J40: 523.1140107 | K40: -0.4851570057 | L40: 0.1447706803 | M40: -3.351210375 | N40: 0.0008045915317 | O40: 0.006329108065 | P40: 7.927873417 | Q40: 8.089420597 | R40: 7.795367903 | S40: 8.103198155 | T40: 8.109401733 | U40: 8.076494998 | V40: 8.058141991 | W40: 8.207324413 | X40: 8.002543897 | Y40: 7.730996344 | Z40: 7.985148149 | AA40: 8.215731763 | AB40: 7.762955951 | AC40: 8.032007751 | AD40: 8.234133235 | AE40: 8.370891704 | AF40: 8.175802975 | AG40: 8.092628764 | AH40: 8.051879392 | AI40: 8.242186938 | AJ40: 8.059121536 | AK40: 8.372194364 | AL40: 8.317894874 | AM40: 8.169017583 | AN40: =AVERAGE(Y40:AA40)-AVERAGE(P40:R40) -> 0.03973811296 | AO40: =AVERAGE(AK40:AM40)-AVERAGE(AB40:AD40) -> 0.2766699611
A41: Vitvi12g01512 | B41: NA | C41: NA | D41: NA | E41: NA | F41: NA | G41: NA | H41: NA | I41: NA | J41: 193.5910633 | K41: -0.5982131297 | L41: 0.182467536 | M41: -3.278463352 | N41: 0.00104373916 | O41: 0.007858952099 | P41: 4.203797747 | Q41: 4.265969153 | R41: 4.629976325 | S41: 4.808668362 | T41: 4.463607792 | U41: 4.420175299 | V41: 4.306318144 | W41: 4.520619562 | X41: 4.217046854 | Y41: 4.353372924 | Z41: 4.201709138 | AA41: 4.741771602 | AB41: 4.527813916 | AC41: 4.797412512 | AD41: 4.841208047 | AE41: 5.278400003 | AF41: 4.873682911 | AG41: 4.954949009 | AH41: 5.212782458 | AI41: 5.249223337 | AJ41: 5.126447684 | AK41: 5.348448485 | AL41: 5.287460842 | AM41: 5.143361943 | AN41: =AVERAGE(Y41:AA41)-AVERAGE(P41:R41) -> 0.06570347965 | AO41: =AVERAGE(AK41:AM41)-AVERAGE(AB41:AD41) -> 0.5376122653
A42: Vitvi18g00166 | B42: NA | C42: NA | D42: NA | E42: NA | F42: NA | G42: NA | H42: NA | I42: NA | J42: 4988.77864 | K42: 0.6108025652 | L42: 0.1881286236 | M42: 3.246728507 | N42: 0.001167396921 | O42: 0.008607350952 | P42: 10.27398968 | Q42: 10.64430097 | R42: 11.13422151 | S42: 10.8511193 | T42: 10.94336777 | U42: 11.93525917 | V42: 11.49598867 | W42: 11.20075928 | X42: 11.19759594 | Y42: 11.4981345 | Z42: 10.93896559 | AA42: 9.645011848 | AB42: 14.06731085 | AC42: 10.43860641 | AD42: 10.36776324 | AE42: 10.0497174 | AF42: 9.971821371 | AG42: 10.73769811 | AH42: 10.16493027 | AI42: 10.96638566 | AJ42: 10.4886312 | AK42: 10.34280821 | AL42: 9.741086963 | AM42: 10.03394415 | AN42: =AVERAGE(Y42:AA42)-AVERAGE(P42:R42) -> 0.009866597485 | AO42: =AVERAGE(AK42:AM42)-AVERAGE(AB42:AD42) -> -1.585280391
A43: Vitvi01g00866 | B43: NA | C43: NA | D43: NA | E43: NA | F43: NA | G43: NA | H43: NA | I43: NA | J43: 35.77453218 | K43: -1.355391003 | L43: 0.4281514942 | M43: -3.16568089 | N43: 0.001547204274 | O43: 0.01089202849 | P43: 4.488183437 | Q43: 4.626644565 | R43: 4.905544911 | S43: 3.427658081 | T43: 3.641142695 | U43: 4.598079021 | V43: 4.65263244 | W43: 3.319263275 | X43: 4.241215092 | Y43: 4.84578205 | Z43: 4.464334203 | AA43: 4.195060773 | AB43: 4.263575397 | AC43: 4.594115813 | AD43: 5.131695787 | AE43: 4.667333707 | AF43: 5.361947659 | AG43: 4.978436595 | AH43: 4.85425023 | AI43: 5.038712106 | AJ43: 4.864398562 | AK43: 4.921621976 | AL43: 5.36149984 | AM43: 4.856827626 | AN43: =AVERAGE(Y43:AA43)-AVERAGE(P43:R43) -> -0.1717319625 | AO43: =AVERAGE(AK43:AM43)-AVERAGE(AB43:AD43) -> 0.3835208145
A44: Vitvi02g01597 | B44: NA | C44: NA | D44: NA | E44: NA | F44: NA | G44: NA | H44: NA | I44: NA | J44: 117.0434061 | K44: 0.739666336 | L44: 0.2357217894 | M44: 3.137878504 | N44: 0.001701753994 | O44: 0.0118107849 | P44: 4.145384742 | Q44: 3.874286474 | R44: 4.080383497 | S44: 4.324861159 | T44: 4.530878514 | U44: 4.537197185 | V44: 4.802369385 | W44: 4.818760133 | X44: 4.473016131 | Y44: 4.597192521 | Z44: 4.748504141 | AA44: 4.78192419 | AB44: 3.384980822 | AC44: 3.767660368 | AD44: 3.639363068 | AE44: 3.933217659 | AF44: 3.380827653 | AG44: 3.719481235 | AH44: 4.120558841 | AI44: 3.963658546 | AJ44: 4.062922745 | AK44: 4.198007494 | AL44: 3.759227839 | AM44: 3.746064826 | AN44: =AVERAGE(Y44:AA44)-AVERAGE(P44:R44) -> 0.6758553794 | AO44: =AVERAGE(AK44:AM44)-AVERAGE(AB44:AD44) -> 0.3037653001
A45: Vitvi11g00003 | B45: NA | C45: NA | D45: NA | E45: NA | F45: NA | G45: NA | H45: NA | I45: NA | J45: 24.5702731 | K45: 1.44803837 | L45: 0.4644230328 | M45: 3.117929707 | N45: 0.001821262356 | O45: 0.01247488143 | P45: 4.317994534 | Q45: 4.002029168 | R45: 3.754072567 | S45: 4.106490193 | T45: 4.004949225 | U45: 4.101049059 | V45: 3.785080269 | W45: 4.394725595 | X45: 4.294376981 | Y45: 4.206775975 | Z45: 4.223583092 | AA45: 4.335258463 | AB45: 2.793565758 | AC45: 3.052488858 | AD45: 3.436941203 | AE45: 2.783978777 | AF45: 2.924998934 | AG45: 2.967764197 | AH45: 3.262227486 | AI45: 2.940725006 | AJ45: 2.896554871 | AK45: 3.778667102 | AL45: 3.430255926 | AM45: 3.485409019 | AN45: =AVERAGE(Y45:AA45)-AVERAGE(P45:R45) -> 0.2305070869 | AO45: =AVERAGE(AK45:AM45)-AVERAGE(AB45:AD45) -> 0.4704454092
A46: Vitvi07g02682 | B46: NA | C46: NA | D46: NA | E46: NA | F46: NA | G46: NA | H46: NA | I46: NA | J46: 87.88484481 | K46: -1.317061884 | L46: 0.4226182774 | M46: -3.116433799 | N46: 0.001830527754 | O46: 0.0125227457 | P46: 3.03448423 | Q46: 3.066965883 | R46: 2.668194791 | S46: 4.641522742 | T46: 3.77705033 | U46: 4.304018896 | V46: 3.669284732 | W46: 4.597542578 | X46: 4.821110229 | Y46: 3.696865814 | Z46: 4.090000573 | AA46: 3.884053766 | AB46: 4.949073283 | AC46: 4.109771736 | AD46: 5.146979835 | AE46: 6.102162378 | AF46: 5.101504835 | AG46: 4.323257236 | AH46: 5.915268537 | AI46: 5.705995294 | AJ46: 4.989319016 | AK46: 3.454144768 | AL46: 4.259848526 | AM46: 3.902736011 | AN46: =AVERAGE(Y46:AA46)-AVERAGE(P46:R46) -> 0.9670917494 | AO46: =AVERAGE(AK46:AM46)-AVERAGE(AB46:AD46) -> -0.8630318496
A47: Vitvi08g00288 | B47: NA | C47: NA | D47: NA | E47: NA | F47: NA | G47: NA | H47: NA | I47: NA | J47: 73.58391032 | K47: 0.829058358 | L47: 0.273349938 | M47: 3.032956086 | N47: 0.002421708387 | O47: 0.01582384262 | P47: 5.83105642 | Q47: 6.272005134 | R47: 6.05201697 | S47: 5.762589326 | T47: 5.801496246 | U47: 6.119894517 | V47: 6.039501611 | W47: 6.59600801 | X47: 6.016483551 | Y47: 6.008740104 | Z47: 6.352149771 | AA47: 6.666368346 | AB47: 5.020752372 | AC47: 5.716981316 | AD47: 5.778459995 | AE47: 5.711172169 | AF47: 5.29156649 | AG47: 5.552277496 | AH47: 6.539122778 | AI47: 5.492510616 | AJ47: 5.757210611 | AK47: 5.760310112 | AL47: 6.001171096 | AM47: 5.624618268 | AN47: =AVERAGE(Y47:AA47)-AVERAGE(P47:R47) -> 0.290726565 | AO47: =AVERAGE(AK47:AM47)-AVERAGE(AB47:AD47) -> 0.2899685975
A48: Vitvi01g01305 | B48: NA | C48: NA | D48: NA | E48: NA | F48: NA | G48: NA | H48: NA | I48: NA | J48: 97.81825148 | K48: 0.7694857328 | L48: 0.2564841684 | M48: 3.000129551 | N48: 0.002698647986 | O48: 0.0172273248 | P48: 5.64851943 | Q48: 6.307997344 | R48: 7.234699418 | S48: 7.266634588 | T48: 6.830872594 | U48: 8.318554392 | V48: 7.21356535 | W48: 7.054547844 | X48: 7.045002374 | Y48: 7.061944852 | Z48: 6.967791791 | AA48: 5.821578164 | AB48: 8.864046095 | AC48: 6.744106554 | AD48: 6.405176208 | AE48: 6.156676512 | AF48: 5.771324705 | AG48: 6.515988534 | AH48: 6.55383474 | AI48: 6.312637521 | AJ48: 6.490545431 | AK48: 5.954594152 | AL48: 5.370658233 | AM48: 5.274797453 | AN48: =AVERAGE(Y48:AA48)-AVERAGE(P48:R48) -> 0.2200328715 | AO48: =AVERAGE(AK48:AM48)-AVERAGE(AB48:AD48) -> -1.80442634
A49: Vitvi12g02087 | B49: NA | C49: NA | D49: NA | E49: NA | F49: NA | G49: NA | H49: NA | I49: NA | J49: 389.4026821 | K49: 0.4578693323 | L49: 0.1533188992 | M49: 2.986385466 | N49: 0.00282296562 | O49: 0.01786199823 | P49: 7.624883876 | Q49: 7.755487948 | R49: 7.671299547 | S49: 7.455741023 | T49: 7.864524575 | U49: 7.629639366 | V49: 7.419862542 | W49: 7.744319067 | X49: 7.438620819 | Y49: 7.278164874 | Z49: 7.569393257 | AA49: 7.853955395 | AB49: 6.838005529 | AC49: 7.377344482 | AD49: 7.079766842 | AE49: 7.16997645 | AF49: 7.297495505 | AG49: 7.265483869 | AH49: 7.820959059 | AI49: 7.090783733 | AJ49: 7.343380662 | AK49: 7.261576116 | AL49: 7.687942367 | AM49: 7.248174027 | AN49: =AVERAGE(Y49:AA49)-AVERAGE(P49:R49) -> -0.1167192815 | AO49: =AVERAGE(AK49:AM49)-AVERAGE(AB49:AD49) -> 0.300858552
A50: Vitvi02g01783 | B50: NA | C50: NA | D50: NA | E50: NA | F50: NA | G50: NA | H50: NA | I50: NA | J50: 101.711526 | K50: -0.7128854101 | L50: 0.2405897182 | M50: -2.963075128 | N50: 0.003045822197 | O50: 0.01897728425 | P50: 5.364925357 | Q50: 5.414286002 | R50: 5.534805764 | S50: 5.333135082 | T50: 5.645137268 | U50: 5.30080107 | V50: 5.273295919 | W50: 5.23577245 | X50: 5.281287622 | Y50: 4.903257712 | Z50: 5.252262551 | AA50: 5.586076816 | AB50: 5.3925273 | AC50: 5.665470308 | AD50: 5.903951134 | AE50: 6.287755544 | AF50: 5.677390661 | AG50: 5.874923 | AH50: 5.674281257 | AI50: 5.664476974 | AJ50: 5.402030048 | AK50: 6.071801829 | AL50: 6.284920149 | AM50: 5.904611028 | AN50: =AVERAGE(Y50:AA50)-AVERAGE(P50:R50) -> -0.1908066812 | AO50: =AVERAGE(AK50:AM50)-AVERAGE(AB50:AD50) -> 0.4331280881
A51: Vitvi18g01457 | B51: NA | C51: NA | D51: NA | E51: NA | F51: NA | G51: NA | H51: NA | I51: NA | J51: 24.98929463 | K51: 1.39817751 | L51: 0.4774727381 | M51: 2.928287624 | N51: 0.003408345887 | O51: 0.02081731725 | P51: 3.673868185 | Q51: 3.756571749 | R51: 3.083150262 | S51: 4.039067178 | T51: 3.99638926 | U51: 3.883256121 | V51: 4.126968327 | W51: 4.350299414 | X51: 3.483841346 | Y51: 3.809346301 | Z51: 3.862964111 | AA51: 4.628295208 | AB51: 2.516574123 | AC51: 3.627908592 | AD51: 3.390501596 | AE51: 3.207489039 | AF51: 2.603070759 | AG51: 2.901163649 | AH51: 3.898445977 | AI51: 3.679280934 | AJ51: 3.349654603 | AK51: 3.370880229 | AL51: 3.69002228 | AM51: 3.735146473 | AN51: =AVERAGE(Y51:AA51)-AVERAGE(P51:R51) -> 0.5956718078 | AO51: =AVERAGE(AK51:AM51)-AVERAGE(AB51:AD51) -> 0.4203548904
A52: Vitvi12g01124 | B52: NA | C52: NA | D52: NA | E52: NA | F52: NA | G52: NA | H52: NA | I52: NA | J52: 327.2783408 | K52: -0.4821565609 | L52: 0.1646768679 | M52: -2.927894895 | N52: 0.003412653876 | O52: 0.02083205921 | P52: 4.930227253 | Q52: 4.926568823 | R52: 4.71765418 | S52: 4.974436331 | T52: 5.059982868 | U52: 4.871715094 | V52: 5.258704269 | W52: 5.171764468 | X52: 5.185552491 | Y52: 5.019605966 | Z52: 5.251168732 | AA52: 5.41278291 | AB52: 4.815579069 | AC52: 5.08916848 | AD52: 5.62148932 | AE52: 5.975062545 | AF52: 5.649148996 | AG52: 5.588189738 | AH52: 5.724218201 | AI52: 5.812938002 | AJ52: 5.482329528 | AK52: 6.097080109 | AL52: 6.324368042 | AM52: 6.028354359 | AN52: =AVERAGE(Y52:AA52)-AVERAGE(P52:R52) -> 0.3697024506 | AO52: =AVERAGE(AK52:AM52)-AVERAGE(AB52:AD52) -> 0.9745218804
A53: Vitvi16g01535 | B53: NA | C53: NA | D53: NA | E53: NA | F53: NA | G53: NA | H53: NA | I53: NA | J53: 12.62496554 | K53: 2.007766409 | L53: 0.6918952443 | M53: 2.901835827 | N53: 0.003709829047 | O53: 0.02229343717 | P53: 5.81815212 | Q53: 5.111729504 | R53: 6.048282843 | S53: 4.690004583 | T53: 4.95805226 | U53: 5.376043348 | V53: 6.093731634 | W53: 6.222925137 | X53: 5.317752544 | Y53: 6.187638626 | Z53: 6.033331599 | AA53: 6.467807038 | AB53: 5.019804609 | AC53: 2.471906574 | AD53: 0 | AE53: 4.704691445 | AF53: 3.696361678 | AG53: 3.568351548 | AH53: 5.359859731 | AI53: 4.785239536 | AJ53: 5.316096878 | AK53: 4.859292455 | AL53: 4.530490954 | AM53: 4.72488257 | AN53: =AVERAGE(Y53:AA53)-AVERAGE(P53:R53) -> 0.5702042654 | AO53: =AVERAGE(AK53:AM53)-AVERAGE(AB53:AD53) -> 2.207651599
A54: Vitvi12g01273 | B54: NA | C54: NA | D54: NA | E54: NA | F54: NA | G54: NA | H54: NA | I54: NA | J54: 10.78452278 | K54: 2.113873783 | L54: 0.7362135199 | M54: 2.871278136 | N54: 0.004088156454 | O54: 0.02409295634 | P54: 1.314785958 | Q54: 1.405155577 | R54: 1.324114682 | S54: 1.06401773 | T54: 1.17995349 | U54: 1.392444032 | V54: 1.765693363 | W54: 1.543387038 | X54: 1.488153857 | Y54: 1.165116495 | Z54: 1.305129262 | AA54: 1.420564685 | AB54: 0.5526954277 | AC54: 0.4734718458 | AD54: 0.8135191371 | AE54: 0.3599683403 | AF54: 0.698015415 | AG54: 0.3856198071 | AH54: 0.7245278431 | AI54: 0.5451102041 | AJ54: 0.7499958264 | AK54: 0.9383874955 | AL54: 0.7435591934 | AM54: 1.088701249 | AN54: =AVERAGE(Y54:AA54)-AVERAGE(P54:R54) -> -0.05108192503 | AO54: =AVERAGE(AK54:AM54)-AVERAGE(AB54:AD54) -> 0.3103205091
A55: Vitvi08g00352 | B55: NA | C55: NA | D55: NA | E55: NA | F55: NA | G55: NA | H55: NA | I55: NA | J55: 65.66660584 | K55: -0.7815758197 | L55: 0.2723096252 | M55: -2.870173315 | N55: 0.004102468688 | O55: 0.02415141765 | P55: 2.695626311 | Q55: 3.072780441 | R55: 2.857085483 | S55: 2.058069962 | T55: 2.640871787 | U55: 2.958198227 | V55: 2.535015768 | W55: 2.574750377 | X55: 2.503530629 | Y55: 2.568969733 | Z55: 2.592870218 | AA55: 2.446286663 | AB55: 2.653742102 | AC55: 2.757803421 | AD55: 3.002702232 | AE55: 3.237176012 | AF55: 2.98548598 | AG55: 2.924183849 | AH55: 2.655380528 | AI55: 2.431276572 | AJ55: 3.173053985 | AK55: 2.482712196 | AL55: 2.552508453 | AM55: 2.335127311 | AN55: =AVERAGE(Y55:AA55)-AVERAGE(P55:R55) -> -0.3391218742 | AO55: =AVERAGE(AK55:AM55)-AVERAGE(AB55:AD55) -> -0.3479665987
A56: Vitvi07g02680 | B56: NA | C56: NA | D56: NA | E56: NA | F56: NA | G56: NA | H56: NA | I56: NA | J56: 20.50891114 | K56: 1.45195787 | L56: 0.5066775126 | M56: 2.86564498 | N56: 0.004161606643 | O56: 0.024421125 | P56: 1.928969652 | Q56: 1.69105358 | R56: 1.811221231 | S56: 1.579097182 | T56: 1.651415872 | U56: 1.502931435 | V56: 1.730543255 | W56: 2.119862589 | X56: 2.191955326 | Y56: 2.274442127 | Z56: 1.968885177 | AA56: 2.289823092 | AB56: 0.8164260786 | AC56: 0.7579922119 | AD56: 0.9544833977 | AE56: 0.8773017368 | AF56: 0.8320617318 | AG56: 0.9527512215 | AH56: 1.345434822 | AI56: 1.399234127 | AJ56: 0.9401135972 | AK56: 1.360932012 | AL56: 1.320548654 | AM56: 1.202578697 | AN56: =AVERAGE(Y56:AA56)-AVERAGE(P56:R56) -> 0.3673019777 | AO56: =AVERAGE(AK56:AM56)-AVERAGE(AB56:AD56) -> 0.4517192246
A57: Vitvi02g01337 | B57: NA | C57: AT5G41810.1 | D57: NA | E57: NA | F57: NA | G57: NA | H57: Avr9/Cf-9 rapidly elicited protein | I57: NA | J57: 138.8805442 | K57: 0.659960584 | L57: 0.2340342372 | M57: 2.819931784 | N57: 0.004803385947 | O57: 0.02752622994 | P57: 4.943479856 | Q57: 4.232643481 | R57: 4.564927627 | S57: 5.372188581 | T57: 5.035561346 | U57: 4.894531036 | V57: 4.93748018 | W57: 5.653287021 | X57: 5.309017445 | Y57: 5.656027585 | Z57: 5.246397228 | AA57: 5.108685187 | AB57: 3.932551701 | AC57: 3.573183951 | AD57: 4.407927176 | AE57: 4.54415819 | AF57: 4.096502964 | AG57: 4.304087326 | AH57: 4.912473877 | AI57: 5.192885614 | AJ57: 4.423189098 | AK57: 4.635496002 | AL57: 5.048588918 | AM57: 4.212087855 | AN57: =AVERAGE(Y57:AA57)-AVERAGE(P57:R57) -> 0.7566863453 | AO57: =AVERAGE(AK57:AM57)-AVERAGE(AB57:AD57) -> 0.6608366489
A58: Vitvi05g00717 | B58: NA | C58: NA | D58: NA | E58: NA | F58: NA | G58: NA | H58: NA | I58: NA | J58: 32.4535901 | K58: -1.341299339 | L58: 0.4784689594 | M58: -2.803315268 | N58: 0.005058019908 | O58: 0.02870866835 | P58: 5.158394958 | Q58: 4.661069545 | R58: 4.212752608 | S58: 4.744718415 | T58: 3.831184666 | U58: 4.281445276 | V58: 3.460709492 | W58: 4.845486226 | X58: 3.301307414 | Y58: 5.017882052 | Z58: 4.808335068 | AA58: 4.502071495 | AB58: 4.829532572 | AC58: 4.738058918 | AD58: 4.482147022 | AE58: 5.205028989 | AF58: 5.473529866 | AG58: 4.462679015 | AH58: 6.82735055 | AI58: 5.208176998 | AJ58: 5.87048336 | AK58: 4.631671758 | AL58: 6.018940002 | AM58: 4.794557101 | AN58: =AVERAGE(Y58:AA58)-AVERAGE(P58:R58) -> 0.09869050144 | AO58: =AVERAGE(AK58:AM58)-AVERAGE(AB58:AD58) -> 0.4651434494
A59: Vitvi14g00662 | B59: NA | C59: NA | D59: NA | E59: NA | F59: NA | G59: NA | H59: NA | I59: NA | J59: 115.2879888 | K59: -0.6285040763 | L59: 0.2262653557 | M59: -2.777730043 | N59: 0.005474007621 | O59: 0.0306349424 | P59: 6.854028682 | Q59: 6.933972263 | R59: 6.532626248 | S59: 6.699325582 | T59: 6.268657092 | U59: 6.790941993 | V59: 6.214829629 | W59: 6.658160201 | X59: 6.166657036 | Y59: 5.985968034 | Z59: 5.989522308 | AA59: 6.156804827 | AB59: 6.710362261 | AC59: 6.482122193 | AD59: 7.083065519 | AE59: 7.533782949 | AF59: 6.854901384 | AG59: 7.133576172 | AH59: 6.454086878 | AI59: 6.707742658 | AJ59: 7.411951303 | AK59: 7.123775162 | AL59: 7.544606975 | AM59: 7.288210629 | AN59: =AVERAGE(Y59:AA59)-AVERAGE(P59:R59) -> -0.729444008 | AO59: =AVERAGE(AK59:AM59)-AVERAGE(AB59:AD59) -> 0.5603475977
A60: Vitvi17g01079 | B60: NA | C60: NA | D60: NA | E60: NA | F60: NA | G60: NA | H60: NA | I60: NA | J60: 72.66548079 | K60: 0.8329310009 | L60: 0.3017184844 | M60: 2.760623044 | N60: 0.005769122159 | O60: 0.03196928011 | P60: 6.257560952 | Q60: 6.167814076 | R60: 6.325793832 | S60: 6.622528635 | T60: 6.577755278 | U60: 6.669253008 | V60: 6.994743549 | W60: 6.424372088 | X60: 6.418137616 | Y60: 6.366897319 | Z60: 6.533750036 | AA60: 6.769715723 | AB60: 5.051990141 | AC60: 5.537422808 | AD60: 5.751398293 | AE60: 5.852815583 | AF60: 5.544604795 | AG60: 6.008507224 | AH60: 5.587565594 | AI60: 5.964400688 | AJ60: 6.106991351 | AK60: 6.327023419 | AL60: 6.397757316 | AM60: 6.455008607 | AN60: =AVERAGE(Y60:AA60)-AVERAGE(P60:R60) -> 0.3063980729 | AO60: =AVERAGE(AK60:AM60)-AVERAGE(AB60:AD60) -> 0.9463260333
A61: Vitvi15g00757 | B61: NA | C61: NA | D61: NA | E61: NA | F61: NA | G61: NA | H61: NA | I61: NA | J61: 60.4082298 | K61: -0.775105021 | L61: 0.2830612101 | M61: -2.738294734 | N61: 0.006175870019 | O61: 0.0337722738 | P61: 3.636467017 | Q61: 3.85151053 | R61: 3.080478035 | S61: 3.229810309 | T61: 3.251714197 | U61: 3.140305701 | V61: 2.929589128 | W61: 3.400268875 | X61: 3.091572004 | Y61: 1.985100974 | Z61: 2.807768867 | AA61: 2.845895815 | AB61: 3.457918707 | AC61: 3.462174111 | AD61: 3.546936029 | AE61: 3.836014681 | AF61: 3.592019586 | AG61: 3.646168964 | AH61: 3.406184656 | AI61: 2.762313443 | AJ61: 3.684015504 | AK61: 2.661149368 | AL61: 2.241820123 | AM61: 2.575542757 | AN61: =AVERAGE(Y61:AA61)-AVERAGE(P61:R61) -> -0.976563309 | AO61: =AVERAGE(AK61:AM61)-AVERAGE(AB61:AD61) -> -0.9961721999
A62: Vitvi19g00921 | B62: NA | C62: AT3G51690.1 | D62: NA | E62: NA | F62: NA | G62: NA | H62: PIF1 helicase | I62: NA | J62: 36.71923366 | K62: 1.08663177 | L62: 0.3973556259 | M62: 2.734658072 | N62: 0.006244510485 | O62: 0.0340629374 | P62: 1.032028352 | Q62: 1.317544585 | R62: 1.099044571 | S62: 0.7170570154 | T62: 0.987118166 | U62: 1.373777754 | V62: 1.315327436 | W62: 1.656948846 | X62: 1.121962961 | Y62: 1.469197992 | Z62: 1.399243722 | AA62: 1.822849949 | AB62: 0.8505959089 | AC62: 0.7646462978 | AD62: 1.149851822 | AE62: 0.8092873429 | AF62: 0.5932545858 | AG62: 0.9615941991 | AH62: 1.138376466 | AI62: 0.9089614131 | AJ62: 0.7962043946 | AK62: 1.202771746 | AL62: 1.155778431 | AM62: 1.054603667 | AN62: =AVERAGE(Y62:AA62)-AVERAGE(P62:R62) -> 0.4142247182 | AO62: =AVERAGE(AK62:AM62)-AVERAGE(AB62:AD62) -> 0.2160199383
A63: Vitvi11g00902 | B63: NA | C63: NA | D63: NA | E63: NA | F63: NA | G63: NA | H63: NA | I63: NA | J63: 56.1997874 | K63: 1.007419363 | L63: 0.3714360183 | M63: 2.712228521 | N63: 0.006683250073 | O63: 0.03586462039 | P63: 6.388049583 | Q63: 6.541062033 | R63: 5.976848722 | S63: 5.780939987 | T63: 6.372394794 | U63: 5.865186123 | V63: 5.1370392 | W63: 6.199986699 | X63: 5.94920221 | Y63: 5.209976619 | Z63: 5.860262333 | AA63: 6.197037227 | AB63: 4.075286461 | AC63: 4.500546229 | AD63: 3.833458062 | AE63: 5.042793046 | AF63: 5.119389632 | AG63: 4.165917365 | AH63: 4.433683607 | AI63: 3.295818504 | AJ63: 3.186527727 | AK63: 4.112862771 | AL63: 4.3063434 | AM63: 4.548640759 | AN63: =AVERAGE(Y63:AA63)-AVERAGE(P63:R63) -> -0.5462280528 | AO63: =AVERAGE(AK63:AM63)-AVERAGE(AB63:AD63) -> 0.1861853926
A64: Vitvi14g00704 | B64: NA | C64: AT1G64260.1 | D64: NA | E64: NA | F64: NA | G64: NA | H64: MuDR family transposase | I64: NA | J64: 27.17034688 | K64: -1.171431825 | L64: 0.4318882316 | M64: -2.712349489 | N64: 0.006680811339 | O64: 0.03586462039 | P64: 2.90363868 | Q64: 2.61521928 | R64: 2.291814901 | S64: 2.270216556 | T64: 2.132938542 | U64: 2.800772453 | V64: 1.919790563 | W64: 2.524153072 | X64: 2.746648937 | Y64: 2.588416665 | Z64: 1.823140705 | AA64: 2.604685008 | AB64: 2.771885054 | AC64: 3.146522456 | AD64: 2.834589049 | AE64: 3.504659297 | AF64: 3.177527281 | AG64: 3.46757501 | AH64: 3.740229263 | AI64: 3.306842899 | AJ64: 3.699512737 | AK64: 3.564391929 | AL64: 3.894676724 | AM64: 3.299479853 | AN64: =AVERAGE(Y64:AA64)-AVERAGE(P64:R64) -> -0.2648101612 | AO64: =AVERAGE(AK64:AM64)-AVERAGE(AB64:AD64) -> 0.6685173156
A65: Vitvi01g01188 | B65: NA | C65: NA | D65: NA | E65: NA | F65: NA | G65: NA | H65: NA | I65: NA | J65: 57.01669016 | K65: -0.840923488 | L65: 0.3119498432 | M65: -2.695700948 | N65: 0.007024069634 | O65: 0.03732480974 | P65: 3.295478253 | Q65: 3.570355523 | R65: 3.127819539 | S65: 3.030168338 | T65: 2.980394149 | U65: 3.090278901 | V65: 3.2335566 | W65: 3.026250103 | X65: 3.288671619 | Y65: 4.009098809 | Z65: 3.489307826 | AA65: 3.279308344 | AB65: 3.837452636 | AC65: 4.05441613 | AD65: 4.130240177 | AE65: 4.398796115 | AF65: 3.911249233 | AG65: 3.648673117 | AH65: 4.568970491 | AI65: 4.033236911 | AJ65: 4.453219317 | AK65: 4.563053385 | AL65: 5.170929312 | AM65: 4.245817076 | AN65: =AVERAGE(Y65:AA65)-AVERAGE(P65:R65) -> 0.2613538879 | AO65: =AVERAGE(AK65:AM65)-AVERAGE(AB65:AD65) -> 0.6525636104
A66: Vitvi07g02687 | B66: NA | C66: AT5G64880.1 | D66: NA | E66: NA | F66: NA | G66: NA | H66: transmembrane protein | I66: NA | J66: 103.6651923 | K66: -0.6235506625 | L66: 0.2323880227 | M66: -2.683230638 | N66: 0.007291468605 | O66: 0.03844846811 | P66: 4.727536479 | Q66: 4.321608848 | R66: 4.464852123 | S66: 4.500615068 | T66: 4.432583832 | U66: 3.973266725 | V66: 4.368922365 | W66: 4.295472062 | X66: 4.511004836 | Y66: 4.766923676 | Z66: 4.480991591 | AA66: 4.55610266 | AB66: 4.417947783 | AC66: 4.290342743 | AD66: 4.408126214 | AE66: 4.518339341 | AF66: 4.671175632 | AG66: 4.883136204 | AH66: 4.98580072 | AI66: 5.116222316 | AJ66: 4.760019983 | AK66: 4.920263524 | AL66: 4.919816817 | AM66: 4.48472653 | AN66: =AVERAGE(Y66:AA66)-AVERAGE(P66:R66) -> 0.09667349253 | AO66: =AVERAGE(AK66:AM66)-AVERAGE(AB66:AD66) -> 0.4027967103
A67: Vitvi12g01390 | B67: NA | C67: NA | D67: NA | E67: NA | F67: NA | G67: NA | H67: NA | I67: NA | J67: 40.00147735 | K67: -1.005443443 | L67: 0.3762120517 | M67: -2.672544482 | N67: 0.00752783934 | O67: 0.03944896317 | P67: 2.459615128 | Q67: 2.569354974 | R67: 2.42142107 | S67: 2.356397784 | T67: 2.132764437 | U67: 2.133905472 | V67: 2.434089733 | W67: 2.453673073 | X67: 1.708383646 | Y67: 2.201040027 | Z67: 2.76167947 | AA67: 2.713344325 | AB67: 2.9231923 | AC67: 3.533618801 | AD67: 3.10538899 | AE67: 2.880264763 | AF67: 3.300488817 | AG67: 3.265557066 | AH67: 3.302574119 | AI67: 2.945670715 | AJ67: 3.250957649 | AK67: 2.828128427 | AL67: 3.075361336 | AM67: 3.197559808 | AN67: =AVERAGE(Y67:AA67)-AVERAGE(P67:R67) -> 0.07522421673 | AO67: =AVERAGE(AK67:AM67)-AVERAGE(AB67:AD67) -> -0.15371684
A68: Vitvi12g00960 | B68: NA | C68: NA | D68: NA | E68: NA | F68: NA | G68: NA | H68: NA | I68: NA | J68: 49.08514772 | K68: 0.8435735469 | L68: 0.3184744483 | M68: 2.648795065 | N68: 0.008077929928 | O68: 0.04181360104 | P68: 2.332266508 | Q68: 2.498743321 | R68: 2.640427685 | S68: 2.69161636 | T68: 2.128328279 | U68: 2.699899283 | V68: 2.840291968 | W68: 2.682564582 | X68: 2.585039487 | Y68: 2.943317596 | Z68: 2.591594175 | AA68: 3.465544403 | AB68: 2.168682424 | AC68: 2.010024066 | AD68: 2.416922926 | AE68: 1.94054878 | AF68: 2.289909103 | AG68: 2.512283008 | AH68: 2.647886863 | AI68: 2.440222824 | AJ68: 2.679611254 | AK68: 2.895667533 | AL68: 2.929083795 | AM68: 2.813475045 | AN68: =AVERAGE(Y68:AA68)-AVERAGE(P68:R68) -> 0.509672887 | AO68: =AVERAGE(AK68:AM68)-AVERAGE(AB68:AD68) -> 0.6808656525
A69: Vitvi07g02839 | B69: NA | C69: NA | D69: NA | E69: NA | F69: NA | G69: NA | H69: NA | I69: NA | J69: 39.08705792 | K69: -0.9136034615 | L69: 0.3454889814 | M69: -2.644378 | N69: 0.008184120366 | O69: 0.04225388341 | P69: 5.974998985 | Q69: 5.885932169 | R69: 5.971272918 | S69: 5.297993716 | T69: 4.986680464 | U69: 5.652538726 | V69: 6.00364397 | W69: 5.964092805 | X69: 6.134997032 | Y69: 5.526907935 | Z69: 6.237169719 | AA69: 6.27523997 | AB69: 6.272950481 | AC69: 6.395957927 | AD69: 6.102050073 | AE69: 6.906669385 | AF69: 6.654992032 | AG69: 6.543226956 | AH69: 6.410000627 | AI69: 6.253164036 | AJ69: 6.604465211 | AK69: 7.202628412 | AL69: 6.531110614 | AM69: 6.920587026 | AN69: =AVERAGE(Y69:AA69)-AVERAGE(P69:R69) -> 0.06903785074 | AO69: =AVERAGE(AK69:AM69)-AVERAGE(AB69:AD69) -> 0.6277891902
A70: Vitvi01g01250 | B70: NA | C70: NA | D70: NA | E70: NA | F70: NA | G70: NA | H70: NA | I70: NA | J70: 39.70125168 | K70: 1.202023508 | L70: 0.4566401416 | M70: 2.632321161 | N70: 0.008480365668 | O70: 0.0435685967 | P70: 2.899134484 | Q70: 2.957449722 | R70: 3.037557125 | S70: 2.648151829 | T70: 2.013428683 | U70: 2.389227126 | V70: 3.035616507 | W70: 3.844556359 | X70: 3.281316477 | Y70: 3.042147572 | Z70: 3.095044264 | AA70: 3.4762042 | AB70: 2.035642605 | AC70: 3.027700334 | AD70: 2.568817582 | AE70: 1.411898472 | AF70: 2.74726998 | AG70: 3.005459401 | AH70: 2.767287618 | AI70: 2.604701529 | AJ70: 1.893724936 | AK70: 3.491454949 | AL70: 3.510124169 | AM70: 3.209631485 | AN70: =AVERAGE(Y70:AA70)-AVERAGE(P70:R70) -> 0.2397515687 | AO70: =AVERAGE(AK70:AM70)-AVERAGE(AB70:AD70) -> 0.8596833603
A71: Vitvi15g00525 | B71: NA | C71: NA | D71: NA | E71: NA | F71: NA | G71: NA | H71: NA | I71: NA | J71: 10.90806104 | K71: 2.26331545 | L71: 0.8599146503 | M71: 2.632023364 | N71: 0.008487802578 | O71: 0.04359662071 | P71: 3.058936693 | Q71: 1.838384475 | R71: 2.370188145 | S71: 2.071294755 | T71: 3.339792166 | U71: 3.320233237 | V71: 3.150428739 | W71: 4.731653872 | X71: 3.24562429 | Y71: 3.661519822 | Z71: 3.501657878 | AA71: 2.574576656 | AB71: 1.529580615 | AC71: 2.569340184 | AD71: 1.304276106 | AE71: 1.990335818 | AF71: 0 | AG71: 2.309443477 | AH71: 2.506180997 | AI71: 2.113063282 | AJ71: 1.193781491 | AK71: 1.018209207 | AL71: 2.275332291 | AM71: 4.051199412 | AN71: =AVERAGE(Y71:AA71)-AVERAGE(P71:R71) -> 0.8234150143 | AO71: =AVERAGE(AK71:AM71)-AVERAGE(AB71:AD71) -> 0.6471813355
A72: Vitvi11g00343 | B72: NA | C72: AT2G17240.1 | D72: NA | E72: NA | F72: NA | G72: NA | H72: arginine/serine-rich-like splicing factor | I72: NA | J72: 203.2659846 | K72: -0.5563528382 | L72: 0.2139350879 | M72: -2.600568442 | N72: 0.009306945195 | O72: 0.04690700909 | P72: 5.408612287 | Q72: 5.548711207 | R72: 5.033460924 | S72: 5.695413904 | T72: 5.44612787 | U72: 5.420931413 | V72: 5.2205935 | W72: 5.235639659 | X72: 5.336504234 | Y72: 4.888861311 | Z72: 5.105433517 | AA72: 5.144021612 | AB72: 5.008786331 | AC72: 5.34977199 | AD72: 5.669968478 | AE72: 5.90970445 | AF72: 5.548023119 | AG72: 5.218129151 | AH72: 5.746129095 | AI72: 5.881698545 | AJ72: 5.497108559 | AK72: 5.807012428 | AL72: 5.995371909 | AM72: 5.764741603 | AN72: =AVERAGE(Y72:AA72)-AVERAGE(P72:R72) -> -0.2841559926 | AO72: =AVERAGE(AK72:AM72)-AVERAGE(AB72:AD72) -> 0.5128663802
A73: Vitvi02g01027 | B73: NA | C73: NA | D73: NA | E73: NA | F73: NA | G73: NA | H73: NA | I73: NA | J73: 24.09545291 | K73: -1.72649087 | L73: 0.670101898 | M73: -2.576460199 | N73: 0.009981769638 | O73: 0.04952380813 | P73: 2.829227331 | Q73: 2.108315293 | R73: 2.988648055 | S73: 3.867053179 | T73: 3.110471393 | U73: 2.206030303 | V73: 3.349416192 | W73: 3.557039367 | X73: 2.143346399 | Y73: 3.16855534 | Z73: 3.109700455 | AA73: 3.264872288 | AB73: 3.335695084 | AC73: 3.456863686 | AD73: 4.389432372 | AE73: 5.569195414 | AF73: 4.551403487 | AG73: 2.286496483 | AH73: 5.6434044 | AI73: 5.505837495 | AJ73: 4.700893002 | AK73: 4.559917251 | AL73: 4.954848135 | AM73: 4.272472069 | AN73: =AVERAGE(Y73:AA73)-AVERAGE(P73:R73) -> 0.538979135 | AO73: =AVERAGE(AK73:AM73)-AVERAGE(AB73:AD73) -> 0.8684154378
A74: Vitvi10g01200 | B74: VIT_00s0125g00060 | C74: NA | D74: NA | E74: NA | F74: NA | G74: NA | H74: NA | I74: Unknown | J74: 941.4548968 | K74: 0.7743271689 | L74: 0.1993754514 | M74: 3.883763841 | N74: 0.0001028518099 | O74: 0.001081837737 | P74: 6.711669372 | Q74: 7.044691347 | R74: 7.435833148 | S74: 7.512017117 | T74: 7.353236277 | U74: 8.326116668 | V74: 7.892311065 | W74: 7.848195149 | X74: 7.545856889 | Y74: 7.890295469 | Z74: 7.571355553 | AA74: 6.565959863 | AB74: 8.85950783 | AC74: 7.022196499 | AD74: 6.833426393 | AE74: 6.304423304 | AF74: 6.262070176 | AG74: 7.119887607 | AH74: 6.787286115 | AI74: 6.818940052 | AJ74: 7.000139469 | AK74: 6.605032788 | AL74: 6.082980442 | AM74: 6.393506962 | AN74: =AVERAGE(Y74:AA74)-AVERAGE(P74:R74) -> 0.2784723396 | AO74: =AVERAGE(AK74:AM74)-AVERAGE(AB74:AD74) -> -1.21120351
A75: Vitvi16g01756 | B75: VIT_00s0144g00120 | C75: AT3G14470.1 | D75: NA | E75: NA | F75: NA | G75: NA | H75: NB-ARC domain-containing disease resistance protein | I75: R protein MLA10 | J75: 231.4766033 | K75: 1.001558048 | L75: 0.2097490114 | M75: 4.775031076 | N75: 1.80E-06 | O75: 2.93E-05 | P75: 3.406872062 | Q75: 3.938020745 | R75: 3.930022177 | S75: 3.414483867 | T75: 3.867013375 | U75: 3.791679619 | V75: 3.944655952 | W75: 3.524642842 | X75: 3.814526724 | Y75: 3.567665085 | Z75: 3.918434584 | AA75: 4.106199382 | AB75: 2.816501769 | AC75: 3.249359473 | AD75: 2.681585994 | AE75: 2.576209488 | AF75: 2.913055835 | AG75: 2.782025194 | AH75: 2.948240167 | AI75: 2.290328755 | AJ75: 2.61969895 | AK75: 2.540771468 | AL75: 2.347188387 | AM75: 2.470389485 | AN75: =AVERAGE(Y75:AA75)-AVERAGE(P75:R75) -> 0.1057946888 | AO75: =AVERAGE(AK75:AM75)-AVERAGE(AB75:AD75) -> -0.4630326323
A76: Vitvi16g01753 | B76: VIT_00s0144g00190 | C76: AT3G14470.1 | D76: NA | E76: NA | F76: NA | G76: NA | H76: NB-ARC domain-containing disease resistance protein | I76: R protein MLA10 | J76: 85.21474682 | K76: 0.8545866896 | L76: 0.2987149298 | M76: 2.860877058 | N76: 0.004224708455 | O76: 0.02471887144 | P76: 2.181647603 | Q76: 2.762418575 | R76: 2.359434496 | S76: 2.370644273 | T76: 2.647022099 | U76: 2.197348305 | V76: 2.819464641 | W76: 2.318758995 | X76: 2.26448009 | Y76: 2.251433138 | Z76: 2.648574151 | AA76: 2.45568745 | AB76: 1.890807485 | AC76: 2.445377646 | AD76: 2.027393226 | AE76: 1.937480523 | AF76: 1.447577354 | AG76: 1.765942701 | AH76: 1.775319955 | AI76: 1.554843442 | AJ76: 2.063401995 | AK76: 1.870517739 | AL76: 1.50801451 | AM76: 1.691429216 | AN76: =AVERAGE(Y76:AA76)-AVERAGE(P76:R76) -> 0.01739802141 | AO76: =AVERAGE(AK76:AM76)-AVERAGE(AB76:AD76) -> -0.4312056304
A77: Vitvi16g00609 | B77: VIT_00s0144g00270 | C77: AT3G14470.1 | D77: NA | E77: NA | F77: NA | G77: NA | H77: NB-ARC domain-containing disease resistance protein | I77: R protein MLA10 | J77: 171.3093181 | K77: 0.8744609472 | L77: 0.231871871 | M77: 3.771311041 | N77: 0.0001623921039 | O77: 0.001607404111 | P77: 3.065824675 | Q77: 3.617413186 | R77: 3.416116763 | S77: 2.759973487 | T77: 3.243418077 | U77: 3.447804226 | V77: 3.403619749 | W77: 3.077295995 | X77: 3.457532719 | Y77: 3.163336678 | Z77: 3.116438606 | AA77: 3.594518115 | AB77: 2.345111137 | AC77: 2.669314094 | AD77: 2.458609323 | AE77: 2.176319266 | AF77: 2.647948659 | AG77: 2.488422028 | AH77: 2.103692972 | AI77: 1.869266381 | AJ77: 2.807695033 | AK77: 2.314340038 | AL77: 2.38018767 | AM77: 2.327057848 | AN77: =AVERAGE(Y77:AA77)-AVERAGE(P77:R77) -> -0.07502040859 | AO77: =AVERAGE(AK77:AM77)-AVERAGE(AB77:AD77) -> -0.1504829994
A78: Vitvi16g00623 | B78: VIT_00s0144g00270 | C78: AT3G14470.1 | D78: NA | E78: NA | F78: NA | G78: NA | H78: NB-ARC domain-containing disease resistance protein | I78: R protein MLA10 | J78: 131.2018954 | K78: 0.8096144919 | L78: 0.248951902 | M78: 3.252092013 | N78: 0.001145589298 | O78: 0.0084608392 | P78: 4.668368712 | Q78: 5.086218172 | R78: 5.020687585 | S78: 4.738917192 | T78: 5.210867618 | U78: 4.904924809 | V78: 4.818721058 | W78: 4.557126759 | X78: 4.991313965 | Y78: 4.355626913 | Z78: 4.665818833 | AA78: 4.904963906 | AB78: 3.863924267 | AC78: 4.038398241 | AD78: 3.902150431 | AE78: 3.613377543 | AF78: 4.093802862 | AG78: 3.712886054 | AH78: 3.579393024 | AI78: 3.221123399 | AJ78: 4.020503846 | AK78: 3.455297504 | AL78: 3.501009827 | AM78: 3.594617798 | AN78: =AVERAGE(Y78:AA78)-AVERAGE(P78:R78) -> -0.2829549393 | AO78: =AVERAGE(AK78:AM78)-AVERAGE(AB78:AD78) -> -0.4178492696
A79: Vitvi15g01740 | B79: VIT_00s0153g00010 | C79: NA | D79: NA | E79: NA | F79: NA | G79: NA | H79: NA | I79: Acylamino-acid-releasing enzyme | J79: 63.89848655 | K79: -0.915367544 | L79: 0.3058243895 | M79: -2.993114923 | N79: 0.002761457435 | O79: 0.01754853939 | P79: 0.4298791752 | Q79: 0.4586628623 | R79: 0.5089154556 | S79: 0.3008500641 | T79: 0.4424319344 | U79: 0.3611903847 | V79: 0.5887361098 | W79: 0.5828798183 | X79: 0.3966103714 | Y79: 0.5435108062 | Z79: 0.5200979653 | AA79: 0.7517830952 | AB79: 0.5704015816 | AC79: 0.6088173917 | AD79: 0.4768446675 | AE79: 0.8428837087 | AF79: 0.6007172822 | AG79: 0.6780344702 | AH79: 0.6619018941 | AI79: 0.6588666303 | AJ79: 0.7066449745 | AK79: 0.7286962127 | AL79: 0.6027919712 | AM79: 0.693248218 | AN79: =AVERAGE(Y79:AA79)-AVERAGE(P79:R79) -> 0.1393114579 | AO79: =AVERAGE(AK79:AM79)-AVERAGE(AB79:AD79) -> 0.1228909204
A80: Vitvi15g01736 | B80: VIT_00s0153g00050 | C80: AT3G09270.1 | D80: "GSTU8" | E80: NA | F80: "GSTU8" | G80: "GSTU8" | H80: glutathione S-transferase TAU 8 | I80: Glutathione S-transferase 8 GSTU8 | J80: 322.5529612 | K80: -0.7909818676 | L80: 0.2159256398 | M80: -3.66321419 | N80: 0.000249070099 | O80: 0.002333069744 | P80: 5.295434565 | Q80: 5.217912499 | R80: 4.580172346 | S80: 5.363143264 | T80: 5.447917159 | U80: 5.196446106 | V80: 4.88973263 | W80: 5.077020874 | X80: 5.596072814 | Y80: 6.0577226 | Z80: 4.960962585 | AA80: 5.144291537 | AB80: 5.225147259 | AC80: 5.761522707 | AD80: 5.749596396 | AE80: 5.885139548 | AF80: 5.801512316 | AG80: 5.708569553 | AH80: 5.75672093 | AI80: 5.496860079 | AJ80: 5.61260918 | AK80: 5.508257593 | AL80: 5.543621164 | AM80: 5.510941112 | AN80: =AVERAGE(Y80:AA80)-AVERAGE(P80:R80) -> 0.3564857706 | AO80: =AVERAGE(AK80:AM80)-AVERAGE(AB80:AD80) -> -0.05781549803
A81: Vitvi19g01142 | B81: VIT_00s0169g00060 | C81: NA | D81: NA | E81: NA | F81: NA | G81: NA | H81: NA | I81: No hit | J81: 327.0626155 | K81: -0.6299308426 | L81: 0.170126016 | M81: -3.702730819 | N81: 0.0002132911546 | O81: 0.002040507027 | P81: 4.434607389 | Q81: 4.507241765 | R81: 4.05394697 | S81: 3.88453377 | T81: 3.66654526 | U81: 4.169397075 | V81: 3.998852689 | W81: 4.164293242 | X81: 4.021752941 | Y81: 4.137961907 | Z81: 4.108922919 | AA81: 4.239475283 | AB81: 4.262147027 | AC81: 4.529833354 | AD81: 4.686447076 | AE81: 4.892656469 | AF81: 4.513868134 | AG81: 4.406475384 | AH81: 4.576174524 | AI81: 4.431956591 | AJ81: 4.649697357 | AK81: 4.539339157 | AL81: 4.539915339 | AM81: 4.483864879 | AN81: =AVERAGE(Y81:AA81)-AVERAGE(P81:R81) -> -0.169812005 | AO81: =AVERAGE(AK81:AM81)-AVERAGE(AB81:AD81) -> 0.02823063904
A82: Vitvi13g02253 | B82: VIT_00s0173g00220 | C82: AT1G15780.1 | D82: "NRB4" | E82: NA | F82: "NRB4" | G82: "NRB4" | H82: mediator of RNA polymerase II transcription subunit 15a-like protein | I82: CTV.22 | J82: 329.0491966 | K82: -0.5236829144 | L82: 0.1676032535 | M82: -3.124539074 | N82: 0.00178083868 | O82: 0.01224758159 | P82: 5.626341486 | Q82: 5.827334371 | R82: 5.820773982 | S82: 6.176654666 | T82: 5.827647102 | U82: 6.043532309 | V82: 5.953384227 | W82: 6.032666849 | X82: 6.106319936 | Y82: 6.05192032 | Z82: 5.993630707 | AA82: 6.110958747 | AB82: 6.011409076 | AC82: 5.828734955 | AD82: 6.334905938 | AE82: 6.431633366 | AF82: 6.091640011 | AG82: 6.414925361 | AH82: 6.270502221 | AI82: 6.362659111 | AJ82: 6.341023639 | AK82: 6.75519734 | AL82: 6.567347194 | AM82: 6.51467887 | AN82: =AVERAGE(Y82:AA82)-AVERAGE(P82:R82) -> 0.2940199784 | AO82: =AVERAGE(AK82:AM82)-AVERAGE(AB82:AD82) -> 0.5540578115
A83: Vitvi07g01197 | B83: VIT_00s0174g00110 | C83: AT3G07510.1 | D83: NA | E83: NA | F83: NA | G83: NA | H83: maternal effect embryo arrest protein | I83: Unknown protein | J83: 90.81199317 | K83: -0.9685716891 | L83: 0.2608948518 | M83: -3.712498282 | N83: 0.0002052234543 | O83: 0.001973626871 | P83: 3.899528959 | Q83: 4.047247098 | R83: 4.005337716 | S83: 4.23232905 | T83: 4.040930749 | U83: 3.619512246 | V83: 3.834563526 | W83: 3.914708988 | X83: 3.555104988 | Y83: 4.122985632 | Z83: 3.894636737 | AA83: 3.801492852 | AB83: 4.078196307 | AC83: 4.246767017 | AD83: 4.110110693 | AE83: 4.689510734 | AF83: 4.044576486 | AG83: 4.257613771 | AH83: 4.337790667 | AI83: 4.371701605 | AJ83: 4.350402557 | AK83: 4.782681015 | AL83: 4.817339219 | AM83: 4.739287932 | AN83: =AVERAGE(Y83:AA83)-AVERAGE(P83:R83) -> -0.04433285032 | AO83: =AVERAGE(AK83:AM83)-AVERAGE(AB83:AD83) -> 0.6347447164
A84: Vitvi07g01171 | B84: VIT_00s0174g00110 | C84: AT3G07510.1 | D84: NA | E84: NA | F84: NA | G84: NA | H84: maternal effect embryo arrest protein | I84: Unknown protein | J84: 79.98357062 | K84: -1.038719952 | L84: 0.3046788357 | M84: -3.409229099 | N84: 0.0006514674488 | O84: 0.005289174998 | P84: 3.703480437 | Q84: 3.694303516 | R84: 3.561211917 | S84: 3.50558059 | T84: 3.666892036 | U84: 3.500203595 | V84: 3.393965505 | W84: 3.558614269 | X84: 3.753248127 | Y84: 3.427640393 | Z84: 3.842560375 | AA84: 4.047289715 | AB84: 3.514970643 | AC84: 3.818670242 | AD84: 4.132873145 | AE84: 3.626161829 | AF84: 4.217317553 | AG84: 4.655912228 | AH84: 4.291222795 | AI84: 4.506228401 | AJ84: 4.007823929 | AK84: 4.862171542 | AL84: 4.947785826 | AM84: 4.598022389 | AN84: =AVERAGE(Y84:AA84)-AVERAGE(P84:R84) -> 0.1194982045 | AO84: =AVERAGE(AK84:AM84)-AVERAGE(AB84:AD84) -> 0.980488576
A85: Vitvi07g00082 | B85: VIT_00s0179g00090 | C85: AT4G14713.1 | D85: "PPD1" | E85: NA | F85: "PPD1" | G85: "PPD1" | H85: TIFY domain/Divergent CCT motif family protein | I85: TIFY 4B (Protein PEAPOD 2) | J85: 140.8162105 | K85: -0.8873332183 | L85: 0.251773692 | M85: -3.524328579 | N85: 0.0004245574205 | O85: 0.003657546379 | P85: 3.20488441 | Q85: 3.537983069 | R85: 3.344192301 | S85: 3.537302058 | T85: 3.366358327 | U85: 3.612217783 | V85: 2.894436709 | W85: 3.568858396 | X85: 3.452140284 | Y85: 3.076975951 | Z85: 3.011021529 | AA85: 3.416685793 | AB85: 3.691924607 | AC85: 3.807758396 | AD85: 3.952479121 | AE85: 4.089660804 | AF85: 3.506410927 | AG85: 4.118587992 | AH85: 4.084452675 | AI85: 4.215141126 | AJ85: 4.224470612 | AK85: 3.901805034 | AL85: 3.756596814 | AM85: 3.548395592 | AN85: =AVERAGE(Y85:AA85)-AVERAGE(P85:R85) -> -0.1941255021 | AO85: =AVERAGE(AK85:AM85)-AVERAGE(AB85:AD85) -> -0.08178822815
A86: Vitvi07g00081 | B86: VIT_00s0179g00100 | C86: AT4G02680.1 | D86: "EOL1" | E86: NA | F86: "EOL1" | G86: "EOL1" | H86: ETO1-like 1 | I86: Ethylene overproducer 1 (ETO1) | J86: 657.4999988 | K86: -0.45060785 | L86: 0.1472393087 | M86: -3.060377381 | N86: 0.002210582578 | O86: 0.01464444374 | P86: 4.637885987 | Q86: 4.985182604 | R86: 4.82654421 | S86: 4.565499993 | T86: 4.748951813 | U86: 4.696441192 | V86: 4.66074716 | W86: 4.457961442 | X86: 4.479625095 | Y86: 4.639045616 | Z86: 4.729373288 | AA86: 4.719294733 | AB86: 4.570856976 | AC86: 5.022875545 | AD86: 4.923675367 | AE86: 4.629055364 | AF86: 4.760041722 | AG86: 4.93950297 | AH86: 4.573712812 | AI86: 4.471162603 | AJ86: 4.972159943 | AK86: 4.907553532 | AL86: 4.552576433 | AM86: 4.828483899 | AN86: =AVERAGE(Y86:AA86)-AVERAGE(P86:R86) -> -0.1206330546 | AO86: =AVERAGE(AK86:AM86)-AVERAGE(AB86:AD86) -> -0.07626467458
A87: Vitvi14g00385 | B87: VIT_00s0179g00220 | C87: AT1G11290.1 | D87: "CRR22" | E87: NA | F87: "CRR22" | G87: "CRR22" | H87: Pentatricopeptide repeat (PPR) superfamily protein | I87: Pentatricopeptide repeat | J87: 70.07760205 | K87: 0.9295109978 | L87: 0.2759370782 | M87: 3.368561427 | N87: 0.0007556155764 | O87: 0.005999897926 | P87: 2.19349776 | Q87: 2.431321809 | R87: 1.824290151 | S87: 1.535060497 | T87: 1.957038364 | U87: 2.030142384 | V87: 2.25431499 | W87: 2.546007031 | X87: 2.205088811 | Y87: 2.221062897 | Z87: 2.213169178 | AA87: 2.147660534 | AB87: 1.335373758 | AC87: 1.640948862 | AD87: 1.429216766 | AE87: 1.355414359 | AF87: 1.571616037 | AG87: 1.58178274 | AH87: 1.911157504 | AI87: 1.41818758 | AJ87: 1.665532451 | AK87: 2.016042591 | AL87: 2.134997584 | AM87: 2.250020244 | AN87: =AVERAGE(Y87:AA87)-AVERAGE(P87:R87) -> 0.04426096291 | AO87: =AVERAGE(AK87:AM87)-AVERAGE(AB87:AD87) -> 0.6651736775
A88: Vitvi07g02099 | B88: VIT_00s0179g00230 | C88: NA | D88: NA | E88: NA | F88: NA | G88: NA | H88: NA | I88: No hit | J88: 50.9088772 | K88: 1.290017829 | L88: 0.3458833756 | M88: 3.729632357 | N88: 0.0001917593571 | O88: 0.001853870462 | P88: 6.272291512 | Q88: 6.422815869 | R88: 6.438880927 | S88: 6.152274947 | T88: 6.245621075 | U88: 6.478067883 | V88: 6.749856543 | W88: 6.923882882 | X88: 6.326916685 | Y88: 6.464194437 | Z88: 6.765463252 | AA88: 6.859860016 | AB88: 5.551180948 | AC88: 5.872736192 | AD88: 5.812309676 | AE88: 5.144342345 | AF88: 4.817755798 | AG88: 5.821617825 | AH88: 5.919861488 | AI88: 5.759791471 | AJ88: 5.506807375 | AK88: 5.866143895 | AL88: 6.199864232 | AM88: 5.922377584 | AN88: =AVERAGE(Y88:AA88)-AVERAGE(P88:R88) -> 0.3185097992 | AO88: =AVERAGE(AK88:AM88)-AVERAGE(AB88:AD88) -> 0.2507196317
A89: Vitvi07g00066 | B89: VIT_00s0179g00300 | C89: AT3G63410.1 | D89: "APG1" | E89: NA | F89: "APG1" | G89: "APG1" | H89: S-adenosyl-L-methionine-dependent methyltransferases superfamily protein | I89: MPBQ/MSBQ methyltransferase 2 | J89: 382.7110803 | K89: -0.8646697973 | L89: 0.1434823409 | M89: -6.026315097 | N89: 1.68E-09 | O89: 5.16E-08 | P89: 5.278937824 | Q89: 5.207141468 | R89: 5.321721486 | S89: 5.373163823 | T89: 5.225004249 | U89: 4.971906898 | V89: 4.997377988 | W89: 4.923334752 | X89: 4.753252673 | Y89: 4.29194406 | Z89: 4.526568467 | AA89: 4.672262196 | AB89: 5.392322165 | AC89: 5.993420644 | AD89: 5.463921038 | AE89: 5.440197145 | AF89: 5.457009376 | AG89: 5.508608394 | AH89: 5.116150043 | AI89: 5.228490328 | AJ89: 5.580253231 | AK89: 5.063618739 | AL89: 4.951988627 | AM89: 4.837870992 | AN89: =AVERAGE(Y89:AA89)-AVERAGE(P89:R89) -> -0.7723420184 | AO89: =AVERAGE(AK89:AM89)-AVERAGE(AB89:AD89) -> -0.6653951632
A90: Vitvi07g00062 | B90: VIT_00s0179g00350 | C90: AT3G22960.1 | D90: "PKP-ALPHA" | E90: NA | F90: "PKP-ALPHA" | G90: "PKP-ALPHA" | H90: Pyruvate kinase family protein | I90: Pyruvate kinase isozyme A, chloroplast precursor | J90: 176.1891045 | K90: 0.9197477154 | L90: 0.2255145995 | M90: 4.078439788 | N90: 4.53E-05 | O90: 0.0005256640304 | P90: 3.715869734 | Q90: 3.723310978 | R90: 3.701231589 | S90: 3.832266861 | T90: 3.704144315 | U90: 3.801432347 | V90: 3.923464295 | W90: 3.717723689 | X90: 4.190165725 | Y90: 4.129488605 | Z90: 3.88398532 | AA90: 3.771465728 | AB90: 2.740282991 | AC90: 3.50957086 | AD90: 2.874209932 | AE90: 2.928480234 | AF90: 2.813664193 | AG90: 2.845987277 | AH90: 3.221662281 | AI90: 2.816357824 | AJ90: 2.642240665 | AK90: 2.957232559 | AL90: 2.860887046 | AM90: 2.582817255 | AN90: =AVERAGE(Y90:AA90)-AVERAGE(P90:R90) -> 0.214842451 | AO90: =AVERAGE(AK90:AM90)-AVERAGE(AB90:AD90) -> -0.2410423077
A91: Vitvi07g00061 | B91: VIT_00s0179g00360 | C91: AT4G14620.1 | D91: NA | E91: NA | F91: NA | G91: NA | H91: hypothetical protein (DUF506) | I91: Unknown protein | J91: 234.1236241 | K91: -0.7718198954 | L91: 0.1930812887 | M91: -3.997383179 | N91: 6.40E-05 | O91: 0.0007141120017 | P91: 3.545088223 | Q91: 3.978153683 | R91: 3.362555231 | S91: 4.00496058 | T91: 4.047922534 | U91: 3.781799436 | V91: 3.827755642 | W91: 3.854037061 | X91: 3.90019914 | Y91: 3.026120951 | Z91: 3.54119733 | AA91: 3.590585726 | AB91: 3.884006848 | AC91: 4.256385697 | AD91: 4.656566926 | AE91: 4.603895379 | AF91: 4.146381053 | AG91: 4.164740952 | AH91: 4.53706045 | AI91: 4.676216434 | AJ91: 4.177716272 | AK91: 4.358653503 | AL91: 4.029413418 | AM91: 4.066952531 | AN91: =AVERAGE(Y91:AA91)-AVERAGE(P91:R91) -> -0.2426310433 | AO91: =AVERAGE(AK91:AM91)-AVERAGE(AB91:AD91) -> -0.1139800063
A92: Vitvi10g00379 | B92: VIT_00s0181g00210 | C92: AT4G21530.1 | D92: "APC4" | E92: NA | F92: "APC4" | G92: "APC4" | H92: Transducin/WD40 repeat-like superfamily protein | I92: Anaphase promoting complex subunit 4 | J92: 143.306187 | K92: 0.8478717259 | L92: 0.2106065229 | M92: 4.025856911 | N92: 5.68E-05 | O92: 0.0006393035626 | P92: 3.06839568 | Q92: 3.005774562 | R92: 2.775216421 | S92: 3.220701363 | T92: 3.029492394 | U92: 2.93820437 | V92: 3.218962989 | W92: 3.348147027 | X92: 3.229601024 | Y92: 3.303875091 | Z92: 3.39882658 | AA92: 3.266850534 | AB92: 2.193980477 | AC92: 2.645080081 | AD92: 2.268971366 | AE92: 2.202016866 | AF92: 2.380613198 | AG92: 2.635047371 | AH92: 2.48419437 | AI92: 2.659717975 | AJ92: 2.6665521 | AK92: 3.143027557 | AL92: 2.916649439 | AM92: 3.329488583 | AN92: =AVERAGE(Y92:AA92)-AVERAGE(P92:R92) -> 0.3733885137 | AO92: =AVERAGE(AK92:AM92)-AVERAGE(AB92:AD92) -> 0.7603778852
A93: Vitvi10g00209 | B93: VIT_00s0187g00040 | C93: AT5G47550.1 | D93: NA | E93: NA | F93: NA | G93: NA | H93: Cystatin/monellin superfamily protein | I93: Cystatin | J93: 54.43762207 | K93: -0.9725504927 | L93: 0.3251258362 | M93: -2.991304856 | N93: 0.002777880205 | O93: 0.01763252445 | P93: 3.300528946 | Q93: 3.939215502 | R93: 3.437612878 | S93: 4.035084082 | T93: 4.448105636 | U93: 3.532489703 | V93: 3.761042193 | W93: 3.535069101 | X93: 3.221357315 | Y93: 2.898912992 | Z93: 3.056284731 | AA93: 3.289979415 | AB93: 3.787393157 | AC93: 4.457959226 | AD93: 3.834517297 | AE93: 4.187624487 | AF93: 4.297399459 | AG93: 3.66667363 | AH93: 3.794836391 | AI93: 4.202386243 | AJ93: 4.091206411 | AK93: 3.677536536 | AL93: 4.054835114 | AM93: 3.071966515 | AN93: =AVERAGE(Y93:AA93)-AVERAGE(P93:R93) -> -0.4773933959 | AO93: =AVERAGE(AK93:AM93)-AVERAGE(AB93:AD93) -> -0.4251771716
A94: Vitvi10g00114 | B94: VIT_00s0187g00130 | C94: AT5G47560.1 | D94: "TDT" | E94: NA | F94: "TDT" | G94: "TDT" | H94: tonoplast dicarboxylate transporter | I94: Tonoplast dicarboxylate transporter | J94: 105.1419642 | K94: 1.149814411 | L94: 0.278623463 | M94: 4.126768071 | N94: 3.68E-05 | O94: 0.0004383276643 | P94: 4.319511634 | Q94: 4.114979676 | R94: 3.750966059 | S94: 4.111789299 | T94: 3.899582489 | U94: 3.672992059 | V94: 3.351620943 | W94: 4.332891833 | X94: 3.813000243 | Y94: 3.770941031 | Z94: 4.001524298 | AA94: 3.748673019 | AB94: 3.072654058 | AC94: 3.332742438 | AD94: 3.057749846 | AE94: 2.550007194 | AF94: 2.582640093 | AG94: 2.716368188 | AH94: 2.88331305 | AI94: 2.681641016 | AJ94: 3.364670456 | AK94: 2.888532798 | AL94: 2.939104414 | AM94: 2.937894555 | AN94: =AVERAGE(Y94:AA94)-AVERAGE(P94:R94) -> -0.2214396735 | AO94: =AVERAGE(AK94:AM94)-AVERAGE(AB94:AD94) -> -0.2325381917
A95: Vitvi10g00198 | B95: VIT_00s0187g00150 | C95: AT4G12570.1 | D95: "UPL5" | E95: NA | F95: "UPL5" | G95: "UPL5" | H95: ubiquitin protein ligase 5 | I95: E3 ubiquitin-protein ligase HUWE1 | J95: 979.2242779 | K95: -0.3939642671 | L95: 0.1212282634 | M95: -3.249772421 | N95: 0.001154973966 | O95: 0.008527189461 | P95: 5.086646065 | Q95: 4.737627603 | R95: 4.905204167 | S95: 5.110512797 | T95: 5.023927959 | U95: 4.811726476 | V95: 5.141566791 | W95: 5.176690122 | X95: 4.988550256 | Y95: 4.980626529 | Z95: 5.119219341 | AA95: 5.042919621 | AB95: 4.897661258 | AC95: 5.11470554 | AD95: 5.19689414 | AE95: 5.213747149 | AF95: 5.206248351 | AG95: 5.419116463 | AH95: 5.66802541 | AI95: 5.434679023 | AJ95: 5.497611785 | AK95: 5.614395573 | AL95: 5.495519052 | AM95: 5.608172753 | AN95: =AVERAGE(Y95:AA95)-AVERAGE(P95:R95) -> 0.1377625518 | AO95: =AVERAGE(AK95:AM95)-AVERAGE(AB95:AD95) -> 0.5029421465
A96: Vitvi10g01672 | B96: VIT_00s0187g00160 | C96: NA | D96: NA | E96: NA | F96: NA | G96: NA | H96: NA | I96: Ripening-related protein | J96: 784.0356725 | K96: -2.737076677 | L96: 0.5377292915 | M96: -5.090064315 | N96: 3.58E-07 | O96: 6.86E-06 | P96: 6.9252241 | Q96: 8.484406576 | R96: 6.602605688 | S96: 6.469785304 | T96: 7.908914349 | U96: 6.627382947 | V96: 5.532738079 | W96: 5.715681691 | X96: 6.228252712 | Y96: 4.80866477 | Z96: 5.495855931 | AA96: 5.744085722 | AB96: 8.482995241 | AC96: 8.885243198 | AD96: 8.017082163 | AE96: 8.32350514 | AF96: 8.998044384 | AG96: 7.405274866 | AH96: 7.812680876 | AI96: 7.187017609 | AJ96: 7.449558391 | AK96: 7.025224983 | AL96: 7.305762401 | AM96: 7.381035071 | AN96: =AVERAGE(Y96:AA96)-AVERAGE(P96:R96) -> -1.987876647 | AO96: =AVERAGE(AK96:AM96)-AVERAGE(AB96:AD96) -> -1.224432716
A97: Vitvi10g00185 | B97: VIT_00s0187g00290 | C97: AT1G12060.1 | D97: "BAG5" | E97: NA | F97: "BAG5" | G97: "BAG5" | H97: BCL-2-associated athanogene 5 | I97: IQ calmodulin-binding region; Apoptosis regulator Bcl-2 protein, BAG [Medicago truncatula] | J97: 1005.356154 | K97: -1.16652452 | L97: 0.158891032 | M97: -7.341663688 | N97: 2.11E-13 | O97: 1.16E-11 | P97: 6.81077507 | Q97: 6.708494873 | R97: 6.960906077 | S97: 6.9281292 | T97: 6.866635094 | U97: 6.5693157 | V97: 6.456530323 | W97: 6.650521907 | X97: 6.919930318 | Y97: 6.429626848 | Z97: 6.311494764 | AA97: 5.529924564 | AB97: 7.007052703 | AC97: 7.287936905 | AD97: 7.450637263 | AE97: 7.484687396 | AF97: 7.494027113 | AG97: 7.345879665 | AH97: 7.126411331 | AI97: 7.199369932 | AJ97: 7.244911145 | AK97: 7.395537797 | AL97: 7.957587676 | AM97: 7.485891358 | AN97: =AVERAGE(Y97:AA97)-AVERAGE(P97:R97) -> -0.7363766146 | AO97: =AVERAGE(AK97:AM97)-AVERAGE(AB97:AD97) -> 0.3644633201
A98: Vitvi10g00178 | B98: VIT_00s0187g00290 | C98: AT1G12060.1 | D98: "BAG5" | E98: NA | F98: "BAG5" | G98: "BAG5" | H98: BCL-2-associated athanogene 5 | I98: IQ calmodulin-binding region; Apoptosis regulator Bcl-2 protein, BAG [Medicago truncatula] | J98: 323.7141033 | K98: -1.613039919 | L98: 0.2612915954 | M98: -6.173332581 | N98: 6.69E-10 | O98: 2.20E-08 | P98: 5.447679877 | Q98: 5.076549941 | R98: 5.792363101 | S98: 5.289704495 | T98: 4.675678271 | U98: 5.403371386 | V98: 4.386341596 | W98: 4.924776384 | X98: 4.98320309 | Y98: 4.885665023 | Z98: 5.336803579 | AA98: 3.410836202 | AB98: 5.65247469 | AC98: 5.830535815 | AD98: 6.440991405 | AE98: 5.372080123 | AF98: 6.530479516 | AG98: 5.772978665 | AH98: 5.707639572 | AI98: 5.921865227 | AJ98: 6.081528962 | AK98: 6.373040372 | AL98: 6.5569073 | AM98: 6.106552108 | AN98: =AVERAGE(Y98:AA98)-AVERAGE(P98:R98) -> -0.8944293714 | AO98: =AVERAGE(AK98:AM98)-AVERAGE(AB98:AD98) -> 0.3708326232
A99: Vitvi10g01666 | B99: VIT_00s0187g00360 | C99: AT3G53330.1 | D99: NA | E99: NA | F99: NA | G99: NA | H99: plastocyanin-like domain-containing protein | I99: Uclacyanin I | J99: 620.8609908 | K99: -0.7268907153 | L99: 0.1450943728 | M99: -5.009778815 | N99: 5.45E-07 | O99: 1.01E-05 | P99: 7.137900512 | Q99: 7.277384978 | R99: 7.114619353 | S99: 7.247291638 | T99: 7.203780224 | U99: 6.715403089 | V99: 6.662118851 | W99: 6.560811859 | X99: 6.629358531 | Y99: 5.85979369 | Z99: 6.317976999 | AA99: 6.173993052 | AB99: 6.801620971 | AC99: 7.353932787 | AD99: 6.953704443 | AE99: 6.899290271 | AF99: 7.07225094 | AG99: 6.801244063 | AH99: 6.735128209 | AI99: 6.889286794 | AJ99: 6.835655986 | AK99: 7.038801086 | AL99: 6.906254305 | AM99: 6.910332984 | AN99: =AVERAGE(Y99:AA99)-AVERAGE(P99:R99) -> -1.059380367 | AO99: =AVERAGE(AK99:AM99)-AVERAGE(AB99:AD99) -> -0.0846232749
A100: Vitvi17g01722 | B100: VIT_00s0192g00010 | C100: NA | D100: NA | E100: NA | F100: NA | G100: NA | H100: NA | I100: No hit | J100: 122.3662555 | K100: -0.9273351519 | L100: 0.2253103566 | M100: -4.115812366 | N100: 3.86E-05 | O100: 0.0004569565423 | P100: 6.388244447 | Q100: 6.350773027 | R100: 6.368229162 | S100: 5.796442209 | T100: 5.889541601 | U100: 5.761918989 | V100: 6.525829532 | W100: 6.219517019 | X100: 6.131440503 | Y100: 6.159105216 | Z100: 6.478152023 | AA100: 6.522734833 | AB100: 6.940108243 | AC100: 6.937925882 | AD100: 7.335820591 | AE100: 7.707585952 | AF100: 7.255960758 | AG100: 7.322062757 | AH100: 7.430886897 | AI100: 7.287159116 | AJ100: 7.438067149 | AK100: 7.736115958 | AL100: 8.073204075 | AM100: 7.60024772 | AN100: =AVERAGE(Y100:AA100)-AVERAGE(P100:R100) -> 0.01758181203 | AO100: =AVERAGE(AK100:AM100)-AVERAGE(AB100:AD100) -> 0.7319043457
A101: Vitvi19g01263 | B101: VIT_00s0192g00090 | C101: NA | D101: NA | E101: NA | F101: NA | G101: NA | H101: NA | I101: No hit | J101: 69.82426157 | K101: -1.355179409 | L101: 0.3130996476 | M101: -4.328268714 | N101: 1.50E-05 | O101: 0.0001981649399 | P101: 3.04813841 | Q101: 3.119138175 | R101: 2.880090763 | S101: 2.31839755 | T101: 2.90938007 | U101: 2.515875334 | V101: 2.425090195 | W101: 2.422282028 | X101: 2.398473022 | Y101: 2.270222694 | Z101: 2.529727089 | AA101: 2.817542871 | AB101: 3.293107851 | AC101: 3.357485221 | AD101: 3.496101505 | AE101: 4.060521285 | AF101: 3.326867235 | AG101: 3.134432907 | AH101: 3.11836193 | AI101: 3.191523121 | AJ101: 3.041063965 | AK101: 3.197202406 | AL101: 3.152220482 | AM101: 3.105872758 | AN101: =AVERAGE(Y101:AA101)-AVERAGE(P101:R101) -> -0.4766248977 | AO101: =AVERAGE(AK101:AM101)-AVERAGE(AB101:AD101) -> -0.2304663107
A102: Vitvi10g00217 | B102: VIT_00s0194g00030 | C102: AT5G56030.1 | D102: "HSP81-2" | E102: NA | F102: "HSP81-2" | G102: "HSP81-2" | H102: heat shock protein 81-2 | I102: Heat shock protein 81-2 (HSP81-2) | J102: 2452.195386 | K102: -0.7234350987 | L102: 0.1422906507 | M102: -5.084206833 | N102: 3.69E-07 | O102: 7.05E-06 | P102: 6.551010728 | Q102: 6.490527709 | R102: 6.557023785 | S102: 6.758536652 | T102: 6.664347953 | U102: 6.260851308 | V102: 6.291105624 | W102: 6.850535574 | X102: 6.390787285 | Y102: 6.404393533 | Z102: 6.56719617 | AA102: 6.473562778 | AB102: 6.596549708 | AC102: 6.941885867 | AD102: 7.289798826 | AE102: 6.846881887 | AF102: 6.977264921 | AG102: 7.119744365 | AH102: 7.017495086 | AI102: 7.319980078 | AJ102: 7.051129898 | AK102: 7.093595056 | AL102: 7.145475287 | AM102: 6.929078902 | AN102: =AVERAGE(Y102:AA102)-AVERAGE(P102:R102) -> -0.0511365805 | AO102: =AVERAGE(AK102:AM102)-AVERAGE(AB102:AD102) -> 0.1133049481
A103: Vitvi10g02403 | B103: VIT_00s0194g00030 | C103: AT5G56030.1 | D103: "HSP81-2" | E103: NA | F103: "HSP81-2" | G103: "HSP81-2" | H103: heat shock protein 81-2 | I103: Heat shock protein 81-2 (HSP81-2) | J103: 231.7278193 | K103: -0.7348608204 | L103: 0.2083521862 | M103: -3.527012766 | N103: 0.0004202764989 | O103: 0.003626348104 | P103: 5.78625634 | Q103: 6.037381876 | R103: 6.12967577 | S103: 6.032226806 | T103: 6.028878846 | U103: 5.766496048 | V103: 5.65238032 | W103: 6.123296669 | X103: 6.218259607 | Y103: 5.774879255 | Z103: 6.025621663 | AA103: 5.89107901 | AB103: 5.863103019 | AC103: 6.37095579 | AD103: 6.830693693 | AE103: 6.540847441 | AF103: 6.284344953 | AG103: 6.341738797 | AH103: 6.388725342 | AI103: 6.700723983 | AJ103: 6.479502665 | AK103: 6.340524444 | AL103: 6.644699765 | AM103: 6.13382754 | AN103: =AVERAGE(Y103:AA103)-AVERAGE(P103:R103) -> -0.08724468597 | AO103: =AVERAGE(AK103:AM103)-AVERAGE(AB103:AD103) -> 0.01809974881
A104: Vitvi10g00223 | B104: VIT_00s0194g00110 | C104: AT5G47760.1 | D104: "PGLP2" | E104: NA | F104: "PGLP2" | G104: "PGLP2" | H104: 2-phosphoglycolate phosphatase 2 | I104: 4-nitrophenylphosphatase | J104: 446.3636062 | K104: 0.6310744394 | L104: 0.1642861141 | M104: 3.841313327 | N104: 0.0001223777848 | O104: 0.001257794519 | P104: 5.93732888 | Q104: 5.775528472 | R104: 5.692143948 | S104: 5.843418521 | T104: 5.605268429 | U104: 5.926304781 | V104: 5.688394736 | W104: 6.040534576 | X104: 6.107902921 | Y104: 6.454321485 | Z104: 6.123319442 | AA104: 6.198482021 | AB104: 4.776523921 | AC104: 5.033982484 | AD104: 5.039368874 | AE104: 5.183405596 | AF104: 5.05462604 | AG104: 5.150596786 | AH104: 5.423567291 | AI104: 5.227587549 | AJ104: 5.212292451 | AK104: 5.601636087 | AL104: 5.458877759 | AM104: 5.446506095 | AN104: =AVERAGE(Y104:AA104)-AVERAGE(P104:R104) -> 0.4570405495 | AO104: =AVERAGE(AK104:AM104)-AVERAGE(AB104:AD104) -> 0.5523815541
A105: Vitvi07g01449 | B105: VIT_00s0199g00030 | C105: AT2G24640.1 | D105: "UBP19" | E105: NA | F105: "UBP19" | G105: "UBP19" | H105: ubiquitin-specific protease 19 | I105: Ubiquitin-specific protease 16 | J105: 246.2342467 | K105: 0.5809194633 | L105: 0.1621921397 | M105: 3.581674577 | N105: 0.0003413988866 | O105: 0.003042434 | P105: 3.555391363 | Q105: 3.604411595 | R105: 3.596263575 | S105: 3.446147135 | T105: 3.752884806 | U105: 3.580626461 | V105: 3.652659266 | W105: 3.783383139 | X105: 3.524479395 | Y105: 3.65800746 | Z105: 3.808263375 | AA105: 3.943659957 | AB105: 2.769877992 | AC105: 3.273939529 | AD105: 3.028647731 | AE105: 2.942478447 | AF105: 2.874231138 | AG105: 2.992664755 | AH105: 3.017639003 | AI105: 3.151805351 | AJ105: 3.355379227 | AK105: 3.42632233 | AL105: 3.192409329 | AM105: 3.225539454 | AN105: =AVERAGE(Y105:AA105)-AVERAGE(P105:R105) -> 0.2179547532 | AO105: =AVERAGE(AK105:AM105)-AVERAGE(AB105:AD105) -> 0.2572686205
A106: Vitvi07g01457 | B106: VIT_00s0199g00140 | C106: AT5G65430.1 | D106: "GRF8" | E106: NA | F106: "GRF8" | G106: "GRF8" | H106: general regulatory factor 8 | I106: 14-3-3 protein GF14 kappa (GRF8) | J106: 148.3597973 | K106: -0.7331255491 | L106: 0.2053103542 | M106: -3.57081625 | N106: 0.0003558704925 | O106: 0.003153511528 | P106: 3.665843827 | Q106: 3.825045063 | R106: 3.816300719 | S106: 4.212318535 | T106: 4.216078606 | U106: 4.116945753 | V106: 4.207747223 | W106: 3.98352034 | X106: 3.885829826 | Y106: 3.975010368 | Z106: 4.146315555 | AA106: 4.181319036 | AB106: 4.071172855 | AC106: 4.380856952 | AD106: 4.201436645 | AE106: 4.414767941 | AF106: 4.286678713 | AG106: 4.304778974 | AH106: 4.278347429 | AI106: 4.304761579 | AJ106: 4.175775013 | AK106: 4.388349546 | AL106: 4.480330204 | AM106: 4.251782369 | AN106: =AVERAGE(Y106:AA106)-AVERAGE(P106:R106) -> 0.3318184496 | AO106: =AVERAGE(AK106:AM106)-AVERAGE(AB106:AD106) -> 0.1556652218
A107: Vitvi07g01453 | B107: VIT_00s0199g00170 | C107: AT5G65720.1 | D107: "NFS1" | E107: NA | F107: "NFS1" | G107: "NFS1" | H107: nitrogen fixation S (NIFS)-like 1 | I107: Cysteine desulfurase | J107: 191.3309337 | K107: -0.5965072327 | L107: 0.2006911741 | M107: -2.972264402 | N107: 0.002956119895 | O107: 0.01853917906 | P107: 3.712724496 | Q107: 3.765064721 | R107: 3.882299437 | S107: 4.244575096 | T107: 3.597134236 | U107: 3.389092067 | V107: 3.546317951 | W107: 4.133014648 | X107: 3.644209126 | Y107: 3.278167528 | Z107: 3.743443597 | AA107: 3.316849424 | AB107: 3.347394421 | AC107: 4.116736367 | AD107: 4.083811485 | AE107: 4.037041825 | AF107: 4.072410244 | AG107: 3.945572973 | AH107: 3.955716135 | AI107: 3.992549206 | AJ107: 4.104643528 | AK107: 3.965903911 | AL107: 4.203433646 | AM107: 3.974379363 | AN107: =AVERAGE(Y107:AA107)-AVERAGE(P107:R107) -> -0.3405427017 | AO107: =AVERAGE(AK107:AM107)-AVERAGE(AB107:AD107) -> 0.1985915493
A108: Vitvi07g02591 | B108: VIT_00s0199g00170 | C108: AT5G65720.1 | D108: "NFS1" | E108: NA | F108: "NFS1" | G108: "NFS1" | H108: nitrogen fixation S (NIFS)-like 1 | I108: Cysteine desulfurase | J108: 778.7294309 | K108: -0.3575499462 | L108: 0.1286053574 | M108: -2.780210354 | N108: 0.005432369676 | O108: 0.03045616586 | P108: 5.900889249 | Q108: 5.734832017 | R108: 5.812997073 | S108: 5.740884196 | T108: 5.783496108 | U108: 5.703256379 | V108: 5.7264865 | W108: 5.885584482 | X108: 5.594244474 | Y108: 5.685526741 | Z108: 5.811174051 | AA108: 5.836329692 | AB108: 5.513993236 | AC108: 5.749968605 | AD108: 5.674958477 | AE108: 5.570165279 | AF108: 5.782149975 | AG108: 5.874903055 | AH108: 5.840596524 | AI108: 5.901246499 | AJ108: 5.809658694 | AK108: 6.028610828 | AL108: 5.977464787 | AM108: 5.917460594 | AN108: =AVERAGE(Y108:AA108)-AVERAGE(P108:R108) -> -0.03856261807 | AO108: =AVERAGE(AK108:AM108)-AVERAGE(AB108:AD108) -> 0.3282052968
A109: Vitvi07g02597 | B109: VIT_00s0199g00310 | C109: NA | D109: NA | E109: NA | F109: NA | G109: NA | H109: NA | I109: No hit | J109: 108.8792704 | K109: -1.364328337 | L109: 0.3762001326 | M109: -3.626602489 | N109: 0.0002871748673 | O109: 0.002621886273 | P109: 5.284738121 | Q109: 5.404138811 | R109: 4.361488673 | S109: 4.860417728 | T109: 4.475228952 | U109: 3.928993942 | V109: 3.391471108 | W109: 5.04156811 | X109: 4.258758007 | Y109: 4.958085508 | Z109: 4.522821391 | AA109: 4.26660401 | AB109: 4.385885845 | AC109: 5.617342904 | AD109: 4.930802684 | AE109: 5.147802804 | AF109: 5.738162713 | AG109: 4.456314423 | AH109: 5.066393681 | AI109: 6.320861605 | AJ109: 4.777646527 | AK109: 3.99393497 | AL109: 5.16761329 | AM109: 3.607875099 | AN109: =AVERAGE(Y109:AA109)-AVERAGE(P109:R109) -> -0.4342848983 | AO109: =AVERAGE(AK109:AM109)-AVERAGE(AB109:AD109) -> -0.7215360247
A110: Vitvi07g02598 | B110: VIT_00s0199g00310 | C110: NA | D110: NA | E110: NA | F110: NA | G110: NA | H110: NA | I110: No hit | J110: 76.92233781 | K110: -0.7142151437 | L110: 0.275523919 | M110: -2.592207407 | N110: 0.009536226054 | O110: 0.04782028177 | P110: 4.626322964 | Q110: 4.206893722 | R110: 4.140148654 | S110: 3.577465534 | T110: 4.053422233 | U110: 3.943302199 | V110: 3.723327451 | W110: 4.092351908 | X110: 3.796855419 | Y110: 4.392714727 | Z110: 4.213264659 | AA110: 4.085167972 | AB110: 3.331627849 | AC110: 3.970244245 | AD110: 3.376205872 | AE110: 4.16385079 | AF110: 4.539505747 | AG110: 3.861144544 | AH110: 4.482106867 | AI110: 4.82761156 | AJ110: 3.867104405 | AK110: 3.198732436 | AL110: 3.917473819 | AM110: 3.738731413 | AN110: =AVERAGE(Y110:AA110)-AVERAGE(P110:R110) -> -0.09407266086 | AO110: =AVERAGE(AK110:AM110)-AVERAGE(AB110:AD110) -> 0.05895323376
A111: Vitvi10g01737 | B111: VIT_00s0203g00020 | C111: AT4G28240.1 | D111: NA | E111: NA | F111: NA | G111: NA | H111: Wound-responsive family protein | I111: No hit | J111: 17.95617655 | K111: -2.196536294 | L111: 0.5825642524 | M111: -3.770461858 | N111: 0.0001629457062 | O111: 0.001612158282 | P111: 1.237544209 | Q111: 0.7480196486 | R111: 0.407277551 | S111: 2.514986594 | T111: 0.8294532391 | U111: 1.35893283 | V111: 1.452978158 | W111: 2.313889287 | X111: 2.29730336 | Y111: 0.4589840433 | Z111: 1.213342259 | AA111: 2.202473461 | AB111: 2.986042223 | AC111: 1.939111206 | AD111: 3.722854809 | AE111: 4.115130376 | AF111: 3.59898254 | AG111: 2.880660897 | AH111: 4.368794192 | AI111: 4.343955615 | AJ111: 2.778067199 | AK111: 1.779984033 | AL111: 1.86104505 | AM111: 1.835774589 | AN111: =AVERAGE(Y111:AA111)-AVERAGE(P111:R111) -> 0.4939861181 | AO111: =AVERAGE(AK111:AM111)-AVERAGE(AB111:AD111) -> -1.057068189
A112: Vitvi10g01739 | B112: VIT_00s0203g00050 | C112: AT4G05070.1 | D112: NA | E112: NA | F112: NA | G112: NA | H112: Wound-responsive family protein | I112: Receptor-interacting protein | J112: 189.56464 | K112: -1.895606419 | L112: 0.3008619736 | M112: -6.300584936 | N112: 2.97E-10 | O112: 1.04E-08 | P112: 4.691056966 | Q112: 3.228591557 | R112: 3.041069928 | S112: 6.345129393 | T112: 5.241410318 | U112: 3.658538404 | V112: 4.790969801 | W112: 5.28893117 | X112: 5.63597235 | Y112: 4.61591544 | Z112: 4.945652955 | AA112: 4.957031725 | AB112: 5.619923125 | AC112: 5.048167042 | AD112: 6.820247362 | AE112: 7.380309988 | AF112: 6.323408037 | AG112: 6.572759081 | AH112: 7.571926754 | AI112: 7.496279062 | AJ112: 6.607117475 | AK112: 4.719278338 | AL112: 5.846674473 | AM112: 4.239302402 | AN112: =AVERAGE(Y112:AA112)-AVERAGE(P112:R112) -> 1.185960556 | AO112: =AVERAGE(AK112:AM112)-AVERAGE(AB112:AD112) -> -0.894360772
A113: Vitvi10g00343 | B113: VIT_00s0203g00140 | C113: AT4G05150.1 | D113: NA | E113: NA | F113: NA | G113: NA | H113: Octicosapeptide/Phox/Bem1p family protein | I113: Octicosapeptide/Phox/Bem1p (PB1) domain-containing protein | J113: 228.8420219 | K113: -1.090774909 | L113: 0.2012433725 | M113: -5.420178042 | N113: 5.95E-08 | O113: 1.35E-06 | P113: 4.060242029 | Q113: 4.240202492 | R113: 4.078813937 | S113: 3.853008503 | T113: 3.924136521 | U113: 3.71727709 | V113: 3.463558441 | W113: 4.079036625 | X113: 3.402057706 | Y113: 3.28892182 | Z113: 3.810825115 | AA113: 3.469531439 | AB113: 4.200687959 | AC113: 4.370442795 | AD113: 4.425466018 | AE113: 4.417283957 | AF113: 4.103313218 | AG113: 4.369160619 | AH113: 4.308519431 | AI113: 4.320942181 | AJ113: 4.446008398 | AK113: 4.384447617 | AL113: 4.305675399 | AM113: 4.19467051 | AN113: =AVERAGE(Y113:AA113)-AVERAGE(P113:R113) -> -0.6033266949 | AO113: =AVERAGE(AK113:AM113)-AVERAGE(AB113:AD113) -> -0.03726774845
A114: Vitvi10g00350 | B114: VIT_00s0203g00190 | C114: AT1G61620.1 | D114: NA | E114: NA | F114: NA | G114: NA | H114: phosphoinositide binding protein | I114: Nitric oxide synthase interacting protein | J114: 701.5989522 | K114: -0.5445924139 | L114: 0.1280857605 | M114: -4.251779526 | N114: 2.12E-05 | O114: 0.0002691550229 | P114: 5.915479212 | Q114: 6.030985786 | R114: 5.88963776 | S114: 5.938236347 | T114: 6.009997023 | U114: 5.978920532 | V114: 5.96901528 | W114: 5.949425443 | X114: 5.993801271 | Y114: 6.055006537 | Z114: 5.951579244 | AA114: 6.202448864 | AB114: 5.981883308 | AC114: 6.256023702 | AD114: 6.300806548 | AE114: 6.195327374 | AF114: 6.319051268 | AG114: 6.300735374 | AH114: 6.34818164 | AI114: 6.279196047 | AJ114: 6.300648192 | AK114: 6.563205595 | AL114: 6.601192545 | AM114: 6.554204986 | AN114: =AVERAGE(Y114:AA114)-AVERAGE(P114:R114) -> 0.124310629 | AO114: =AVERAGE(AK114:AM114)-AVERAGE(AB114:AD114) -> 0.3932965227
A115: Vitvi10g00353 | B115: VIT_00s0203g00210 | C115: AT5G54470.1 | D115: "BBX29" | E115: NA | F115: "BBX29" | G115: "BBX29" | H115: B-box type zinc finger family protein | I115: Zinc finger (B-box type) | J115: 324.1562178 | K115: -0.8221027007 | L115: 0.1766340994 | M115: -4.654269494 | N115: 3.25E-06 | O115: 5.01E-05 | P115: 5.997005272 | Q115: 6.116490452 | R115: 6.025272191 | S115: 5.866948477 | T115: 5.389470946 | U115: 5.513548256 | V115: 5.506086549 | W115: 5.372137087 | X115: 5.644162607 | Y115: 6.046736799 | Z115: 5.847528122 | AA115: 5.86912433 | AB115: 5.293843086 | AC115: 5.369283126 | AD115: 5.950617313 | AE115: 5.993648247 | AF115: 5.796485558 | AG115: 6.028526423 | AH115: 6.031557519 | AI115: 6.075867005 | AJ115: 6.002118428 | AK115: 6.304101278 | AL115: 6.287411495 | AM115: 6.265491614 | AN115: =AVERAGE(Y115:AA115)-AVERAGE(P115:R115) -> -0.1251262209 | AO115: =AVERAGE(AK115:AM115)-AVERAGE(AB115:AD115) -> 0.7477536208
A116: Vitvi07g01255 | B116: VIT_00s0207g00010 | C116: AT1G65450.1 | D116: "GLC" | E116: NA | F116: "GLC" | G116: "GLC" | H116: HXXXD-type acyl-transferase family protein | I116: Anthranilate N-benzoyltransferase protein 1 | J116: 411.1516553 | K116: 1.174764864 | L116: 0.2319597645 | M116: 5.064519991 | N116: 4.09E-07 | O116: 7.77E-06 | P116: 5.163350968 | Q116: 5.478188134 | R116: 5.72829036 | S116: 5.565814021 | T116: 5.695320257 | U116: 5.689339126 | V116: 5.911275483 | W116: 5.547632564 | X116: 5.429505783 | Y116: 4.366338407 | Z116: 5.392404663 | AA116: 5.16712381 | AB116: 4.226700243 | AC116: 5.199949373 | AD116: 4.94053405 | AE116: 3.615931271 | AF116: 4.178589327 | AG116: 4.680437725 | AH116: 3.807807766 | AI116: 3.71848451 | AJ116: 4.475620809 | AK116: 3.508106587 | AL116: 3.192895211 | AM116: 3.161256204 | AN116: =AVERAGE(Y116:AA116)-AVERAGE(P116:R116) -> -0.4813208608 | AO116: =AVERAGE(AK116:AM116)-AVERAGE(AB116:AD116) -> -1.501641888
A117: Vitvi07g01259 | B117: VIT_00s0207g00070 | C117: AT5G36700.1 | D117: "PGLP1" | E117: NA | F117: "PGLP1" | G117: "PGLP1" | H117: 2-phosphoglycolate phosphatase 1 | I117: HAD-superfamily hydrolase, subfamily IIA | J117: 156.5235607 | K117: 0.7624333323 | L117: 0.2027382359 | M117: 3.760678536 | N117: 0.0001694530809 | O117: 0.001669033167 | P117: 1.341181711 | Q117: 1.360975298 | R117: 1.434275367 | S117: 1.124814698 | T117: 1.348147639 | U117: 1.522350845 | V117: 1.5535258 | W117: 1.854089832 | X117: 1.66707561 | Y117: 1.633401182 | Z117: 1.650094416 | AA117: 1.581255672 | AB117: 0.8635663175 | AC117: 1.182109767 | AD117: 1.074164773 | AE117: 1.058442664 | AF117: 1.00673045 | AG117: 0.9424281589 | AH117: 1.165065949 | AI117: 1.037380928 | AJ117: 1.122705424 | AK117: 1.354035999 | AL117: 1.239741357 | AM117: 1.335710271 | AN117: =AVERAGE(Y117:AA117)-AVERAGE(P117:R117) -> 0.2427729651 | AO117: =AVERAGE(AK117:AM117)-AVERAGE(AB117:AD117) -> 0.2698822565
A118: Vitvi07g01275 | B118: VIT_00s0207g00210 | C118: AT5G66570.1 | D118: "PSBO1" | E118: NA | F118: "PSBO1" | G118: "PSBO1" | H118: PS II oxygen-evolving complex 1 | I118: Photosystem II PsbO protein | J118: 473.298402 | K118: 0.5647012867 | L118: 0.1338494525 | M118: 4.218928627 | N118: 2.45E-05 | O118: 0.0003065745737 | P118: 5.038787567 | Q118: 5.57597884 | R118: 5.599567112 | S118: 5.643322099 | T118: 6.091262506 | U118: 6.224734619 | V118: 5.939828637 | W118: 5.998087622 | X118: 5.806525972 | Y118: 5.379847502 | Z118: 5.862944444 | AA118: 5.997425672 | AB118: 5.248932925 | AC118: 5.937720291 | AD118: 5.621850361 | AE118: 4.942031194 | AF118: 5.110703427 | AG118: 5.096539085 | AH118: 4.784738506 | AI118: 4.438362662 | AJ118: 5.144116252 | AK118: 3.962922736 | AL118: 3.895464548 | AM118: 3.735478974 | AN118: =AVERAGE(Y118:AA118)-AVERAGE(P118:R118) -> 0.3419613663 | AO118: =AVERAGE(AK118:AM118)-AVERAGE(AB118:AD118) -> -1.73821244
A119: Vitvi07g01276 | B119: VIT_00s0207g00220 | C119: AT3G50830.1 | D119: "COR413-PM2" | E119: NA | F119: "COR413-PM2" | G119: "COR413-PM2" | H119: cold-regulated 413-plasma membrane 2 | I119: Cold acclimation protein | J119: 37.97324903 | K119: -1.11813143 | L119: 0.3576918445 | M119: -3.125962884 | N119: 0.00177223918 | O119: 0.01220370336 | P119: 2.413929434 | Q119: 3.142842673 | R119: 1.98984142 | S119: 2.321420184 | T119: 2.815203856 | U119: 2.471357455 | V119: 2.647769404 | W119: 2.422173752 | X119: 2.238077466 | Y119: 1.968598731 | Z119: 2.400680633 | AA119: 2.59406566 | AB119: 2.954778484 | AC119: 3.24225212 | AD119: 2.526208072 | AE119: 3.14341119 | AF119: 3.391355438 | AG119: 3.082880579 | AH119: 3.405697493 | AI119: 3.109786566 | AJ119: 2.402210845 | AK119: 3.253759966 | AL119: 3.146486379 | AM119: 3.020382492 | AN119: =AVERAGE(Y119:AA119)-AVERAGE(P119:R119) -> -0.1944228342 | AO119: =AVERAGE(AK119:AM119)-AVERAGE(AB119:AD119) -> 0.2324633867
A120: Vitvi07g01277 | B120: VIT_00s0207g00230 | C120: AT5G66560.2 | D120: NA | E120: NA | F120: NA | G120: NA | H120: Phototropic-responsive NPH3 family protein | I120: Phototropic-responsive NPH3 | J120: 86.98596426 | K120: -0.6907111886 | L120: 0.2530741603 | M120: -2.729283732 | N120: 0.006347206666 | O120: 0.03448628049 | P120: 2.582695262 | Q120: 2.581321782 | R120: 2.311180799 | S120: 2.497432248 | T120: 2.49031911 | U120: 2.207582641 | V120: 2.040716617 | W120: 2.308244893 | X120: 2.035379839 | Y120: 1.751613585 | Z120: 2.04803594 | AA120: 2.533209357 | AB120: 2.16319494 | AC120: 2.704575495 | AD120: 2.366488311 | AE120: 2.268136944 | AF120: 2.669127401 | AG120: 2.299680935 | AH120: 2.480993907 | AI120: 2.395105147 | AJ120: 2.108518774 | AK120: 2.899720601 | AL120: 2.637634246 | AM120: 2.668206224 | AN120: =AVERAGE(Y120:AA120)-AVERAGE(P120:R120) -> -0.3807796535 | AO120: =AVERAGE(AK120:AM120)-AVERAGE(AB120:AD120) -> 0.3237674421
A121: Vitvi06g01666 | B121: VIT_00s0208g00040 | C121: ATMG00860.1 | D121: "ORF158" | E121: NA | F121: "ORF158" | G121: "ORF158" | H121: DNA/RNA polymerases superfamily protein | I121: Polyprotein | J121: 65.12609989 | K121: 0.750639287 | L121: 0.2764548633 | M121: 2.715232707 | N121: 0.006622921485 | O121: 0.03566439673 | P121: 2.605857023 | Q121: 2.498626523 | R121: 2.762607832 | S121: 2.376153403 | T121: 2.670302027 | U121: 2.682754925 | V121: 2.635827184 | W121: 2.438088181 | X121: 2.573147038 | Y121: 2.621713634 | Z121: 2.724542007 | AA121: 2.567558408 | AB121: 1.369338613 | AC121: 1.890110182 | AD121: 1.462362592 | AE121: 1.323552139 | AF121: 1.610055203 | AG121: 1.581862842 | AH121: 1.33902613 | AI121: 1.520988522 | AJ121: 1.509438505 | AK121: 1.185895609 | AL121: 2.06480792 | AM121: 1.902002221 | AN121: =AVERAGE(Y121:AA121)-AVERAGE(P121:R121) -> 0.01557422375 | AO121: =AVERAGE(AK121:AM121)-AVERAGE(AB121:AD121) -> 0.1436314539
A122: Vitvi07g01510 | B122: VIT_00s0211g00060 | C122: AT5G65620.1 | D122: NA | E122: NA | F122: "OOP" | G122: NA | H122: Zincin-like metalloproteases family protein | I122: Metalloendopeptidase | J122: 491.0060707 | K122: 0.8672025621 | L122: 0.1442366266 | M122: 6.012360261 | N122: 1.83E-09 | O122: 5.60E-08 | P122: 4.432428447 | Q122: 4.164025812 | R122: 4.505024125 | S122: 4.76041084 | T122: 4.584356467 | U122: 4.633166194 | V122: 4.829680097 | W122: 4.885069725 | X122: 4.877637268 | Y122: 4.56678093 | Z122: 4.933775006 | AA122: 4.846776505 | AB122: 3.693942369 | AC122: 4.404451814 | AD122: 3.977061399 | AE122: 3.723340692 | AF122: 3.789806174 | AG122: 4.000468329 | AH122: 4.091138378 | AI122: 4.264353197 | AJ122: 4.031794097 | AK122: 4.340453946 | AL122: 4.316171884 | AM122: 4.167080638 | AN122: =AVERAGE(Y122:AA122)-AVERAGE(P122:R122) -> 0.4152846858 | AO122: =AVERAGE(AK122:AM122)-AVERAGE(AB122:AD122) -> 0.2494169616
A123: Vitvi07g02608 | B123: VIT_00s0211g00120 | C123: AT4G37930.1 | D123: "SHM1" | E123: NA | F123: "SHM1" | G123: "SHM1" | H123: serine transhydroxymethyltransferase 1 | I123: Glycine hydroxymethyltransferase | J123: 579.3741914 | K123: 1.2024068 | L123: 0.1467016261 | M123: 8.196274522 | N123: 2.48E-16 | O123: 2.02E-14 | P123: 4.58119949 | Q123: 4.914168169 | R123: 4.98675631 | S123: 5.525970043 | T123: 5.685718459 | U123: 5.491374432 | V123: 5.753267607 | W123: 6.041008172 | X123: 5.588494287 | Y123: 5.138121229 | Z123: 5.703373361 | AA123: 5.772043435 | AB123: 3.872198778 | AC123: 4.918858914 | AD123: 4.896377124 | AE123: 4.339854261 | AF123: 4.236811342 | AG123: 4.561447179 | AH123: 4.62366106 | AI123: 4.614424019 | AJ123: 4.480749246 | AK123: 4.265080605 | AL123: 3.960253792 | AM123: 3.911054067 | AN123: =AVERAGE(Y123:AA123)-AVERAGE(P123:R123) -> 0.710471352 | AO123: =AVERAGE(AK123:AM123)-AVERAGE(AB123:AD123) -> -0.5170154512
A124: Vitvi07g01513 | B124: VIT_00s0211g00120 | C124: AT5G26780.1 | D124: "SHM2" | E124: NA | F124: "SHM2" | G124: "SHM2" | H124: serine hydroxymethyltransferase 2 | I124: Glycine hydroxymethyltransferase | J124: 79.5126904 | K124: 1.207916074 | L124: 0.2605775027 | M124: 4.635534771 | N124: 3.56E-06 | O124: 5.43E-05 | P124: 3.740182444 | Q124: 3.974995344 | R124: 3.939572596 | S124: 4.467877783 | T124: 4.534984826 | U124: 4.295609683 | V124: 4.55123089 | W124: 4.699983606 | X124: 4.603883423 | Y124: 4.010894461 | Z124: 4.331847172 | AA124: 4.242551732 | AB124: 2.908526184 | AC124: 3.577755613 | AD124: 3.656084025 | AE124: 3.26042787 | AF124: 3.146801263 | AG124: 3.374923978 | AH124: 3.336419469 | AI124: 3.282540835 | AJ124: 3.280340488 | AK124: 3.324472636 | AL124: 3.728612056 | AM124: 2.609096121 | AN124: =AVERAGE(Y124:AA124)-AVERAGE(P124:R124) -> 0.3101809936 | AO124: =AVERAGE(AK124:AM124)-AVERAGE(AB124:AD124) -> -0.1600616698
A125: Vitvi04g02051 | B125: VIT_00s0214g00050 | C125: AT4G31770.1 | D125: "DBR1" | E125: NA | F125: "DBR1" | G125: "DBR1" | H125: debranching enzyme 1 | I125: No hit | J125: 33.94562074 | K125: -0.9789125313 | L125: 0.3710316246 | M125: -2.638353354 | N125: 0.00833097237 | O125: 0.04287117602 | P125: 2.527450472 | Q125: 2.41368138 | R125: 2.889210423 | S125: 1.941312817 | T125: 2.170255777 | U125: 2.504540939 | V125: 2.74648292 | W125: 2.439117758 | X125: 2.574246931 | Y125: 2.543174893 | Z125: 3.026460052 | AA125: 3.244029328 | AB125: 2.69845415 | AC125: 2.859084162 | AD125: 2.969457757 | AE125: 3.307169696 | AF125: 3.011932995 | AG125: 3.4229742 | AH125: 3.131370893 | AI125: 3.010945885 | AJ125: 2.955312029 | AK125: 3.484624234 | AL125: 3.438404746 | AM125: 2.809544888 | AN125: =AVERAGE(Y125:AA125)-AVERAGE(P125:R125) -> 0.3277739997 | AO125: =AVERAGE(AK125:AM125)-AVERAGE(AB125:AD125) -> 0.4018592666
A126: Vitvi07g01113 | B126: VIT_00s0216g00020 | C126: AT3G25140.1 | D126: "QUA1" | E126: NA | F126: "QUA1" | G126: "QUA1" | H126: Nucleotide-diphospho-sugar transferases superfamily protein | I126: Glycosyl transferase family 8 protein | J126: 625.0904529 | K126: -0.7187643837 | L126: 0.1713024783 | M126: -4.195878488 | N126: 2.72E-05 | O126: 0.0003352955745 | P126: 5.182487887 | Q126: 5.393322412 | R126: 5.215564337 | S126: 5.172599134 | T126: 5.4268546 | U126: 4.812888593 | V126: 4.953129606 | W126: 4.652150194 | X126: 4.970425332 | Y126: 4.456382093 | Z126: 4.837294548 | AA126: 4.860387098 | AB126: 5.264155827 | AC126: 5.758985885 | AD126: 5.275242682 | AE126: 5.240491798 | AF126: 5.457509587 | AG126: 5.196101435 | AH126: 5.400682246 | AI126: 5.185134202 | AJ126: 5.350157516 | AK126: 5.344426735 | AL126: 5.24329293 | AM126: 5.219956612 | AN126: =AVERAGE(Y126:AA126)-AVERAGE(P126:R126) -> -0.5457702997 | AO126: =AVERAGE(AK126:AM126)-AVERAGE(AB126:AD126) -> -0.1635693727
A127: Vitvi07g01120 | B127: VIT_00s0216g00060 | C127: AT3G07255.1 | D127: NA | E127: NA | F127: NA | G127: NA | H127: nuclear transport factor 2/RNA recognition motif protein | I127: Nuclear transport factor 2 (NTF2) | J127: 100.0986619 | K127: 0.9681529789 | L127: 0.2820462732 | M127: 3.432603338 | N127: 0.0005978160134 | O127: 0.004924481423 | P127: 3.400615779 | Q127: 3.724592581 | R127: 3.594940392 | S127: 3.58179465 | T127: 3.83148226 | U127: 3.779248256 | V127: 3.379648866 | W127: 4.066127202 | X127: 3.462418024 | Y127: 3.640696127 | Z127: 3.778759487 | AA127: 3.676452414 | AB127: 2.949122373 | AC127: 3.345143869 | AD127: 2.142835875 | AE127: 2.163830896 | AF127: 2.854946697 | AG127: 2.511246855 | AH127: 2.532713264 | AI127: 3.258649854 | AJ127: 2.634606784 | AK127: 3.213577664 | AL127: 3.258580076 | AM127: 3.203976445 | AN127: =AVERAGE(Y127:AA127)-AVERAGE(P127:R127) -> 0.1252530919 | AO127: =AVERAGE(AK127:AM127)-AVERAGE(AB127:AD127) -> 0.4130106895
A128: Vitvi07g01409 | B128: VIT_00s0218g00120 | C128: AT5G65570.1 | D128: NA | E128: NA | F128: "PCMP-H47" | G128: NA | H128: Tetratricopeptide repeat (TPR)-like superfamily protein | I128: Pentatricopeptide (PPR) repeat-containing protein | J128: 2261.307338 | K128: -1.059410685 | L128: 0.2156608277 | M128: -4.912392742 | N128: 9.00E-07 | O128: 1.59E-05 | P128: 8.222267512 | Q128: 8.472762161 | R128: 9.799877485 | S128: 9.478037774 | T128: 9.627216095 | U128: 10.0591718 | V128: 9.93460154 | W128: 9.321921982 | X128: 9.510637201 | Y128: 9.984848044 | Z128: 9.651905902 | AA128: 9.606948 | AB128: 12.2279884 | AC128: 10.58703767 | AD128: 10.8324221 | AE128: 10.03482007 | AF128: 10.59052356 | AG128: 10.9446029 | AH128: 10.59128275 | AI128: 10.6071204 | AJ128: 10.92425042 | AK128: 10.51590436 | AL128: 10.42041574 | AM128: 10.22474571 | AN128: =AVERAGE(Y128:AA128)-AVERAGE(P128:R128) -> 0.9162649295 | AO128: =AVERAGE(AK128:AM128)-AVERAGE(AB128:AD128) -> -0.8287941186
A129: Vitvi00g01151 | B129: VIT_00s0218g00150 | C129: AT2G22590.1 | D129: NA | E129: NA | F129: NA | G129: NA | H129: UDP-Glycosyltransferase superfamily protein | I129: UDP-rhamnose/rhamnosyltransferase | J129: 246.4562697 | K129: 1.453739953 | L129: 0.2227677805 | M129: 6.525808847 | N129: 6.76E-11 | O129: 2.60E-09 | P129: 5.389179949 | Q129: 5.155511516 | R129: 5.341695139 | S129: 5.818517731 | T129: 5.240791374 | U129: 5.332798478 | V129: 5.576086011 | W129: 5.752233247 | X129: 5.409734206 | Y129: 5.230754306 | Z129: 5.530674656 | AA129: 5.352914874 | AB129: 3.900738906 | AC129: 4.734198662 | AD129: 3.968119766 | AE129: 3.333917596 | AF129: 4.305328044 | AG129: 3.82246622 | AH129: 3.941594618 | AI129: 3.478139559 | AJ129: 3.231912035 | AK129: 3.925274117 | AL129: 3.808874141 | AM129: 3.826366852 | AN129: =AVERAGE(Y129:AA129)-AVERAGE(P129:R129) -> 0.0759857443 | AO129: =AVERAGE(AK129:AM129)-AVERAGE(AB129:AD129) -> -0.3475140745
A130: Vitvi07g01413 | B130: VIT_00s0218g00170 | C130: AT5G65550.1 | D130: NA | E130: NA | F130: NA | G130: NA | H130: UDP-Glycosyltransferase superfamily protein | I130: UDP-rhamnose/rhamnosyltransferase | J130: 267.6240896 | K130: 1.602104711 | L130: 0.1692384833 | M130: 9.466550871 | N130: 2.89E-21 | O130: 4.33E-19 | P130: 5.533744119 | Q130: 4.946122887 | R130: 5.102297959 | S130: 5.626893906 | T130: 5.380351916 | U130: 5.39420694 | V130: 5.553984059 | W130: 5.685012808 | X130: 5.549917422 | Y130: 5.167643933 | Z130: 5.518973616 | AA130: 5.272797992 | AB130: 3.762367466 | AC130: 4.617934528 | AD130: 4.241503028 | AE130: 3.871555742 | AF130: 3.769559562 | AG130: 3.697374037 | AH130: 4.147530365 | AI130: 3.886000763 | AJ130: 3.862936637 | AK130: 4.29053175 | AL130: 3.800724277 | AM130: 3.942915894 | AN130: =AVERAGE(Y130:AA130)-AVERAGE(P130:R130) -> 0.1257501919 | AO130: =AVERAGE(AK130:AM130)-AVERAGE(AB130:AD130) -> -0.1958777005
A131: Vitvi07g01250 | B131: VIT_00s0220g00070 | C131: AT5G36890.1 | D131: "BGLU42" | E131: NA | F131: "BGLU42" | G131: "BGLU42" | H131: beta glucosidase 42 | I131: Latex cyanogenic beta glucosidase | J131: 1786.850795 | K131: 1.030661737 | L131: 0.133429748 | M131: 7.724377453 | N131: 1.12E-14 | O131: 7.31E-13 | P131: 7.359921651 | Q131: 7.408403622 | R131: 7.685184336 | S131: 7.785873367 | T131: 7.666223087 | U131: 7.569076225 | V131: 7.61069696 | W131: 7.498310511 | X131: 7.454702205 | Y131: 6.975912055 | Z131: 7.386691004 | AA131: 7.479421551 | AB131: 6.298601673 | AC131: 6.685800291 | AD131: 6.679658378 | AE131: 6.052163057 | AF131: 6.382058396 | AG131: 6.381167764 | AH131: 6.231823431 | AI131: 6.20328342 | AJ131: 6.248420978 | AK131: 5.764096571 | AL131: 5.793468164 | AM131: 5.458226517 | AN131: =AVERAGE(Y131:AA131)-AVERAGE(P131:R131) -> -0.2038283331 | AO131: =AVERAGE(AK131:AM131)-AVERAGE(AB131:AD131) -> -0.8827563636
A132: Vitvi01g00658 | B132: VIT_00s0225g00090 | C132: AT2G42490.1 | D132: NA | E132: NA | F132: NA | G132: NA | H132: Copper amine oxidase family protein | I132: Copper amine oxidase | J132: 586.6595389 | K132: 0.6698607947 | L132: 0.1675819887 | M132: 3.997212349 | N132: 6.41E-05 | O132: 0.0007141120017 | P132: 5.306459643 | Q132: 5.324114669 | R132: 5.474150724 | S132: 5.202420344 | T132: 5.24918686 | U132: 5.075097734 | V132: 5.391243514 | W132: 5.178597573 | X132: 4.950638655 | Y132: 4.620801753 | Z132: 4.995948784 | AA132: 4.641700568 | AB132: 4.458506682 | AC132: 4.908719115 | AD132: 4.386521485 | AE132: 4.079379712 | AF132: 4.472090333 | AG132: 4.355798049 | AH132: 4.450672556 | AI132: 4.550490344 | AJ132: 4.438050133 | AK132: 4.310182862 | AL132: 4.159511671 | AM132: 4.06501688 | AN132: =AVERAGE(Y132:AA132)-AVERAGE(P132:R132) -> -0.6154246434 | AO132: =AVERAGE(AK132:AM132)-AVERAGE(AB132:AD132) -> -0.4063452899
A133: Vitvi13g02248 | B133: VIT_00s0225g00120 | C133: AT5G40460.1 | D133: NA | E133: NA | F133: NA | G133: NA | H133: cyclin-dependent kinase inhibitor SMR3-like protein | I133: Unknown protein | J133: 187.3858492 | K133: -0.9227515345 | L133: 0.201934311 | M133: -4.569562894 | N133: 4.89E-06 | O133: 7.20E-05 | P133: 5.605893257 | Q133: 5.848654367 | R133: 5.422896818 | S133: 5.567834421 | T133: 5.504072732 | U133: 5.433904309 | V133: 5.448043348 | W133: 5.174351012 | X133: 5.554595698 | Y133: 5.340038518 | Z133: 5.441939555 | AA133: 5.821269199 | AB133: 5.48723854 | AC133: 5.85315576 | AD133: 6.157004923 | AE133: 5.894711106 | AF133: 6.127896295 | AG133: 5.881646437 | AH133: 5.586517965 | AI133: 5.780067084 | AJ133: 5.888859758 | AK133: 5.8464081 | AL133: 5.862937234 | AM133: 6.014778939 | AN133: =AVERAGE(Y133:AA133)-AVERAGE(P133:R133) -> -0.09139905674 | AO133: =AVERAGE(AK133:AM133)-AVERAGE(AB133:AD133) -> 0.07557501614
A134: Vitvi01g00662 | B134: VIT_00s0225g00130 | C134: AT1G70580.1 | D134: "AOAT2" | E134: NA | F134: "AOAT2" | G134: "AOAT2" | H134: alanine-2-oxoglutarate aminotransferase 2 | I134: Alanine transaminase. | J134: 974.8892989 | K134: 0.9853681348 | L134: 0.15946909 | M134: 6.179054101 | N134: 6.45E-10 | O134: 2.13E-08 | P134: 6.125385814 | Q134: 6.460741894 | R134: 6.595787657 | S134: 6.430596769 | T134: 6.736662556 | U134: 6.586258895 | V134: 6.55861456 | W134: 6.456835527 | X134: 6.750473864 | Y134: 6.462474955 | Z134: 6.614308784 | AA134: 6.659902338 | AB134: 5.427908149 | AC134: 6.359403543 | AD134: 5.860252381 | AE134: 5.192328256 | AF134: 5.48990109 | AG134: 5.575631793 | AH134: 5.590865004 | AI134: 5.363264511 | AJ134: 5.599144009 | AK134: 5.780540353 | AL134: 5.55416991 | AM134: 5.465114158 | AN134: =AVERAGE(Y134:AA134)-AVERAGE(P134:R134) -> 0.1849235705 | AO134: =AVERAGE(AK134:AM134)-AVERAGE(AB134:AD134) -> -0.2825798837
A135: Vitvi01g00664 | B135: VIT_00s0225g00150 | C135: AT1G70570.1 | D135: NA | E135: NA | F135: NA | G135: NA | H135: anthranilate phosphoribosyltransferase | I135: Anthranilate phosphoribosyltransferase | J135: 153.8215612 | K135: 0.564628707 | L135: 0.1995189636 | M135: 2.82995008 | N135: 0.004655526746 | O135: 0.0267905953 | P135: 3.521605508 | Q135: 3.367295671 | R135: 3.67398532 | S135: 3.551647324 | T135: 3.382649645 | U135: 3.466972416 | V135: 3.532136574 | W135: 3.597149527 | X135: 3.54963176 | Y135: 3.551749242 | Z135: 3.658633634 | AA135: 3.603490144 | AB135: 2.878983708 | AC135: 3.229589524 | AD135: 3.257101978 | AE135: 2.99999589 | AF135: 2.679776198 | AG135: 2.878978932 | AH135: 3.01402278 | AI135: 2.742327039 | AJ135: 3.092985452 | AK135: 2.96402168 | AL135: 3.107648651 | AM135: 2.915281171 | AN135: =AVERAGE(Y135:AA135)-AVERAGE(P135:R135) -> 0.08366217342 | AO135: =AVERAGE(AK135:AM135)-AVERAGE(AB135:AD135) -> -0.1262412362
A136: Vitvi01g00669 | B136: VIT_00s0225g00220 | C136: AT1G60780.1 | D136: "HAP13" | E136: NA | F136: "HAP13" | G136: "HAP13" | H136: Clathrin adaptor complexes medium subunit family protein | I136: Adaptor-related protein complex 1, mu 1 subunit | J136: 905.612628 | K136: -0.3651436711 | L136: 0.1249230962 | M136: -2.922947655 | N136: 0.003467348012 | O136: 0.02111319274 | P136: 6.125056976 | Q136: 6.25318214 | R136: 6.066831054 | S136: 6.188213977 | T136: 6.285933245 | U136: 6.113149989 | V136: 6.171248325 | W136: 6.121608302 | X136: 6.088564085 | Y136: 6.042930104 | Z136: 6.152843725 | AA136: 6.199087071 | AB136: 5.913817248 | AC136: 6.232977486 | AD136: 6.219926575 | AE136: 6.392315396 | AF136: 6.215559697 | AG136: 6.292394751 | AH136: 6.332793085 | AI136: 6.261509571 | AJ136: 6.221341029 | AK136: 6.609361695 | AL136: 6.412848244 | AM136: 6.43250631 | AN136: =AVERAGE(Y136:AA136)-AVERAGE(P136:R136) -> -0.01673642295 | AO136: =AVERAGE(AK136:AM136)-AVERAGE(AB136:AD136) -> 0.3626649799
A137: Vitvi01g00672 | B137: VIT_00s0225g00230 | C137: AT1G23320.1 | D137: "TAR1" | E137: NA | F137: "TAR1" | G137: "TAR1" | H137: tryptophan aminotransferase related 1 | I137: Alliin lyase precursor | J137: 2585.89646 | K137: -1.782861408 | L137: 0.1788335527 | M137: -9.969389861 | N137: 2.07E-23 | O137: 4.12E-21 | P137: 7.23201383 | Q137: 6.817436452 | R137: 7.37397873 | S137: 7.217931622 | T137: 7.042203633 | U137: 7.04727069 | V137: 7.040197025 | W137: 6.727774251 | X137: 6.19988252 | Y137: 5.329422481 | Z137: 6.288431156 | AA137: 6.265321367 | AB137: 7.985286426 | AC137: 8.160344812 | AD137: 8.323043703 | AE137: 8.272835439 | AF137: 8.218303342 | AG137: 8.035974003 | AH137: 7.978185696 | AI137: 7.735753681 | AJ137: 8.05770109 | AK137: 6.546613772 | AL137: 6.763526619 | AM137: 6.74602684 | AN137: =AVERAGE(Y137:AA137)-AVERAGE(P137:R137) -> -1.180084669 | AO137: =AVERAGE(AK137:AM137)-AVERAGE(AB137:AD137) -> -1.470835903
A138: Vitvi19g00051 | B138: VIT_00s0227g00030 | C138: AT3G14840.2 | D138: NA | E138: NA | F138: NA | G138: NA | H138: Leucine-rich repeat transmembrane protein kinase | I138: Gag-pol polyprotein | J138: 529.0880642 | K138: 1.413663192 | L138: 0.1424700581 | M138: 9.922528361 | N138: 3.32E-23 | O138: 6.41E-21 | P138: 4.543321863 | Q138: 4.811781024 | R138: 5.360867578 | S138: 4.953687469 | T138: 5.215804663 | U138: 5.467763349 | V138: 5.464338367 | W138: 5.395612597 | X138: 5.393942725 | Y138: 4.774665318 | Z138: 5.240510987 | AA138: 5.453463673 | AB138: 3.836398456 | AC138: 4.446926351 | AD138: 4.348070519 | AE138: 3.760787602 | AF138: 3.787044176 | AG138: 3.978848247 | AH138: 3.821177907 | AI138: 3.461223662 | AJ138: 4.066269356 | AK138: 3.683384673 | AL138: 3.76042528 | AM138: 3.42598867 | AN138: =AVERAGE(Y138:AA138)-AVERAGE(P138:R138) -> 0.2508898377 | AO138: =AVERAGE(AK138:AM138)-AVERAGE(AB138:AD138) -> -0.587198901
A139: Vitvi07g00228 | B139: VIT_00s0227g00030 | C139: AT2G47970.2 | D139: NA | E139: NA | F139: NA | G139: NA | H139: Nuclear pore localization protein NPL4 | I139: Gag-pol polyprotein | J139: 1409.125419 | K139: -0.6838143191 | L139: 0.1109437973 | M139: -6.163610184 | N139: 7.11E-10 | O139: 2.32E-08 | P139: 6.655872387 | Q139: 6.482212702 | R139: 6.653802031 | S139: 6.623339159 | T139: 6.559585157 | U139: 6.297010523 | V139: 6.624899214 | W139: 6.693866039 | X139: 6.467933105 | Y139: 6.690746524 | Z139: 6.760475626 | AA139: 6.56214822 | AB139: 6.42499022 | AC139: 6.729451146 | AD139: 6.636124762 | AE139: 6.826568973 | AF139: 6.805739172 | AG139: 6.817677676 | AH139: 7.095771868 | AI139: 7.083882514 | AJ139: 6.712284145 | AK139: 7.35410582 | AL139: 7.313162852 | AM139: 7.34695048 | AN139: =AVERAGE(Y139:AA139)-AVERAGE(P139:R139) -> 0.07382774986 | AO139: =AVERAGE(AK139:AM139)-AVERAGE(AB139:AD139) -> 0.7412176744
A140: Vitvi12g01981 | B140: VIT_00s0227g00030 | C140: AT1G10930.1 | D140: "RECQ4A" | E140: NA | F140: "RECQ4A" | G140: "RECQ4A" | H140: DNA helicase (RECQl4A) | I140: Gag-pol polyprotein | J140: 182.2835869 | K140: 0.6603965186 | L140: 0.1834668971 | M140: 3.599540458 | N140: 0.0003187800355 | O140: 0.002864071937 | P140: 2.745586696 | Q140: 2.774128216 | R140: 2.724784959 | S140: 2.663098652 | T140: 2.749833134 | U140: 2.653373983 | V140: 2.812175265 | W140: 3.039177292 | X140: 2.745367782 | Y140: 2.999180744 | Z140: 2.933900019 | AA140: 3.188366661 | AB140: 1.819634589 | AC140: 2.401101383 | AD140: 2.429810196 | AE140: 2.230372201 | AF140: 2.15096009 | AG140: 2.110133649 | AH140: 2.414308556 | AI140: 2.404711153 | AJ140: 2.216673953 | AK140: 2.932956429 | AL140: 2.719648513 | AM140: 2.846242716 | AN140: =AVERAGE(Y140:AA140)-AVERAGE(P140:R140) -> 0.2923158508 | AO140: =AVERAGE(AK140:AM140)-AVERAGE(AB140:AD140) -> 0.6161004966
A141: Vitvi17g00641 | B141: VIT_00s0227g00030 | C141: AT3G29100.3 | D141: "VTI13" | E141: NA | F141: "VTI13" | G141: "VTI13" | H141: vesicle transport V-snare 13 | I141: Gag-pol polyprotein | J141: 569.245321 | K141: -0.4549330253 | L141: 0.1417518988 | M141: -3.209361066 | N141: 0.001330303205 | O141: 0.009619032737 | P141: 6.067252037 | Q141: 6.315431606 | R141: 5.830903955 | S141: 6.236064698 | T141: 6.194126239 | U141: 5.917915399 | V141: 6.09092853 | W141: 6.338524771 | X141: 6.108637381 | Y141: 6.03916768 | Z141: 6.227515032 | AA141: 6.399352477 | AB141: 5.794527271 | AC141: 6.168849795 | AD141: 6.32225251 | AE141: 6.57979456 | AF141: 6.252711349 | AG141: 6.328070366 | AH141: 6.471547699 | AI141: 6.461119856 | AJ141: 6.308491141 | AK141: 6.297808178 | AL141: 6.403266813 | AM141: 6.29145021 | AN141: =AVERAGE(Y141:AA141)-AVERAGE(P141:R141) -> 0.1508158638 | AO141: =AVERAGE(AK141:AM141)-AVERAGE(AB141:AD141) -> 0.2356318753
A142: Vitvi07g01225 | B142: VIT_00s0227g00060 | C142: AT2G40360.1 | D142: NA | E142: NA | F142: "BOP1" | G142: NA | H142: Transducin/WD40 repeat-like superfamily protein | I142: WD-40 repeat protein | J142: 490.6625237 | K142: 0.5918779347 | L142: 0.1349474384 | M142: 4.38598866 | N142: 1.15E-05 | O142: 0.0001556977463 | P142: 4.605560166 | Q142: 4.598037886 | R142: 4.664664087 | S142: 4.773520837 | T142: 4.820012561 | U142: 4.648839579 | V142: 4.858639418 | W142: 4.995854278 | X142: 4.72521279 | Y142: 5.050685144 | Z142: 5.017809218 | AA142: 5.050001772 | AB142: 3.839117169 | AC142: 4.244947008 | AD142: 4.026189725 | AE142: 4.177193538 | AF142: 4.118653046 | AG142: 4.071201441 | AH142: 4.44736487 | AI142: 4.315800846 | AJ142: 4.260056145 | AK142: 4.904225267 | AL142: 4.779930918 | AM142: 4.684537255 | AN142: =AVERAGE(Y142:AA142)-AVERAGE(P142:R142) -> 0.4167446646 | AO142: =AVERAGE(AK142:AM142)-AVERAGE(AB142:AD142) -> 0.7528131795
A143: Vitvi07g01219 | B143: VIT_00s0227g00130 | C143: AT4G12740.1 | D143: NA | E143: NA | F143: "MYH" | G143: NA | H143: HhH-GPD base excision DNA repair family protein | I143: A/G-specific adenine glycosylase | J143: 1346.258975 | K143: -1.357992809 | L143: 0.1816068508 | M143: -7.477651876 | N143: 7.57E-14 | O143: 4.45E-12 | P143: 6.139599976 | Q143: 6.276345511 | R143: 5.75815086 | S143: 6.302682603 | T143: 6.053285736 | U143: 6.234612553 | V143: 5.595364185 | W143: 5.696555558 | X143: 6.062543508 | Y143: 6.5695732 | Z143: 5.913465906 | AA143: 5.7939524 | AB143: 6.176011421 | AC143: 6.759758669 | AD143: 6.607768838 | AE143: 7.1816566 | AF143: 6.860240273 | AG143: 6.728975686 | AH143: 7.214850589 | AI143: 6.865419411 | AJ143: 6.780161274 | AK143: 6.683858296 | AL143: 6.844728849 | AM143: 6.716013131 | AN143: =AVERAGE(Y143:AA143)-AVERAGE(P143:R143) -> 0.03429838627 | AO143: =AVERAGE(AK143:AM143)-AVERAGE(AB143:AD143) -> 0.2336871159
A144: Vitvi02g00561 | B144: VIT_00s0229g00060 | C144: AT5G47470.1 | D144: "UMAMIT7" | E144: NA | F144: "UMAMIT7" | G144: "UMAMIT7" | H144: Nodulin MtN21 /EamA-like transporter family protein | I144: Nodulin MtN21 family | J144: 2767.214838 | K144: -0.5350141126 | L144: 0.1272392785 | M144: -4.20478738 | N144: 2.61E-05 | O144: 0.0003238107906 | P144: 8.693917196 | Q144: 8.219461149 | R144: 8.47189403 | S144: 8.6718402 | T144: 8.207114829 | U144: 8.251728225 | V144: 8.324504846 | W144: 8.539808647 | X144: 8.520662165 | Y144: 8.470296501 | Z144: 8.385434828 | AA144: 8.356536589 | AB144: 8.299527751 | AC144: 8.294288201 | AD144: 8.773273109 | AE144: 8.846162495 | AF144: 8.578109352 | AG144: 8.797556758 | AH144: 8.820896763 | AI144: 8.858746612 | AJ144: 8.896264388 | AK144: 8.834591691 | AL144: 8.812579806 | AM144: 8.766862964 | AN144: =AVERAGE(Y144:AA144)-AVERAGE(P144:R144) -> -0.05766815265 | AO144: =AVERAGE(AK144:AM144)-AVERAGE(AB144:AD144) -> 0.3489818
A145: Vitvi02g00572 | B145: VIT_00s0229g00160 | C145: AT5G47435.1 | D145: NA | E145: NA | F145: "PURU2" | G145: NA | H145: formyltetrahydrofolate deformylase | I145: formyltetrahydrofolate deformylase | J145: 65.77460008 | K145: 0.8674987415 | L145: 0.2937851655 | M145: 2.952833715 | N145: 0.00314871526 | O145: 0.01946945275 | P145: 3.381771597 | Q145: 3.235762774 | R145: 3.587531938 | S145: 3.363731807 | T145: 3.523088533 | U145: 3.502182526 | V145: 3.464029011 | W145: 3.353542782 | X145: 3.042469839 | Y145: 3.092818207 | Z145: 3.359189607 | AA145: 3.498728125 | AB145: 2.295544666 | AC145: 3.001691357 | AD145: 2.826000623 | AE145: 2.475772941 | AF145: 2.573201629 | AG145: 2.062424583 | AH145: 2.833683764 | AI145: 2.552579731 | AJ145: 2.576480912 | AK145: 2.813982394 | AL145: 2.814989983 | AM145: 2.48317585 | AN145: =AVERAGE(Y145:AA145)-AVERAGE(P145:R145) -> -0.08477679028 | AO145: =AVERAGE(AK145:AM145)-AVERAGE(AB145:AD145) -> -0.003696139781
A146: Vitvi07g02881 | B146: VIT_00s0231g00070 | C146: AT4G12980.1 | D146: NA | E146: NA | F146: NA | G146: NA | H146: Auxin-responsive family protein | I146: Auxin-responsive protein | J146: 1220.762339 | K146: -0.6936337248 | L146: 0.1740891018 | M146: -3.984360408 | N146: 6.77E-05 | O146: 0.0007470685704 | P146: 6.598732249 | Q146: 6.62637825 | R146: 6.590718384 | S146: 6.537133384 | T146: 6.429873134 | U146: 6.383952798 | V146: 6.526654706 | W146: 6.141657977 | X146: 6.555256094 | Y146: 7.144007184 | Z146: 6.695385097 | AA146: 6.655007788 | AB146: 6.284553402 | AC146: 6.348558936 | AD146: 6.368178468 | AE146: 6.938177541 | AF146: 6.63527902 | AG146: 6.745753591 | AH146: 7.054191651 | AI146: 6.974608846 | AJ146: 6.789616279 | AK146: 7.516361448 | AL146: 7.395916306 | AM146: 7.347175628 | AN146: =AVERAGE(Y146:AA146)-AVERAGE(P146:R146) -> 0.2261903956 | AO146: =AVERAGE(AK146:AM146)-AVERAGE(AB146:AD146) -> 1.086054192
A147: Vitvi02g00513 | B147: VIT_00s0233g00020 | C147: AT1G12230.2 | D147: NA | E147: NA | F147: NA | G147: NA | H147: Aldolase superfamily protein | I147: Transaldolase | J147: 488.5802216 | K147: -0.7645339154 | L147: 0.133084499 | M147: -5.744725502 | N147: 9.21E-09 | O147: 2.44E-07 | P147: 5.900725515 | Q147: 5.846893712 | R147: 5.993279737 | S147: 5.585317057 | T147: 5.453998647 | U147: 5.468093437 | V147: 5.327796796 | W147: 5.343963989 | X147: 5.260888339 | Y147: 5.294743081 | Z147: 5.156709354 | AA147: 5.376898277 | AB147: 5.741223313 | AC147: 5.889061905 | AD147: 6.003725599 | AE147: 5.827623818 | AF147: 5.754195763 | AG147: 5.822479298 | AH147: 5.537728309 | AI147: 5.334293649 | AJ147: 5.796402876 | AK147: 5.244980045 | AL147: 5.317167291 | AM147: 5.160550767 | AN147: =AVERAGE(Y147:AA147)-AVERAGE(P147:R147) -> -0.6375160841 | AO147: =AVERAGE(AK147:AM147)-AVERAGE(AB147:AD147) -> -0.6371042378
A148: Vitvi13g01242 | B148: VIT_00s0250g00020 | C148: AT3G52180.1 | D148: "SEX4" | E148: NA | F148: "SEX4" | G148: "SEX4" | H148: dual specificity protein phosphatase (DsPTP1) family protein | I148: Protein tyrosine phosphatase | J148: 880.3626543 | K148: 0.6253757071 | L148: 0.126993536 | M148: 4.92446881 | N148: 8.46E-07 | O148: 1.50E-05 | P148: 6.5589295 | Q148: 6.230082733 | R148: 6.738830575 | S148: 6.637582397 | T148: 6.600546477 | U148: 6.587256535 | V148: 6.631315948 | W148: 6.804301729 | X148: 6.491634614 | Y148: 6.3682998 | Z148: 6.602691692 | AA148: 6.720194602 | AB148: 5.755382568 | AC148: 5.97770805 | AD148: 6.025781573 | AE148: 5.772324432 | AF148: 5.684024857 | AG148: 5.966396057 | AH148: 5.725243288 | AI148: 5.649654957 | AJ148: 5.908274681 | AK148: 5.515000334 | AL148: 5.60682127 | AM148: 5.113282185 | AN148: =AVERAGE(Y148:AA148)-AVERAGE(P148:R148) -> 0.05444776189 | AO148: =AVERAGE(AK148:AM148)-AVERAGE(AB148:AD148) -> -0.5079228008
A149: Vitvi13g01243 | B149: VIT_00s0250g00030 | C149: AT5G04480.1 | D149: NA | E149: NA | F149: NA | G149: NA | H149: UDP-Glycosyltransferase superfamily protein | I149: Glycosyltransferase family protein 1 | J149: 406.1043653 | K149: -0.6392522234 | L149: 0.1754400971 | M149: -3.643706507 | N149: 0.000268739847 | O149: 0.002483472351 | P149: 3.958783232 | Q149: 4.291349563 | R149: 4.071611418 | S149: 3.682128713 | T149: 3.904924054 | U149: 3.787604786 | V149: 3.723904154 | W149: 3.493701987 | X149: 3.834287315 | Y149: 4.055281955 | Z149: 3.810183908 | AA149: 3.811546855 | AB149: 3.905571042 | AC149: 4.249406296 | AD149: 3.956302597 | AE149: 4.082461438 | AF149: 4.245143397 | AG149: 4.001865967 | AH149: 4.107085019 | AI149: 3.933630797 | AJ149: 4.122198966 | AK149: 4.317674346 | AL149: 4.277756748 | AM149: 4.326420284 | AN149: =AVERAGE(Y149:AA149)-AVERAGE(P149:R149) -> -0.2149104983 | AO149: =AVERAGE(AK149:AM149)-AVERAGE(AB149:AD149) -> 0.2701904809
A150: Vitvi07g01309 | B150: VIT_00s0253g00030 | C150: AT2G23640.1 | D150: "RTNLB13" | E150: NA | F150: "RTNLB13" | G150: "RTNLB13" | H150: Reticulan like protein B13 | I150: BTI2 (VIRB2- interacting protein 2) | J150: 49.99026641 | K150: -1.013381514 | L150: 0.3771850718 | M150: -2.686695709 | N150: 0.007216265951 | O150: 0.03818925729 | P150: 3.197908144 | Q150: 3.000016125 | R150: 2.964081481 | S150: 2.167523919 | T150: 2.730303527 | U150: 2.881785017 | V150: 2.697286287 | W150: 2.759422531 | X150: 2.760197265 | Y150: 2.970418032 | Z150: 2.9512736 | AA150: 3.152881893 | AB150: 2.714277007 | AC150: 2.308678171 | AD150: 3.106752421 | AE150: 4.028243241 | AF150: 2.851736618 | AG150: 3.130718958 | AH150: 4.051114312 | AI150: 3.202686729 | AJ150: 3.381300326 | AK150: 4.225583081 | AL150: 3.625455413 | AM150: 3.703961317 | AN150: =AVERAGE(Y150:AA150)-AVERAGE(P150:R150) -> -0.02914407513 | AO150: =AVERAGE(AK150:AM150)-AVERAGE(AB150:AD150) -> 1.141764071
A151: Vitvi16g02142 | B151: VIT_00s0258g00040 | C151: AT5G38280.1 | D151: "PR5K" | E151: NA | F151: "PR5K" | G151: "PR5K" | H151: PR5-like receptor kinase | I151: Ser/Thr receptor-like kinase1 | J151: 65.55211194 | K151: 1.158561235 | L151: 0.3366536029 | M151: 3.441404534 | N151: 0.0005787026388 | O151: 0.004786756614 | P151: 2.427967933 | Q151: 2.445852454 | R151: 2.712388825 | S151: 2.354341285 | T151: 2.402828915 | U151: 2.618079823 | V151: 2.706807674 | W151: 2.173626391 | X151: 2.584164319 | Y151: 2.446163295 | Z151: 2.581823386 | AA151: 2.672428333 | AB151: 1.423415701 | AC151: 1.966967624 | AD151: 1.753207015 | AE151: 1.364102376 | AF151: 1.328289339 | AG151: 1.863447751 | AH151: 1.445355965 | AI151: 0.8233691562 | AJ151: 1.693227781 | AK151: 1.205866392 | AL151: 1.302133751 | AM151: 1.082124031 | AN151: =AVERAGE(Y151:AA151)-AVERAGE(P151:R151) -> 0.03806860084 | AO151: =AVERAGE(AK151:AM151)-AVERAGE(AB151:AD151) -> -0.5178220553
A152: Vitvi16g02141 | B152: VIT_00s0258g00050 | C152: AT1G66910.1 | D152: NA | E152: NA | F152: NA | G152: NA | H152: Protein kinase superfamily protein | I152: Receptor serine/threonine kinase | J152: 229.2532561 | K152: 2.330168408 | L152: 0.2986295357 | M152: 7.802873225 | N152: 6.05E-15 | O152: 4.07E-13 | P152: 3.734137431 | Q152: 3.800266297 | R152: 4.216770001 | S152: 4.035949924 | T152: 3.941981562 | U152: 4.243843154 | V152: 4.742729878 | W152: 4.159516223 | X152: 4.395477215 | Y152: 4.363105738 | Z152: 4.098793022 | AA152: 4.311464093 | AB152: 2.542953021 | AC152: 3.270948641 | AD152: 3.10053125 | AE152: 2.22264978 | AF152: 1.575598723 | AG152: 2.811555794 | AH152: 2.687280374 | AI152: 2.317556152 | AJ152: 2.381837753 | AK152: 2.637108828 | AL152: 2.258694841 | AM152: 2.301502196 | AN152: =AVERAGE(Y152:AA152)-AVERAGE(P152:R152) -> 0.340729708 | AO152: =AVERAGE(AK152:AM152)-AVERAGE(AB152:AD152) -> -0.5723756827
A153: Vitvi10g00241 | B153: VIT_00s0259g00070 | C153: AT4G16380.3 | D153: NA | E153: NA | F153: NA | G153: NA | H153: Heavy metal transport/detoxification superfamily protein | I153: Proline-rich family protein | J153: 327.1677206 | K153: -0.5472729313 | L153: 0.1832750231 | M153: -2.986074817 | N153: 0.002825834973 | O153: 0.01787501133 | P153: 5.554881236 | Q153: 5.88437877 | R153: 5.012774714 | S153: 5.41167923 | T153: 5.972422344 | U153: 5.230733958 | V153: 5.298218999 | W153: 5.225316046 | X153: 5.151448823 | Y153: 4.449518823 | Z153: 5.089677485 | AA153: 4.798044366 | AB153: 5.24864282 | AC153: 5.619773884 | AD153: 5.494619692 | AE153: 5.457369357 | AF153: 5.577309364 | AG153: 5.016667271 | AH153: 5.324197832 | AI153: 5.077923308 | AJ153: 5.24605797 | AK153: 5.197874152 | AL153: 5.193731279 | AM153: 4.735313583 | AN153: =AVERAGE(Y153:AA153)-AVERAGE(P153:R153) -> -0.7049313484 | AO153: =AVERAGE(AK153:AM153)-AVERAGE(AB153:AD153) -> -0.4120391271
A154: Vitvi04g01536 | B154: VIT_00s0264g00020 | C154: AT4G35840.2 | D154: NA | E154: NA | F154: "NIP1" | G154: NA | H154: RING/U-box superfamily protein | I154: Zinc finger (C3HC4-type ring finger) | J154: 354.2631381 | K154: -0.5626465051 | L154: 0.1756769032 | M154: -3.202734651 | N154: 0.001361293482 | O154: 0.009797214936 | P154: 5.798042449 | Q154: 5.468103859 | R154: 5.845740961 | S154: 5.725474902 | T154: 5.412320732 | U154: 5.616272625 | V154: 5.404428164 | W154: 5.641344696 | X154: 5.848006911 | Y154: 6.86570119 | Z154: 5.988175912 | AA154: 5.847474385 | AB154: 5.394793162 | AC154: 5.77744462 | AD154: 5.665867652 | AE154: 6.044929853 | AF154: 5.99485724 | AG154: 6.003245511 | AH154: 6.112249478 | AI154: 5.935522911 | AJ154: 5.801556636 | AK154: 5.679748397 | AL154: 5.8576658 | AM154: 5.671623288 | AN154: =AVERAGE(Y154:AA154)-AVERAGE(P154:R154) -> 0.5298214059 | AO154: =AVERAGE(AK154:AM154)-AVERAGE(AB154:AD154) -> 0.1236440167
A155: Vitvi04g01535 | B155: VIT_00s0264g00030 | C155: AT4G35830.1 | D155: "ACO1" | E155: NA | F155: "ACO1" | G155: "ACO1" | H155: aconitase 1 | I155: Aconitate hydratase, cytoplasmic | J155: 1499.667081 | K155: -0.3733059744 | L155: 0.1174688987 | M155: -3.177913291 | N155: 0.001483391062 | O155: 0.01051763476 | P155: 5.693887066 | Q155: 5.515898016 | R155: 5.61441339 | S155: 5.732165881 | T155: 5.736575615 | U155: 5.667519251 | V155: 5.832275403 | W155: 5.712267654 | X155: 5.692739574 | Y155: 5.526344442 | Z155: 5.807403061 | AA155: 5.750203695 | AB155: 5.519565269 | AC155: 5.762223001 | AD155: 5.736739661 | AE155: 5.812297744 | AF155: 5.861974184 | AG155: 5.890712386 | AH155: 6.28487032 | AI155: 6.086023987 | AJ155: 5.964041893 | AK155: 6.290833368 | AL155: 6.265506292 | AM155: 6.20153534 | AN155: =AVERAGE(Y155:AA155)-AVERAGE(P155:R155) -> 0.08658424224 | AO155: =AVERAGE(AK155:AM155)-AVERAGE(AB155:AD155) -> 0.5797823562
A156: Vitvi04g02185 | B156: VIT_00s0264g00040 | C156: AT5G66060.1 | D156: NA | E156: NA | F156: "P4H5" | G156: NA | H156: 2-oxoglutarate (2OG) and Fe(II)-dependent oxygenase superfamily protein | I156: Prolyl 4-hydroxylase, alpha subunit | J156: 457.3125235 | K156: -0.4304911338 | L156: 0.1467008177 | M156: -2.934483532 | N156: 0.003341032816 | O156: 0.02049154372 | P156: 6.095292253 | Q156: 5.818379071 | R156: 5.762591414 | S156: 5.874936667 | T156: 5.670492436 | U156: 5.771685306 | V156: 5.735945704 | W156: 5.605475244 | X156: 5.707584203 | Y156: 5.643211902 | Z156: 5.733676223 | AA156: 5.552772302 | AB156: 5.849025216 | AC156: 5.913821843 | AD156: 5.754129552 | AE156: 5.987065758 | AF156: 5.937226808 | AG156: 5.870613162 | AH156: 5.981842911 | AI156: 5.944692429 | AJ156: 5.559182324 | AK156: 6.086761745 | AL156: 6.106876876 | AM156: 6.073645266 | AN156: =AVERAGE(Y156:AA156)-AVERAGE(P156:R156) -> -0.2488674375 | AO156: =AVERAGE(AK156:AM156)-AVERAGE(AB156:AD156) -> 0.2501024255
A157: Vitvi04g01534 | B157: VIT_00s0264g00060 | C157: AT2G17705.1 | D157: NA | E157: NA | F157: NA | G157: NA | H157: methionine-S-oxide reductase | I157: Unknown | J157: 285.0737522 | K157: -0.4458706695 | L157: 0.1668791423 | M157: -2.67181784 | N157: 0.007544158929 | O157: 0.03952506705 | P157: 6.125849224 | Q157: 6.39832971 | R157: 6.29851748 | S157: 6.165861658 | T157: 6.213537695 | U157: 6.145385175 | V157: 6.234846915 | W157: 6.226582014 | X157: 6.153885455 | Y157: 6.0421738 | Z157: 6.282400373 | AA157: 6.279003352 | AB157: 5.920251146 | AC157: 6.193736146 | AD157: 5.990597732 | AE157: 6.423160397 | AF157: 6.23003121 | AG157: 6.158491288 | AH157: 6.154579924 | AI157: 6.374017763 | AJ157: 6.17698981 | AK157: 6.176327207 | AL157: 6.026973238 | AM157: 5.96002581 | AN157: =AVERAGE(Y157:AA157)-AVERAGE(P157:R157) -> -0.07303962971 | AO157: =AVERAGE(AK157:AM157)-AVERAGE(AB157:AD157) -> 0.01958041009
A158: Vitvi10g00461 | B158: VIT_00s0265g00060 | C158: AT4G21700.1 | D158: NA | E158: NA | F158: NA | G158: NA | H158: DUF2921 family protein%2C putative (DUF2921) | I158: Unknown | J158: 363.2486526 | K158: -0.5137001247 | L158: 0.1589864707 | M158: -3.231093327 | N158: 0.001233176678 | O158: 0.009032957828 | P158: 3.971406796 | Q158: 4.338734938 | R158: 3.925833179 | S158: 3.88982107 | T158: 4.050264322 | U158: 3.774899973 | V158: 4.082594126 | W158: 3.99519305 | X158: 4.002142821 | Y158: 4.073769155 | Z158: 4.17286458 | AA158: 4.047035261 | AB158: 4.091746406 | AC158: 4.166678784 | AD158: 4.14551164 | AE158: 4.499751569 | AF158: 4.346598685 | AG158: 4.205326735 | AH158: 4.651234128 | AI158: 4.467486235 | AJ158: 4.366707124 | AK158: 4.421032932 | AL158: 4.303543378 | AM158: 4.179313382 | AN158: =AVERAGE(Y158:AA158)-AVERAGE(P158:R158) -> 0.01923136114 | AO158: =AVERAGE(AK158:AM158)-AVERAGE(AB158:AD158) -> 0.1666509541
A159: Vitvi10g01764 | B159: VIT_00s0265g00070 | C159: AT2G33770.1 | D159: "PHO2" | E159: NA | F159: "PHO2" | G159: "PHO2" | H159: phosphate 2 | I159: Ubiquitin-conjugating enzyme E2 O | J159: 598.7167343 | K159: 1.644974719 | L159: 0.1672407345 | M159: 9.83596923 | N159: 7.88E-23 | O159: 1.41E-20 | P159: 4.63784403 | Q159: 4.432532299 | R159: 4.733732317 | S159: 4.799990373 | T159: 4.755957254 | U159: 4.724616656 | V159: 5.071220718 | W159: 5.094243504 | X159: 5.109197696 | Y159: 5.493736193 | Z159: 5.285485973 | AA159: 5.333115984 | AB159: 3.312206172 | AC159: 4.17688542 | AD159: 3.507991863 | AE159: 2.991185627 | AF159: 3.503865821 | AG159: 3.534169848 | AH159: 3.647315035 | AI159: 3.644854724 | AJ159: 3.397230434 | AK159: 4.731561039 | AL159: 4.633787288 | AM159: 4.495238147 | AN159: =AVERAGE(Y159:AA159)-AVERAGE(P159:R159) -> 0.7694098342 | AO159: =AVERAGE(AK159:AM159)-AVERAGE(AB159:AD159) -> 0.9545010059
A160: Vitvi10g00460 | B160: VIT_00s0265g00080 | C160: AT4G30930.1 | D160: "NFD1" | E160: NA | F160: "NFD1" | G160: "NFD1" | H160: Ribosomal protein L21 | I160: Ribosomal protein L21 | J160: 128.702107 | K160: -0.5971445287 | L160: 0.2066219628 | M160: -2.89003415 | N160: 0.00385199978 | O160: 0.02296581273 | P160: 4.502285642 | Q160: 4.620421987 | R160: 4.700828129 | S160: 4.444892286 | T160: 4.376572162 | U160: 4.378311379 | V160: 4.27183574 | W160: 4.304199625 | X160: 4.355196118 | Y160: 4.797780035 | Z160: 4.493347011 | AA160: 4.010526385 | AB160: 4.363325255 | AC160: 4.935537408 | AD160: 4.467873701 | AE160: 4.574666035 | AF160: 4.678469668 | AG160: 4.490836913 | AH160: 4.636028723 | AI160: 4.785144744 | AJ160: 4.719319244 | AK160: 5.080469301 | AL160: 4.840447252 | AM160: 5.133139113 | AN160: =AVERAGE(Y160:AA160)-AVERAGE(P160:R160) -> -0.1739607756 | AO160: =AVERAGE(AK160:AM160)-AVERAGE(AB160:AD160) -> 0.429106434
A161: Vitvi10g00459 | B161: VIT_00s0265g00090 | C161: AT4G32480.1 | D161: NA | E161: NA | F161: NA | G161: NA | H161: sugar phosphate exchanger%2C putative (DUF506) | I161: Unknown protein | J161: 92.69907599 | K161: -1.738047712 | L161: 0.2999242831 | M161: -5.794954959 | N161: 6.83E-09 | O161: 1.85E-07 | P161: 2.444900333 | Q161: 2.879250111 | R161: 2.663214963 | S161: 1.911034385 | T161: 2.306048589 | U161: 2.534193002 | V161: 2.39195478 | W161: 2.061396193 | X161: 2.816478011 | Y161: 3.36609774 | Z161: 2.779731512 | AA161: 2.718280329 | AB161: 3.104193363 | AC161: 3.412911015 | AD161: 3.545620596 | AE161: 3.947112838 | AF161: 3.656212346 | AG161: 3.513234417 | AH161: 3.718317576 | AI161: 3.956391538 | AJ161: 3.639912119 | AK161: 4.634615319 | AL161: 4.531844102 | AM161: 4.763467832 | AN161: =AVERAGE(Y161:AA161)-AVERAGE(P161:R161) -> 0.2922480583 | AO161: =AVERAGE(AK161:AM161)-AVERAGE(AB161:AD161) -> 1.289067427
A162: Vitvi10g00454 | B162: VIT_00s0265g00130 | C162: AT1G53035.1 | D162: NA | E162: NA | F162: NA | G162: NA | H162: transmembrane protein | I162: Unknown protein | J162: 229.8676094 | K162: -0.6252724162 | L162: 0.1752701201 | M162: -3.567478677 | N162: 0.0003604326987 | O162: 0.003184956519 | P162: 5.365400986 | Q162: 5.591441719 | R162: 5.566968496 | S162: 5.624096533 | T162: 5.896789834 | U162: 5.736921937 | V162: 5.677038456 | W162: 5.618427279 | X162: 5.667189821 | Y162: 5.674861028 | Z162: 5.646273128 | AA162: 5.682800583 | AB162: 5.63050107 | AC162: 6.010330687 | AD162: 5.895998065 | AE162: 6.074859345 | AF162: 6.12614296 | AG162: 5.981558293 | AH162: 5.919637973 | AI162: 5.883669577 | AJ162: 5.865171809 | AK162: 6.252028835 | AL162: 6.164048833 | AM162: 6.020122467 | AN162: =AVERAGE(Y162:AA162)-AVERAGE(P162:R162) -> 0.1600411794 | AO162: =AVERAGE(AK162:AM162)-AVERAGE(AB162:AD162) -> 0.2997901041
A163: Vitvi04g00793 | B163: VIT_00s0270g00050 | C163: AT1G65720.1 | D163: NA | E163: NA | F163: NA | G163: NA | H163: transmembrane protein | I163: Unknown protein | J163: 1882.507902 | K163: -1.150103363 | L163: 0.1291687662 | M163: -8.903881311 | N163: 5.39E-19 | O163: 6.21E-17 | P163: 8.287233234 | Q163: 8.537403736 | R163: 8.375740245 | S163: 8.364089344 | T163: 8.138631002 | U163: 7.972189133 | V163: 7.822285189 | W163: 8.09000262 | X163: 7.962156745 | Y163: 7.968322468 | Z163: 8.024186714 | AA163: 7.754909429 | AB163: 8.344135636 | AC163: 8.648409906 | AD163: 8.65443123 | AE163: 8.861376636 | AF163: 8.626184587 | AG163: 8.559136721 | AH163: 8.569078709 | AI163: 8.59376374 | AJ163: 8.558295244 | AK163: 8.731229869 | AL163: 8.881474062 | AM163: 8.804335942 | AN163: =AVERAGE(Y163:AA163)-AVERAGE(P163:R163) -> -0.4843195342 | AO163: =AVERAGE(AK163:AM163)-AVERAGE(AB163:AD163) -> 0.2566877008
A164: Vitvi04g00796 | B164: VIT_00s0270g00100 | C164: AT5G62030.1 | D164: NA | E164: NA | F164: NA | G164: NA | H164: diphthamide synthesis DPH2 family protein | I164: Diphthamide synthesis DPH2 family | J164: 113.4992236 | K164: -0.7690926692 | L164: 0.2216811738 | M164: -3.469363933 | N164: 0.0005216922471 | O164: 0.004364434874 | P164: 3.09303404 | Q164: 3.131951568 | R164: 3.114801673 | S164: 3.144452235 | T164: 3.083501205 | U164: 2.843099346 | V164: 2.813694689 | W164: 2.94256234 | X164: 2.948166755 | Y164: 3.276612021 | Z164: 3.280339433 | AA164: 3.002730497 | AB164: 2.868131929 | AC164: 3.4285404 | AD164: 3.438156794 | AE164: 3.097769525 | AF164: 3.442398719 | AG164: 3.372759196 | AH164: 3.399100991 | AI164: 3.250286202 | AJ164: 3.082140735 | AK164: 3.881593686 | AL164: 3.688421343 | AM164: 3.977567308 | AN164: =AVERAGE(Y164:AA164)-AVERAGE(P164:R164) -> 0.07329822359 | AO164: =AVERAGE(AK164:AM164)-AVERAGE(AB164:AD164) -> 0.6042510716
A165: Vitvi10g02174 | B165: VIT_00s0271g00010 | C165: AT1G61680.1 | D165: "TPS14" | E165: "VviTPS55" | F165: "VviTPS55" | G165: "TPS14" | H165: terpene synthase 14 | I165: 1,8-cineole synthase, chloroplast | J165: 162.6559439 | K165: 1.428196888 | L165: 0.2316792522 | M165: 6.16454376 | N165: 7.07E-10 | O165: 2.31E-08 | P165: 3.404290003 | Q165: 3.507538655 | R165: 4.069374137 | S165: 3.780952442 | T165: 4.038142089 | U165: 3.452924557 | V165: 3.640432584 | W165: 4.018474535 | X165: 4.123471353 | Y165: 2.942045097 | Z165: 3.068720875 | AA165: 3.199645613 | AB165: 2.458728793 | AC165: 3.628407316 | AD165: 2.520105835 | AE165: 2.419022775 | AF165: 2.316007202 | AG165: 2.713439488 | AH165: 2.859491685 | AI165: 2.652168899 | AJ165: 2.573399985 | AK165: 1.81435099 | AL165: 1.602128685 | AM165: 1.526548337 | AN165: =AVERAGE(Y165:AA165)-AVERAGE(P165:R165) -> -0.5902637368 | AO165: =AVERAGE(AK165:AM165)-AVERAGE(AB165:AD165) -> -1.221404643
A166: Vitvi03g00800 | B166: VIT_00s0282g00040 | C166: AT2G22730.3 | D166: NA | E166: NA | F166: NA | G166: NA | H166: Major facilitator superfamily protein | I166: Major facilitator superfamily protein (MFS) Spinster | J166: 83.17210511 | K166: -0.70284019 | L166: 0.2616697714 | M166: -2.685981595 | N166: 0.007231707217 | O166: 0.03823417513 | P166: 2.77880232 | Q166: 2.927208771 | R166: 2.525081004 | S166: 2.500366593 | T166: 2.56759091 | U166: 2.478664786 | V166: 2.60751882 | W166: 2.78583403 | X166: 2.642894723 | Y166: 2.774591504 | Z166: 2.851008916 | AA166: 3.0698087 | AB166: 2.82863667 | AC166: 3.038204146 | AD166: 3.376186978 | AE166: 3.540456382 | AF166: 3.062327175 | AG166: 2.951686235 | AH166: 3.218218679 | AI166: 2.851073086 | AJ166: 3.336729852 | AK166: 3.020286869 | AL166: 2.665696444 | AM166: 3.176812087 | AN166: =AVERAGE(Y166:AA166)-AVERAGE(P166:R166) -> 0.1547723419 | AO166: =AVERAGE(AK166:AM166)-AVERAGE(AB166:AD166) -> -0.1267441314
A167: Vitvi10g02151 | B167: VIT_00s0286g00130 | C167: AT1G11410.1 | D167: NA | E167: NA | F167: NA | G167: NA | H167: S-locus lectin protein kinase family protein | I167: S-locus lectin protein kinase | J167: 178.553588 | K167: 0.8708286453 | L167: 0.1979001433 | M167: 4.400343683 | N167: 1.08E-05 | O167: 0.0001471889706 | P167: 3.758003522 | Q167: 3.791229496 | R167: 3.837626238 | S167: 3.754700684 | T167: 3.94287295 | U167: 3.490885723 | V167: 3.471553732 | W167: 3.651278115 | X167: 3.656314838 | Y167: 3.620210085 | Z167: 3.591013294 | AA167: 3.240206781 | AB167: 2.874249473 | AC167: 3.554505818 | AD167: 3.042626126 | AE167: 2.373981968 | AF167: 2.668636695 | AG167: 2.766173452 | AH167: 2.750332419 | AI167: 2.588017842 | AJ167: 2.905442182 | AK167: 2.722161826 | AL167: 2.647970399 | AM167: 2.356243969 | AN167: =AVERAGE(Y167:AA167)-AVERAGE(P167:R167) -> -0.311809699 | AO167: =AVERAGE(AK167:AM167)-AVERAGE(AB167:AD167) -> -0.5816684077
A168: Vitvi02g01798 | B168: VIT_00s0287g00080 | C168: AT5G47180.1 | D168: NA | E168: NA | F168: "PVA21" | G168: NA | H168: Plant VAMP (vesicle-associated membrane protein) family protein | I168: Vesicle-associated membrane protein | J168: 283.7073093 | K168: 0.4674438567 | L168: 0.1637470029 | M168: 2.854671221 | N168: 0.004308140225 | O168: 0.02514015286 | P168: 4.92943017 | Q168: 5.057649891 | R168: 4.898078579 | S168: 4.944425697 | T168: 4.881499151 | U168: 5.008161102 | V168: 5.076003969 | W168: 5.086375544 | X168: 5.071767227 | Y168: 5.220709686 | Z168: 5.21059804 | AA168: 5.239149101 | AB168: 3.870440456 | AC168: 4.229610032 | AD168: 4.182864546 | AE168: 4.397684916 | AF168: 4.40404952 | AG168: 4.180383431 | AH168: 4.707305827 | AI168: 4.494181357 | AJ168: 4.469560272 | AK168: 4.82125707 | AL168: 4.703472977 | AM168: 4.81912273 | AN168: =AVERAGE(Y168:AA168)-AVERAGE(P168:R168) -> 0.2617660622 | AO168: =AVERAGE(AK168:AM168)-AVERAGE(AB168:AD168) -> 0.6869792475
A169: Vitvi01g00647 | B169: VIT_00s0291g00060 | C169: AT3G26570.1 | D169: "PHT2%3B1" | E169: NA | F169: "PHT2%3B1" | G169: "PHT2%3B1" | H169: phosphate transporter 2%3B1 | I169: Inorganic phosphate transporter 2-1, chloroplast precursor | J169: 101.5740813 | K169: 1.034263666 | L169: 0.2928352205 | M169: 3.531896418 | N169: 0.0004125909348 | O169: 0.003572647646 | P169: 3.001526804 | Q169: 3.301337845 | R169: 3.486991442 | S169: 2.985069802 | T169: 3.37091972 | U169: 3.46603525 | V169: 3.503029192 | W169: 3.022372665 | X169: 3.335537084 | Y169: 3.571389428 | Z169: 3.570097333 | AA169: 3.323717688 | AB169: 2.376819277 | AC169: 3.180439193 | AD169: 2.524261579 | AE169: 1.721890246 | AF169: 2.262293546 | AG169: 2.519098577 | AH169: 2.307281192 | AI169: 2.073960545 | AJ169: 2.416240613 | AK169: 2.307308124 | AL169: 2.107601812 | AM169: 2.264070834 | AN169: =AVERAGE(Y169:AA169)-AVERAGE(P169:R169) -> 0.2251161188 | AO169: =AVERAGE(AK169:AM169)-AVERAGE(AB169:AD169) -> -0.4675130933
A170: Vitvi02g01716 | B170: VIT_00s0299g00110 | C170: AT3G60380.1 | D170: NA | E170: NA | F170: NA | G170: NA | H170: cotton fiber protein | I170: Glycoprotein homolog, related | J170: 108.2038708 | K170: -1.227752807 | L170: 0.235000552 | M170: -5.224467759 | N170: 1.75E-07 | O170: 3.58E-06 | P170: 2.946905669 | Q170: 3.312648004 | R170: 2.434817152 | S170: 2.404976579 | T170: 2.817106686 | U170: 2.531801664 | V170: 2.302174177 | W170: 2.397798686 | X170: 2.015644105 | Y170: 2.194867995 | Z170: 2.293895308 | AA170: 2.413244653 | AB170: 3.010419898 | AC170: 3.167201066 | AD170: 3.413283227 | AE170: 2.868463792 | AF170: 3.11703101 | AG170: 3.316333443 | AH170: 3.35183157 | AI170: 2.875533822 | AJ170: 3.421327981 | AK170: 3.611774511 | AL170: 3.251897929 | AM170: 3.445410803 | AN170: =AVERAGE(Y170:AA170)-AVERAGE(P170:R170) -> -0.5974542899 | AO170: =AVERAGE(AK170:AM170)-AVERAGE(AB170:AD170) -> 0.2393930175
A171: Vitvi10g01753 | B171: VIT_00s0301g00040 | C171: AT4G21620.1 | D171: NA | E171: NA | F171: NA | G171: NA | H171: glycine-rich protein | I171: Glycine-rich protein | J171: 761.7231473 | K171: 1.482705137 | L171: 0.1373660115 | M171: 10.79382826 | N171: 3.68E-27 | O171: 1.08E-24 | P171: 7.79825433 | Q171: 7.801370891 | R171: 7.896424662 | S171: 8.009214468 | T171: 7.731268116 | U171: 7.70629311 | V171: 7.894309839 | W171: 8.057106693 | X171: 7.868142815 | Y171: 7.898551602 | Z171: 7.972587833 | AA171: 7.812392915 | AB171: 6.078976942 | AC171: 6.875891476 | AD171: 6.214508878 | AE171: 5.735983368 | AF171: 6.099638075 | AG171: 6.167023695 | AH171: 6.03740852 | AI171: 6.320488093 | AJ171: 6.053963013 | AK171: 5.552391532 | AL171: 5.895382223 | AM171: 5.429545317 | AN171: =AVERAGE(Y171:AA171)-AVERAGE(P171:R171) -> 0.06249415564 | AO171: =AVERAGE(AK171:AM171)-AVERAGE(AB171:AD171) -> -0.7640194082
A172: Vitvi10g00399 | B172: VIT_00s0301g00090 | C172: AT2G29990.1 | D172: "NDA2" | E172: NA | F172: "NDA2" | G172: "NDA2" | H172: alternative NAD(P)H dehydrogenase 2 | I172: NDA2 (alternative NAD(P)H dehydrogenase 2) | J172: 153.1468644 | K172: 1.957245481 | L172: 0.2860820678 | M172: 6.84155248 | N172: 7.83E-12 | O172: 3.52E-10 | P172: 3.792820164 | Q172: 2.708125194 | R172: 3.268643761 | S172: 3.845360015 | T172: 3.553365974 | U172: 2.977611277 | V172: 3.88813099 | W172: 4.036099421 | X172: 4.273635666 | Y172: 6.006082233 | Z172: 5.00788646 | AA172: 5.098328641 | AB172: 1.199912595 | AC172: 2.272452002 | AD172: 1.695497575 | AE172: 1.559589551 | AF172: 2.60147937 | AG172: 1.971405461 | AH172: 2.178378613 | AI172: 2.146906512 | AJ172: 1.491267732 | AK172: 2.412884027 | AL172: 2.425906442 | AM172: 2.128538568 | AN172: =AVERAGE(Y172:AA172)-AVERAGE(P172:R172) -> 2.114236072 | AO172: =AVERAGE(AK172:AM172)-AVERAGE(AB172:AD172) -> 0.5998222885
A173: Vitvi07g01357 | B173: VIT_00s0304g00010 | C173: AT4G39840.1 | D173: NA | E173: NA | F173: NA | G173: NA | H173: cell wall integrity/stress response component-like protein | I173: Unknown protein | J173: 140.5963533 | K173: -1.390129465 | L173: 0.3020331513 | M173: -4.602572464 | N173: 4.17E-06 | O173: 6.24E-05 | P173: 4.368784534 | Q173: 5.268636894 | R173: 4.640276881 | S173: 3.917385881 | T173: 4.78662338 | U173: 4.061751044 | V173: 3.528448374 | W173: 2.741148194 | X173: 3.216981034 | Y173: 2.996436941 | Z173: 3.287970142 | AA173: 3.301444888 | AB173: 4.766035395 | AC173: 5.170147845 | AD173: 3.833924617 | AE173: 4.117344939 | AF173: 4.751050785 | AG173: 3.795739478 | AH173: 4.132905002 | AI173: 3.016557035 | AJ173: 4.017353119 | AK173: 4.059742497 | AL173: 3.709975836 | AM173: 4.266766201 | AN173: =AVERAGE(Y173:AA173)-AVERAGE(P173:R173) -> -1.563948779 | AO173: =AVERAGE(AK173:AM173)-AVERAGE(AB173:AD173) -> -0.5778744407
A174: Vitvi07g01365 | B174: VIT_00s0304g00080 | C174: AT5G65140.1 | D174: "TPPJ" | E174: NA | F174: "TPPJ" | G174: "TPPJ" | H174: Haloacid dehalogenase-like hydrolase (HAD) superfamily protein | I174: Trehalose-6-phosphate phosphatase | J174: 54.85902524 | K174: -1.420611095 | L174: 0.3187543559 | M174: -4.456758218 | N174: 8.32E-06 | O174: 0.0001163435895 | P174: 2.026842517 | Q174: 1.746478386 | R174: 1.640064152 | S174: 2.155071589 | T174: 1.754014781 | U174: 1.872937317 | V174: 1.6380736 | W174: 2.186796919 | X174: 1.849531387 | Y174: 1.960166284 | Z174: 2.06075409 | AA174: 2.049152766 | AB174: 2.110063412 | AC174: 2.231757882 | AD174: 2.751221773 | AE174: 2.989640396 | AF174: 2.579083288 | AG174: 2.806887947 | AH174: 3.496075365 | AI174: 3.276713822 | AJ174: 2.335919474 | AK174: 2.267611095 | AL174: 2.50510404 | AM174: 1.706706698 | AN174: =AVERAGE(Y174:AA174)-AVERAGE(P174:R174) -> 0.2188960286 | AO174: =AVERAGE(AK174:AM174)-AVERAGE(AB174:AD174) -> -0.2045404113
A175: Vitvi07g01437 | B175: VIT_00s0313g00030 | C175: AT5G65470.1 | D175: NA | E175: NA | F175: NA | G175: NA | H175: O-fucosyltransferase family protein | I175: Auxin-independent growth promoter | J175: 2199.118659 | K175: -0.8371085322 | L175: 0.1299959175 | M175: -6.439498627 | N175: 1.20E-10 | O175: 4.42E-09 | P175: 7.01138405 | Q175: 7.177119623 | R175: 7.32232781 | S175: 6.998593528 | T175: 7.056596037 | U175: 6.929050266 | V175: 6.823258708 | W175: 6.69329118 | X175: 6.785090252 | Y175: 6.592104788 | Z175: 6.882312758 | AA175: 6.850914219 | AB175: 7.066648149 | AC175: 7.32867365 | AD175: 7.27097476 | AE175: 7.358355903 | AF175: 7.531314413 | AG175: 7.309790375 | AH175: 7.304785885 | AI175: 7.278063707 | AJ175: 7.38640329 | AK175: 7.535050617 | AL175: 7.656784631 | AM175: 7.663521093 | AN175: =AVERAGE(Y175:AA175)-AVERAGE(P175:R175) -> -0.3951665725 | AO175: =AVERAGE(AK175:AM175)-AVERAGE(AB175:AD175) -> 0.3963532607
A176: Vitvi07g01439 | B176: VIT_00s0313g00040 | C176: AT5G10480.1 | D176: "PAS2" | E176: NA | F176: "PAS2" | G176: "PAS2" | H176: Protein-tyrosine phosphatase-like%2C PTPLA | I176: PAS2 (PASTICCINO 2) | J176: 133.5854861 | K176: 0.7154711682 | L176: 0.2606873641 | M176: 2.74455638 | N176: 0.006059274534 | O176: 0.03327532686 | P176: 5.14615315 | Q176: 5.554250135 | R176: 5.254511258 | S176: 5.472934997 | T176: 5.268673865 | U176: 4.424221457 | V176: 4.754666304 | W176: 4.781438015 | X176: 5.362381135 | Y176: 4.500595823 | Z176: 5.024723592 | AA176: 5.472893033 | AB176: 4.153881107 | AC176: 5.030294801 | AD176: 4.614054742 | AE176: 4.108298703 | AF176: 4.015920719 | AG176: 4.298514728 | AH176: 4.008909691 | AI176: 4.115172695 | AJ176: 4.11366113 | AK176: 3.35103189 | AL176: 3.34214446 | AM176: 3.158920088 | AN176: =AVERAGE(Y176:AA176)-AVERAGE(P176:R176) -> -0.3189006982 | AO176: =AVERAGE(AK176:AM176)-AVERAGE(AB176:AD176) -> -1.315378071
A177: Vitvi07g01440 | B177: VIT_00s0313g00050 | C177: AT5G09550.1 | D177: "GDI" | E177: NA | F177: "GDI" | G177: "GDI" | H177: GDP dissociation inhibitor family protein / Rab GTPase activator family protein | I177: RAB GDP dissociation inhibitor 1 ATGD1 | J177: 108.5024231 | K177: -0.6885069449 | L177: 0.239840632 | M177: -2.870685168 | N177: 0.004095832325 | O177: 0.0241252641 | P177: 2.932432687 | Q177: 2.827436602 | R177: 2.795094866 | S177: 3.072350365 | T177: 3.07829305 | U177: 2.919225398 | V177: 3.21345738 | W177: 3.252480661 | X177: 3.148256926 | Y177: 3.525091604 | Z177: 3.596716879 | AA177: 3.580911917 | AB177: 2.854772543 | AC177: 2.656587208 | AD177: 4.053090004 | AE177: 3.928377512 | AF177: 3.361246819 | AG177: 3.53127087 | AH177: 3.913063494 | AI177: 4.017570252 | AJ177: 3.882596945 | AK177: 3.728417988 | AL177: 3.777044298 | AM177: 3.548454092 | AN177: =AVERAGE(Y177:AA177)-AVERAGE(P177:R177) -> 0.7159187481 | AO177: =AVERAGE(AK177:AM177)-AVERAGE(AB177:AD177) -> 0.4964888745
A178: Vitvi07g01441 | B178: VIT_00s0313g00070 | C178: AT2G22540.1 | D178: "SVP" | E178: "VviSVP1" | F178: "VviSVP1" | G178: "SVP" | H178: K-box region and MADS-box transcription factor family protein | I178: MADS-box protein SVP (short vegetative phase) | J178: 361.3130365 | K178: -0.8979032198 | L178: 0.1832769259 | M178: -4.899161285 | N178: 9.62E-07 | O178: 1.69E-05 | P178: 5.197297947 | Q178: 5.250494707 | R178: 5.104399866 | S178: 5.406600054 | T178: 5.158173701 | U178: 5.141700844 | V178: 5.173058487 | W178: 5.190287842 | X178: 5.330300672 | Y178: 5.459868685 | Z178: 5.673275446 | AA178: 5.966379755 | AB178: 5.358707597 | AC178: 5.35746273 | AD178: 6.150272057 | AE178: 6.030433958 | AF178: 5.534368728 | AG178: 6.10203364 | AH178: 5.897338117 | AI178: 5.767668012 | AJ178: 6.214861575 | AK178: 5.953937855 | AL178: 5.745300019 | AM178: 5.815186376 | AN178: =AVERAGE(Y178:AA178)-AVERAGE(P178:R178) -> 0.515777122 | AO178: =AVERAGE(AK178:AM178)-AVERAGE(AB178:AD178) -> 0.2159939552
A179: Vitvi14g03118 | B179: VIT_00s0316g00010 | C179: AT2G34930.1 | D179: NA | E179: NA | F179: NA | G179: NA | H179: disease resistance family protein / LRR family protein | I179: Disease resistance protein | J179: 142.0854506 | K179: -1.080154729 | L179: 0.2759317472 | M179: -3.914572134 | N179: 9.06E-05 | O179: 0.0009655255164 | P179: 2.819845234 | Q179: 3.017322746 | R179: 2.589199948 | S179: 2.463627797 | T179: 2.597094254 | U179: 2.503791415 | V179: 1.904419425 | W179: 2.134792646 | X179: 2.20242177 | Y179: 2.204517308 | Z179: 1.943490269 | AA179: 1.44995852 | AB179: 2.299388195 | AC179: 3.017218771 | AD179: 2.195637958 | AE179: 2.438093177 | AF179: 3.304183565 | AG179: 2.639355761 | AH179: 2.789219884 | AI179: 2.248960033 | AJ179: 1.684860256 | AK179: 2.119260611 | AL179: 1.550836735 | AM179: 2.123563578 | AN179: =AVERAGE(Y179:AA179)-AVERAGE(P179:R179) -> -0.9428006101 | AO179: =AVERAGE(AK179:AM179)-AVERAGE(AB179:AD179) -> -0.572861333
A180: Vitvi14g03121 | B180: VIT_00s0316g00010 | C180: AT2G34930.1 | D180: NA | E180: NA | F180: NA | G180: NA | H180: disease resistance family protein / LRR family protein | I180: Disease resistance protein | J180: 59.08504079 | K180: 1.372909697 | L180: 0.3659751684 | M180: 3.751373907 | N180: 0.0001758681952 | O180: 0.001724221954 | P180: 2.057114721 | Q180: 1.220904335 | R180: 1.440806195 | S180: 1.577910468 | T180: 1.691402216 | U180: 1.882886984 | V180: 2.094464641 | W180: 1.923085722 | X180: 1.973546449 | Y180: 1.777157254 | Z180: 1.963963499 | AA180: 2.189216737 | AB180: 0.8623111444 | AC180: 1.201397954 | AD180: 1.496146245 | AE180: 0.8834211999 | AF180: 1.419356966 | AG180: 0.6361433353 | AH180: 1.051036771 | AI180: 0.9464004399 | AJ180: 1.205970825 | AK180: 0.8252411301 | AL180: 0.9600646587 | AM180: 0.3708027358 | AN180: =AVERAGE(Y180:AA180)-AVERAGE(P180:R180) -> 0.4038374136 | AO180: =AVERAGE(AK180:AM180)-AVERAGE(AB180:AD180) -> -0.4679156062
A181: Vitvi14g03101 | B181: VIT_00s0316g00010 | C181: AT2G34930.1 | D181: NA | E181: NA | F181: NA | G181: NA | H181: disease resistance family protein / LRR family protein | I181: Disease resistance protein | J181: 190.4484276 | K181: -0.739568092 | L181: 0.2410326859 | M181: -3.068331124 | N181: 0.002152579551 | O181: 0.01433358603 | P181: 2.907007054 | Q181: 2.439765477 | R181: 2.972412496 | S181: 2.431678168 | T181: 2.61953714 | U181: 3.093422276 | V181: 2.35478443 | W181: 2.572477116 | X181: 2.833394998 | Y181: 2.333689809 | Z181: 2.505256583 | AA181: 2.670265588 | AB181: 2.856953492 | AC181: 3.185287539 | AD181: 3.254232754 | AE181: 3.267906154 | AF181: 3.280216281 | AG181: 2.719272458 | AH181: 3.190445232 | AI181: 2.857713133 | AJ181: 3.424909335 | AK181: 2.019598458 | AL181: 2.357740843 | AM181: 1.330570083 | AN181: =AVERAGE(Y181:AA181)-AVERAGE(P181:R181) -> -0.2699910153 | AO181: =AVERAGE(AK181:AM181)-AVERAGE(AB181:AD181) -> -1.196188133
A182: Vitvi13g00235 | B182: VIT_00s0317g00110 | C182: AT3G55180.1 | D182: NA | E182: NA | F182: NA | G182: NA | H182: alpha/beta-Hydrolases superfamily protein | I182: Esterase/lipase/thioesterase | J182: 1100.097398 | K182: 2.319470781 | L182: 0.1630906133 | M182: 14.22197595 | N182: 6.69E-46 | O182: 8.73E-43 | P182: 6.49116572 | Q182: 6.623668186 | R182: 6.809630913 | S182: 7.022229235 | T182: 6.8962599 | U182: 7.519026693 | V182: 7.631733477 | W182: 7.369509138 | X182: 7.752989328 | Y182: 7.720089823 | Z182: 7.847378933 | AA182: 7.850391446 | AB182: 4.991459812 | AC182: 5.657160758 | AD182: 5.483970215 | AE182: 5.092733594 | AF182: 4.926285038 | AG182: 5.056408108 | AH182: 5.20060317 | AI182: 4.799593551 | AJ182: 5.093493294 | AK182: 5.375776449 | AL182: 5.472533841 | AM182: 5.267167138 | AN182: =AVERAGE(Y182:AA182)-AVERAGE(P182:R182) -> 1.164465128 | AO182: =AVERAGE(AK182:AM182)-AVERAGE(AB182:AD182) -> -0.005704452293
A183: Vitvi13g00234 | B183: VIT_00s0317g00130 | C183: AT5G02610.2 | D183: NA | E183: NA | F183: "RPL35B" | G183: NA | H183: Ribosomal L29 family protein | I183: Ribosomal protein L35 (RPL35B) 60S | J183: 937.5571941 | K183: 0.3503472345 | L183: 0.1285154471 | M183: 2.726109914 | N183: 0.006408565361 | O183: 0.03477670529 | P183: 8.151398239 | Q183: 8.263224447 | R183: 8.107269916 | S183: 8.41936499 | T183: 8.217577526 | U183: 8.152939688 | V183: 8.129678834 | W183: 8.338713257 | X183: 8.331087253 | Y183: 7.978822106 | Z183: 8.24650382 | AA183: 8.191948082 | AB183: 7.447131662 | AC183: 7.762303348 | AD183: 7.8100699 | AE183: 7.621756563 | AF183: 7.598422719 | AG183: 7.529207561 | AH183: 7.501598091 | AI183: 7.707383028 | AJ183: 7.590865983 | AK183: 7.733962102 | AL183: 7.606737916 | AM183: 7.576064228 | AN183: =AVERAGE(Y183:AA183)-AVERAGE(P183:R183) -> -0.03487286482 | AO183: =AVERAGE(AK183:AM183)-AVERAGE(AB183:AD183) -> -0.03424688771
A184: Vitvi13g00233 | B184: VIT_00s0317g00140 | C184: AT2G39380.1 | D184: "EXO70H2" | E184: NA | F184: "EXO70H2" | G184: "EXO70H2" | H184: exocyst subunit exo70 family protein H2 | I184: Exocyst subunit EXO70 H2 | J184: 189.6727452 | K184: 1.270292363 | L184: 0.2674862867 | M184: 4.748999953 | N184: 2.04E-06 | O184: 3.30E-05 | P184: 3.266043769 | Q184: 3.01453284 | R184: 3.564022833 | S184: 3.86393122 | T184: 4.18885639 | U184: 3.40821449 | V184: 3.495804648 | W184: 4.627798588 | X184: 3.731698012 | Y184: 3.856053926 | Z184: 3.986958723 | AA184: 3.937627523 | AB184: 2.194488439 | AC184: 3.021367463 | AD184: 2.808501361 | AE184: 2.596064354 | AF184: 2.653778764 | AG184: 2.623404528 | AH184: 2.877705989 | AI184: 3.211041495 | AJ184: 2.72184433 | AK184: 3.023434088 | AL184: 3.184401686 | AM184: 2.831050845 | AN184: =AVERAGE(Y184:AA184)-AVERAGE(P184:R184) -> 0.6453469101 | AO184: =AVERAGE(AK184:AM184)-AVERAGE(AB184:AD184) -> 0.3381764518
A185: Vitvi02g01428 | B185: VIT_00s0323g00010 | C185: NA | D185: NA | E185: NA | F185: NA | G185: NA | H185: NA | I185: No hit | J185: 353.0199836 | K185: -0.93560261 | L185: 0.153731824 | M185: -6.085939696 | N185: 1.16E-09 | O185: 3.63E-08 | P185: 5.903927281 | Q185: 6.169898897 | R185: 6.096516829 | S185: 6.469559079 | T185: 6.732810924 | U185: 6.149341675 | V185: 6.403517032 | W185: 6.239926813 | X185: 6.224907623 | Y185: 6.128880321 | Z185: 6.262561831 | AA185: 6.617765657 | AB185: 6.4867933 | AC185: 7.174882592 | AD185: 6.862880174 | AE185: 7.321306414 | AF185: 7.154749462 | AG185: 7.182648113 | AH185: 7.306135511 | AI185: 7.341735028 | AJ185: 6.955566826 | AK185: 7.352430869 | AL185: 7.351471321 | AM185: 7.231906744 | AN185: =AVERAGE(Y185:AA185)-AVERAGE(P185:R185) -> 0.2796216006 | AO185: =AVERAGE(AK185:AM185)-AVERAGE(AB185:AD185) -> 0.4704176225
A186: Vitvi02g00498 | B186: VIT_00s0323g00040 | C186: AT1G62780.1 | D186: NA | E186: NA | F186: NA | G186: NA | H186: dimethylallyl%2C adenosine tRNA methylthiotransferase | I186: Unknown protein | J186: 158.5875915 | K186: 1.057561624 | L186: 0.1968296196 | M186: 5.372980074 | N186: 7.74E-08 | O186: 1.71E-06 | P186: 4.723103072 | Q186: 4.562964069 | R186: 4.967295312 | S186: 4.832322061 | T186: 4.693263585 | U186: 4.555380027 | V186: 4.66570332 | W186: 4.976587675 | X186: 4.822832865 | Y186: 4.752150837 | Z186: 4.837302676 | AA186: 5.180084513 | AB186: 3.247651631 | AC186: 4.134447637 | AD186: 3.483203367 | AE186: 3.535786503 | AF186: 3.611974352 | AG186: 3.617594992 | AH186: 3.65124179 | AI186: 3.416872477 | AJ186: 3.823839657 | AK186: 3.583073083 | AL186: 3.454025807 | AM186: 3.682533024 | AN186: =AVERAGE(Y186:AA186)-AVERAGE(P186:R186) -> 0.1720585244 | AO186: =AVERAGE(AK186:AM186)-AVERAGE(AB186:AD186) -> -0.04855690698
A187: Vitvi02g00500 | B187: VIT_00s0323g00060 | C187: AT5G62350.1 | D187: NA | E187: NA | F187: NA | G187: NA | H187: Plant invertase/pectin methylesterase inhibitor superfamily protein | I187: Invertase/pectin methylesterase inhibitor | J187: 50.52438129 | K187: 2.409146499 | L187: 0.3727433546 | M187: 6.463284909 | N187: 1.02E-10 | O187: 3.83E-09 | P187: 3.537686654 | Q187: 3.865197666 | R187: 4.176364814 | S187: 3.348920692 | T187: 3.88853731 | U187: 4.078337168 | V187: 3.854972769 | W187: 4.098949837 | X187: 4.217969836 | Y187: 4.003335559 | Z187: 4.035187304 | AA187: 4.088656287 | AB187: 1.996041539 | AC187: 2.751860601 | AD187: 2.342386629 | AE187: 1.855477168 | AF187: 1.615654041 | AG187: 1.797199836 | AH187: 1.431789707 | AI187: 1.98278356 | AJ187: 2.324967737 | AK187: 2.256218064 | AL187: 2.589404733 | AM187: 2.590719606 | AN187: =AVERAGE(Y187:AA187)-AVERAGE(P187:R187) -> 0.182643339 | AO187: =AVERAGE(AK187:AM187)-AVERAGE(AB187:AD187) -> 0.1153512113
A188: Vitvi02g00501 | B188: VIT_00s0323g00070 | C188: AT5G62350.1 | D188: NA | E188: NA | F188: NA | G188: NA | H188: Plant invertase/pectin methylesterase inhibitor superfamily protein | I188: Pectin methylesterase inhibitor | J188: 1264.4321 | K188: 3.672173241 | L188: 0.2341994777 | M188: 15.6796816 | N188: 2.08E-55 | O188: 9.16E-52 | P188: 8.25611788 | Q188: 8.181731667 | R188: 8.618965718 | S188: 8.354470992 | T188: 8.089441986 | U188: 8.285762296 | V188: 8.31275061 | W188: 8.543223972 | X188: 8.966076874 | Y188: 9.951377823 | Z188: 9.088152941 | AA188: 9.035299626 | AB188: 4.478036485 | AC188: 4.689358344 | AD188: 4.738640975 | AE188: 4.902676721 | AF188: 4.054062989 | AG188: 4.974108264 | AH188: 5.312825813 | AI188: 5.592896686 | AJ188: 5.108817754 | AK188: 6.599901973 | AL188: 6.673434217 | AM188: 6.758879445 | AN188: =AVERAGE(Y188:AA188)-AVERAGE(P188:R188) -> 1.006005042 | AO188: =AVERAGE(AK188:AM188)-AVERAGE(AB188:AD188) -> 2.042059944
A189: Vitvi02g00502 | B189: VIT_00s0323g00080 | C189: AT1G62750.1 | D189: "SCO1" | E189: NA | F189: "SCO1" | G189: "SCO1" | H189: Translation elongation factor EFG/EF2 protein | I189: Elongation factor G, chloroplast precursor | J189: 704.8413432 | K189: 0.5317384097 | L189: 0.145181656 | M189: 3.662572974 | N189: 0.0002496945896 | O189: 0.002337923714 | P189: 4.994086608 | Q189: 4.995283061 | R189: 4.902915297 | S189: 5.436698849 | T189: 5.506815287 | U189: 5.191710801 | V189: 5.261195486 | W189: 5.507506536 | X189: 5.031053608 | Y189: 4.853008866 | Z189: 5.206371749 | AA189: 5.186197031 | AB189: 4.188281258 | AC189: 5.065584404 | AD189: 4.730996879 | AE189: 4.31717059 | AF189: 4.608187493 | AG189: 4.636002213 | AH189: 4.987499362 | AI189: 5.067904739 | AJ189: 4.589199483 | AK189: 5.27767806 | AL189: 4.986279329 | AM189: 4.977109042 | AN189: =AVERAGE(Y189:AA189)-AVERAGE(P189:R189) -> 0.1177642267 | AO189: =AVERAGE(AK189:AM189)-AVERAGE(AB189:AD189) -> 0.41873463
A190: Vitvi07g01392 | B190: VIT_00s0324g00030 | C190: AT1G10380.1 | D190: NA | E190: NA | F190: NA | G190: NA | H190: Putative membrane lipoprotein | I190: Unknown | J190: 20.61015805 | K190: -1.558412366 | L190: 0.4780095558 | M190: -3.260211741 | N190: 0.001113290678 | O190: 0.008283394847 | P190: 2.013224103 | Q190: 2.198451293 | R190: 1.234248531 | S190: 1.585623457 | T190: 1.762733255 | U190: 1.846866962 | V190: 1.243243514 | W190: 1.298378484 | X190: 1.304500959 | Y190: 0.8745310032 | Z190: 1.8317807 | AA190: 1.220744749 | AB190: 1.792731408 | AC190: 2.682900589 | AD190: 2.16047583 | AE190: 1.678801129 | AF190: 2.237636814 | AG190: 2.122895481 | AH190: 1.566149339 | AI190: 1.809703417 | AJ190: 2.329978444 | AK190: 1.877556672 | AL190: 2.407216326 | AM190: 2.022246352 | AN190: =AVERAGE(Y190:AA190)-AVERAGE(P190:R190) -> -0.5062891584 | AO190: =AVERAGE(AK190:AM190)-AVERAGE(AB190:AD190) -> -0.1096961587
A191: Vitvi07g01394 | B191: VIT_00s0324g00050 | C191: AT1G22340.1 | D191: "UGT85A7" | E191: NA | F191: "UGT85A7" | G191: "UGT85A7" | H191: UDP-glucosyl transferase 85A7 | I191: UDP-glucose glucosyltransferase | J191: 57.30620698 | K191: 1.913885563 | L191: 0.3653150308 | M191: 5.239000319 | N191: 1.61E-07 | O191: 3.34E-06 | P191: 2.428015609 | Q191: 2.274617941 | R191: 2.269136005 | S191: 2.812963886 | T191: 2.396528749 | U191: 2.713695835 | V191: 2.522479373 | W191: 3.179135475 | X191: 2.996463788 | Y191: 2.733470729 | Z191: 3.18304157 | AA191: 3.120241895 | AB191: 0.9758757802 | AC191: 2.681906386 | AD191: 1.755472836 | AE191: 1.175545639 | AF191: 1.014220577 | AG191: 1.708815858 | AH191: 1.27755153 | AI191: 1.544828919 | AJ191: 1.607037068 | AK191: 2.249220056 | AL191: 2.044005737 | AM191: 2.367727979 | AN191: =AVERAGE(Y191:AA191)-AVERAGE(P191:R191) -> 0.6883282132 | AO191: =AVERAGE(AK191:AM191)-AVERAGE(AB191:AD191) -> 0.4158995899
A192: Vitvi07g01395 | B192: VIT_00s0324g00070 | C192: AT1G22360.1 | D192: "UGT85A2" | E192: NA | F192: "UGT85A2" | G192: "UGT85A2" | H192: UDP-glucosyl transferase 85A2 | I192: Cis-zeatin O-beta-D-glucosyltransferase | J192: 273.076773 | K192: 1.435989433 | L192: 0.282977893 | M192: 5.074564015 | N192: 3.88E-07 | O192: 7.40E-06 | P192: 5.059439928 | Q192: 5.376802457 | R192: 5.150064441 | S192: 5.031350174 | T192: 5.360160364 | U192: 5.230513329 | V192: 5.109619737 | W192: 4.907133162 | X192: 4.952674004 | Y192: 4.043847858 | Z192: 4.634539732 | AA192: 4.198980146 | AB192: 4.142704846 | AC192: 4.536426803 | AD192: 3.464598951 | AE192: 3.265355703 | AF192: 3.95645188 | AG192: 2.525045631 | AH192: 3.416471774 | AI192: 3.171010245 | AJ192: 3.159393686 | AK192: 2.664111499 | AL192: 2.800500724 | AM192: 2.611128413 | AN192: =AVERAGE(Y192:AA192)-AVERAGE(P192:R192) -> -0.9029796972 | AO192: =AVERAGE(AK192:AM192)-AVERAGE(AB192:AD192) -> -1.355996655
A193: Vitvi07g01397 | B193: VIT_00s0324g00110 | C193: AT4G39970.1 | D193: NA | E193: NA | F193: NA | G193: NA | H193: Haloacid dehalogenase-like hydrolase (HAD) superfamily protein | I193: Haloacid dehalogenase hydrolase | J193: 29.91153239 | K193: 1.175158213 | L193: 0.4390118864 | M193: 2.676825502 | N193: 0.007432333262 | O193: 0.03905082125 | P193: 1.793473973 | Q193: 2.108264761 | R193: 2.211052167 | S193: 2.863945636 | T193: 2.312340996 | U193: 2.649507208 | V193: 2.537698739 | W193: 2.72636662 | X193: 2.339256548 | Y193: 2.799392595 | Z193: 2.443411607 | AA193: 2.609677337 | AB193: 1.809439771 | AC193: 1.840645667 | AD193: 2.257430112 | AE193: 1.958091503 | AF193: 1.171334215 | AG193: 1.194752975 | AH193: 1.919920557 | AI193: 1.486503666 | AJ193: 1.282884139 | AK193: 1.441282368 | AL193: 1.557673673 | AM193: 1.1585525 | AN193: =AVERAGE(Y193:AA193)-AVERAGE(P193:R193) -> 0.5798968794 | AO193: =AVERAGE(AK193:AM193)-AVERAGE(AB193:AD193) -> -0.5833356697
A194: Vitvi08g00205 | B194: VIT_00s0327g00020 | C194: AT3G54720.1 | D194: "AMP1" | E194: NA | F194: "AMP1" | G194: "AMP1" | H194: Peptidase M28 family protein | I194: Glutamate carboxypeptidase (AMP1) | J194: 137.5579006 | K194: -0.7229258593 | L194: 0.2215452339 | M194: -3.263107251 | N194: 0.001101978078 | O194: 0.008229849182 | P194: 2.879545595 | Q194: 3.025387907 | R194: 2.553375656 | S194: 2.938239923 | T194: 3.089947186 | U194: 2.787939008 | V194: 2.981501699 | W194: 2.569472759 | X194: 2.559277355 | Y194: 2.93643672 | Z194: 2.780629993 | AA194: 2.667439533 | AB194: 2.945135492 | AC194: 3.196965416 | AD194: 3.087712808 | AE194: 3.055467251 | AF194: 3.030070071 | AG194: 3.131410841 | AH194: 3.292747574 | AI194: 3.07647148 | AJ194: 3.073927232 | AK194: 3.184774022 | AL194: 3.005118398 | AM194: 2.876355578 | AN194: =AVERAGE(Y194:AA194)-AVERAGE(P194:R194) -> -0.02460097063 | AO194: =AVERAGE(AK194:AM194)-AVERAGE(AB194:AD194) -> -0.05452190606
A195: Vitvi09g02090 | B195: VIT_00s0332g00160 | C195: ATMG00510.1 | D195: "NAD7" | E195: NA | F195: "NAD7" | G195: "NAD7" | H195: NADH dehydrogenase subunit 7 | I195: NADH dehydrogenase subunit 7 | J195: 24.74477255 | K195: 1.178512811 | L195: 0.4559167432 | M195: 2.584929878 | N195: 0.009739880393 | O195: 0.04855845097 | P195: 1.893175899 | Q195: 1.865943582 | R195: 2.356694424 | S195: 1.977882698 | T195: 1.822545057 | U195: 2.229864375 | V195: 2.256823353 | W195: 2.425136391 | X195: 2.610493821 | Y195: 2.109096587 | Z195: 2.163731289 | AA195: 2.380320908 | AB195: 1.845630019 | AC195: 1.192577392 | AD195: 1.354839088 | AE195: 1.270044177 | AF195: 1.2271623 | AG195: 1.63667619 | AH195: 1.664870558 | AI195: 1.645080741 | AJ195: 1.313578377 | AK195: 1.155573474 | AL195: 1.987821173 | AM195: 0.7603312657 | AN195: =AVERAGE(Y195:AA195)-AVERAGE(P195:R195) -> 0.1791116267 | AO195: =AVERAGE(AK195:AM195)-AVERAGE(AB195:AD195) -> -0.1631068622
A196: Vitvi07g01139 | B196: VIT_00s0333g00040 | C196: AT5G48480.1 | D196: NA | E196: NA | F196: NA | G196: NA | H196: Lactoylglutathione lyase / glyoxalase I family protein | I196: Early tobacco anther 1, putative | J196: 87.36660622 | K196: -1.42539148 | L196: 0.2996386372 | M196: -4.757034985 | N196: 1.96E-06 | O196: 3.18E-05 | P196: 3.309668193 | Q196: 3.704896127 | R196: 3.283920545 | S196: 3.428252696 | T196: 3.382030918 | U196: 3.019811624 | V196: 3.96003279 | W196: 3.070488904 | X196: 3.756111161 | Y196: 3.210967444 | Z196: 3.012150175 | AA196: 2.532522423 | AB196: 4.35521211 | AC196: 4.944117583 | AD196: 4.502988205 | AE196: 4.481069162 | AF196: 4.652384344 | AG196: 4.589133489 | AH196: 5.023527999 | AI196: 5.084852707 | AJ196: 4.39155178 | AK196: 5.600008775 | AL196: 5.729244305 | AM196: 5.60941094 | AN196: =AVERAGE(Y196:AA196)-AVERAGE(P196:R196) -> -0.5142816079 | AO196: =AVERAGE(AK196:AM196)-AVERAGE(AB196:AD196) -> 1.045448707
A197: Vitvi04g01519 | B197: VIT_00s0338g00010 | C197: AT2G17030.1 | D197: NA | E197: NA | F197: NA | G197: NA | H197: F-box SKIP23-like protein (DUF295) | I197: F-box family protein | J197: 96.15685242 | K197: -0.8148809912 | L197: 0.2540001824 | M197: -3.208190575 | N197: 0.001335729556 | O197: 0.009651128731 | P197: 3.244857841 | Q197: 3.144295877 | R197: 2.892428257 | S197: 3.030303198 | T197: 3.281377737 | U197: 2.790434673 | V197: 2.652554008 | W197: 3.118314717 | X197: 2.824325651 | Y197: 2.558954187 | Z197: 3.067801223 | AA197: 2.676460367 | AB197: 3.261277175 | AC197: 3.424835882 | AD197: 3.51752017 | AE197: 3.466239011 | AF197: 3.030538849 | AG197: 3.554594102 | AH197: 3.419025728 | AI197: 3.327927944 | AJ197: 3.435575045 | AK197: 3.438865691 | AL197: 3.422082793 | AM197: 3.493369565 | AN197: =AVERAGE(Y197:AA197)-AVERAGE(P197:R197) -> -0.3261220664 | AO197: =AVERAGE(AK197:AM197)-AVERAGE(AB197:AD197) -> 0.05022827395
A198: Vitvi07g02990 | B198: VIT_00s0340g00050 | C198: AT1G65610.1 | D198: "KOR2" | E198: NA | F198: "KOR2" | G198: "KOR2" | H198: Six-hairpin glycosidases superfamily protein | I198: Endo-1,4-beta-glucanase korrigan (KOR) | J198: 296.0078369 | K198: -0.8591167798 | L198: 0.2397146386 | M198: -3.583914545 | N198: 0.0003384828674 | O198: 0.003018388166 | P198: 3.579012149 | Q198: 3.913837739 | R198: 3.58864845 | S198: 3.868918929 | T198: 3.723901238 | U198: 3.585191704 | V198: 3.761639715 | W198: 3.713155781 | X198: 4.207783614 | Y198: 4.318970355 | Z198: 4.73652326 | AA198: 4.453809564 | AB198: 3.801836175 | AC198: 4.215269382 | AD198: 3.66599444 | AE198: 4.70682545 | AF198: 4.463959665 | AG198: 4.001419599 | AH198: 5.025572633 | AI198: 4.778387458 | AJ198: 4.102266282 | AK198: 4.416734591 | AL198: 4.459741286 | AM198: 4.149575747 | AN198: =AVERAGE(Y198:AA198)-AVERAGE(P198:R198) -> 0.8092682803 | AO198: =AVERAGE(AK198:AM198)-AVERAGE(AB198:AD198) -> 0.4476505424
A199: Vitvi10g02328 | B199: VIT_00s0347g00030 | C199: AT5G54470.1 | D199: "BBX29" | E199: NA | F199: "BBX29" | G199: "BBX29" | H199: B-box type zinc finger family protein | I199: Zinc finger (B-box type) | J199: 256.0866573 | K199: -0.7224833549 | L199: 0.219932641 | M199: -3.285021048 | N199: 0.001019747536 | O199: 0.007704681312 | P199: 5.738311151 | Q199: 5.815207496 | R199: 5.800528795 | S199: 5.703301502 | T199: 5.056214683 | U199: 5.026978858 | V199: 5.0192129 | W199: 5.03736288 | X199: 5.307607543 | Y199: 5.699463896 | Z199: 5.652988562 | AA199: 5.801957249 | AB199: 4.784180631 | AC199: 5.315687017 | AD199: 5.488033902 | AE199: 5.72771922 | AF199: 5.030378499 | AG199: 5.613433242 | AH199: 5.667182039 | AI199: 5.820580096 | AJ199: 5.587895563 | AK199: 6.363469318 | AL199: 6.226702277 | AM199: 6.327877004 | AN199: =AVERAGE(Y199:AA199)-AVERAGE(P199:R199) -> -0.06654591211 | AO199: =AVERAGE(AK199:AM199)-AVERAGE(AB199:AD199) -> 1.110049017
A200: Vitvi10g02327 | B200: VIT_00s0347g00040 | C200: AT5G54490.1 | D200: "PBP1" | E200: NA | F200: "PBP1" | G200: "PBP1" | H200: pinoid-binding protein 1 | I200: Avr9/Cf-9 rapidly elicited protein 20 | J200: 32.55879632 | K200: -1.406691092 | L200: 0.4769855513 | M200: -2.949127259 | N200: 0.003186727244 | O200: 0.01966579097 | P200: 2.421206074 | Q200: 2.576281598 | R200: 3.162933433 | S200: 3.310698166 | T200: 3.037213059 | U200: 2.8631531 | V200: 3.124822905 | W200: 2.435117306 | X200: 3.05820858 | Y200: 4.308371806 | Z200: 3.679665731 | AA200: 3.779253677 | AB200: 2.668632434 | AC200: 2.71483247 | AD200: 3.961567887 | AE200: 4.560086808 | AF200: 3.142213935 | AG200: 3.74047934 | AH200: 4.735321354 | AI200: 5.676869871 | AJ200: 3.940257875 | AK200: 3.577932879 | AL200: 4.351593026 | AM200: 3.044921554 | AN200: =AVERAGE(Y200:AA200)-AVERAGE(P200:R200) -> 1.202290036 | AO200: =AVERAGE(AK200:AM200)-AVERAGE(AB200:AD200) -> 0.5431382229
... 2050 more rows
